Workbook

Sheet Covers
B6: Official Statistics Release
B7: Policy area: | C7: Children's centres inspections and outcomes
B8: Theme: | C8: Education, children’s services and skills
B9: Published on: | C9: 27 November 2012
B10: Coverage: | C10: England
B11: Period covered: | C11: 1 April 2010 to 31 August 2012
B12: Status: | C12: Final - Annual Report Academic Year
B13: Issued by: | C13: Office for Standards in Education, Children's Services and Skills (Ofsted) Aviation House 125 Kingsway London WC2B 6SE
B17: Responsible director: | C17: Susan Gregory
B18: Responsible statistician: | C18: Louise Butler
B19: Public enquiries: | C19: enquiries@ofsted.gov.uk
B20: Press enquiries: | C20: pressenquiries@ofsted.gov.uk
B21: Link to official statistics release web page: | C21: http://www.ofsted.gov.uk/resources/official-statistics-childrens-centres-inspections-and-outcomes
B22: Publication medium: | C22: Ofsted website
B23: Publication frequency: | C23: Quarterly
B26: © Crown copyright
B28: You may use and re-use this information (not including logos) free of charge in any format or medium, under the terms of the Open Government Licence.
B29: To view this licence, visit:
B30: http://www.nationalarchives.gov.uk/doc/open-government-licence/
B31: Or write to the Information Policy Team, The National Archives, Kew, London, TW9 4DU
B32: Or email:
B33: psi@nationalarchives.gsi.gov.uk

Sheet Contents
B2: Contents
B4: National level
B6: Table 1: Number of children's centres inspected between 1 April 2010 and 31 August 2012
B8: Table 2: Inspection outcomes of children's centres inspected between 1 September 2011 and 31 August 2012
B10: Table 3: Most recent inspection outcomes of children's centres as at 31 August 2012
B12: Table 4:Overall effectiveness of children's centres inspected over two inspection years
B14: Local authority level
B16: Table 5: Overall effectiveness of children's centres inspected between 1 September 2011 and 31 August 2012, by local authority
B18: Table 6: Overall effectiveness of children's centres inspected as at 31 August 2012, by local authority
B20: Charts
B22: Chart 1: Key judgements of children's centres inspected between 1 September 2011 and 31 August 2012
B24: Chart 2: Overall effectiveness of children's centres inspected over two inspection years

Sheet Dates1 (hidden)
B3: 1 September 2011 and 31 August 2012
B11: 1 September 2011 and 31 August 2012

Sheet Datapack (hidden)
A2: Table 2 | B2: September 2011 - August 2012
A3: Judgement | B3: Outstanding | C3: Good | D3: Satisfactory | E3: Inadequate | F3: Total
A4: Overall effectiveness | B4: 86 | C4: 378 | D4: 226 | E4: 18 | F4: 708
A5: Capacity for sustained improvement | B5: 103 | C5: 369 | D5: 220 | E5: 16 | F5: 708
A6: Outcomes for users | B6: 82 | C6: 390 | D6: 219 | E6: 17 | F6: 708
A7: Being healthy | B7: 77 | C7: 374 | D7: 249 | E7: 8 | F7: 708
A8: Safe and protected | B8: 175 | C8: 416 | D8: 109 | E8: 8 | F8: 708
A9: Enjoy and achieve | B9: 92 | C9: 407 | D9: 204 | E9: 5 | F9: 708
A10: Engaging in positive behaviour | B10: 105 | C10: 356 | D10: 231 | E10: 16 | F10: 708
A11: Skills for future | B11: 64 | C11: 311 | D11: 318 | E11: 15 | F11: 708
A12: Quality of provision | B12: 109 | C12: 387 | D12: 198 | E12: 14 | F12: 708
A13: Assessment | B13: 1 | C13: 0 | D13: 0 | E13: 0 | F13: 1
A14: Services meet the needs of users (NEW) | B14: 96 | C14: 375 | D14: 218 | E14: 18 | F14: 707
A15: Learning development and enjoyment | B15: 99 | C15: 395 | D15: 206 | E15: 8 | F15: 708
A16: Meets the needs | B16: 0 | C16: 1 | D16: 0 | E16: 0 | F16: 1
A17: Care, guidance and support | B17: 227 | C17: 373 | D17: 100 | E17: 8 | F17: 708
A18: Leadership and management | B18: 94 | C18: 378 | D18: 219 | E18: 17 | F18: 708
A19: Governance accountability | B19: 90 | C19: 361 | D19: 240 | E19: 17 | F19: 708
A20: Evaluation to drive improvement (NEW) | B20: 97 | C20: 325 | D20: 267 | E20: 18 | F20: 707
A21: Ambitious targets (OLD) | B21: 0 | C21: 1 | D21: 0 | E21: 0 | F21: 1
A22: Resources used and managed | B22: 119 | C22: 350 | D22: 222 | E22: 17 | F22: 708
A23: Equality and Diversity | B23: 99 | C23: 383 | D23: 212 | E23: 14 | F23: 708
A24: Policy procedures and work | B24: 200 | C24: 404 | D24: 97 | E24: 7 | F24: 708
A25: Evaluation | B25: 0 | C25: 1 | D25: 0 | E25: 0 | F25: 1
A26: Partnerships with others | B26: 162 | C26: 362 | D26: 174 | E26: 10 | F26: 708
A27: Supports and encourages | B27: 100 | C27: 350 | D27: 246 | E27: 12 | F27: 708
A30: Table 5 | B30: September 2011 - August 2012
A31: Local authority | B31: Total | C31: Outstanding | D31: Good | E31: Satisfactory | F31: Inadequate
A32: Barking and Dagenham | B32: 3 | C32: 3 | D32: 0 | E32: 0 | F32: 0
A33: Barnet | B33: 2 | C33: 0 | D33: 2 | E33: 0 | F33: 0
A34: Barnsley | B34: 1 | C34: 0 | D34: 0 | E34: 1 | F34: 0
A35: Bath and North East Somerset | B35: 2 | C35: 0 | D35: 2 | E35: 0 | F35: 0
A36: Bedford | B36: 4 | C36: 1 | D36: 2 | E36: 1 | F36: 0
A37: Bexley | B37: 1 | C37: 0 | D37: 1 | E37: 0 | F37: 0
A38: Birmingham | B38: 23 | C38: 4 | D38: 9 | E38: 9 | F38: 1
A39: Blackburn with Darwen | B39: 4 | C39: 0 | D39: 4 | E39: 0 | F39: 0
A40: Blackpool | B40: 3 | C40: 2 | D40: 1 | E40: 0 | F40: 0
A41: Bolton | B41: 4 | C41: 0 | D41: 1 | E41: 3 | F41: 0
A42: Bournemouth | B42: 0 | C42: 0 | D42: 0 | E42: 0 | F42: 0
A43: Bracknell Forest | B43: 1 | C43: 0 | D43: 0 | E43: 1 | F43: 0
A44: Bradford | B44: 8 | C44: 1 | D44: 6 | E44: 0 | F44: 1
A45: Brent | B45: 1 | C45: 0 | D45: 1 | E45: 0 | F45: 0
A46: Brighton and Hove | B46: 5 | C46: 3 | D46: 2 | E46: 0 | F46: 0
A47: Bristol City of | B47: 10 | C47: 4 | D47: 5 | E47: 1 | F47: 0
A48: Bromley | B48: 2 | C48: 0 | D48: 1 | E48: 1 | F48: 0
A49: Buckinghamshire | B49: 7 | C49: 0 | D49: 1 | E49: 4 | F49: 2
A50: Bury | B50: 3 | C50: 0 | D50: 0 | E50: 3 | F50: 0
A51: Calderdale | B51: 3 | C51: 0 | D51: 0 | E51: 3 | F51: 0
A52: Cambridgeshire | B52: 10 | C52: 0 | D52: 2 | E52: 8 | F52: 0
A53: Camden | B53: 2 | C53: 0 | D53: 2 | E53: 0 | F53: 0
A54: Central Bedfordshire | B54: 1 | C54: 0 | D54: 1 | E54: 0 | F54: 0
A55: Cheshire East | B55: 2 | C55: 0 | D55: 1 | E55: 1 | F55: 0
A56: Cheshire West and Chester | B56: 2 | C56: 0 | D56: 1 | E56: 1 | F56: 0
A57: City of London | B57: 0 | C57: 0 | D57: 0 | E57: 0 | F57: 0
A58: Cornwall | B58: 3 | C58: 0 | D58: 1 | E58: 2 | F58: 0
A59: Coventry | B59: 4 | C59: 1 | D59: 2 | E59: 1 | F59: 0
A60: Croydon | B60: 6 | C60: 1 | D60: 4 | E60: 1 | F60: 0
A61: Cumbria | B61: 8 | C61: 2 | D61: 6 | E61: 0 | F61: 0
A62: Darlington | B62: 1 | C62: 0 | D62: 1 | E62: 0 | F62: 0
A63: Derby | B63: 4 | C63: 0 | D63: 2 | E63: 2 | F63: 0
A64: Derbyshire | B64: 13 | C64: 0 | D64: 9 | E64: 3 | F64: 1
A65: Devon | B65: 11 | C65: 0 | D65: 6 | E65: 5 | F65: 0
A66: Doncaster | B66: 7 | C66: 0 | D66: 3 | E66: 3 | F66: 1
A67: Dorset | B67: 5 | C67: 0 | D67: 1 | E67: 4 | F67: 0
A68: Dudley | B68: 5 | C68: 0 | D68: 4 | E68: 1 | F68: 0
A69: Durham | B69: 8 | C69: 0 | D69: 2 | E69: 4 | F69: 2
A70: Ealing | B70: 7 | C70: 0 | D70: 5 | E70: 2 | F70: 0
A71: East Riding of Yorkshire | B71: 2 | C71: 0 | D71: 2 | E71: 0 | F71: 0
A72: East Sussex | B72: 10 | C72: 1 | D72: 8 | E72: 1 | F72: 0
A73: Enfield | B73: 5 | C73: 0 | D73: 4 | E73: 1 | F73: 0
A74: Essex | B74: 12 | C74: 1 | D74: 6 | E74: 5 | F74: 0
A75: Gateshead | B75: 2 | C75: 0 | D75: 1 | E75: 1 | F75: 0
A76: Gloucestershire | B76: 11 | C76: 0 | D76: 6 | E76: 5 | F76: 0
A77: Greenwich | B77: 5 | C77: 0 | D77: 5 | E77: 0 | F77: 0
A78: Hackney | B78: 3 | C78: 0 | D78: 2 | E78: 1 | F78: 0
A79: Halton | B79: 3 | C79: 0 | D79: 3 | E79: 0 | F79: 0
A80: Hammersmith and Fulham | B80: 0 | C80: 0 | D80: 0 | E80: 0 | F80: 0
A81: Hampshire | B81: 7 | C81: 2 | D81: 4 | E81: 1 | F81: 0
A82: Haringey | B82: 3 | C82: 0 | D82: 2 | E82: 1 | F82: 0
A83: Harrow | B83: 1 | C83: 0 | D83: 1 | E83: 0 | F83: 0
A84: Hartlepool | B84: 2 | C84: 0 | D84: 2 | E84: 0 | F84: 0
A85: Havering | B85: 2 | C85: 0 | D85: 2 | E85: 0 | F85: 0
A86: Herefordshire | B86: 2 | C86: 0 | D86: 2 | E86: 0 | F86: 0
A87: Hertfordshire | B87: 8 | C87: 0 | D87: 6 | E87: 2 | F87: 0
A88: Hillingdon | B88: 4 | C88: 0 | D88: 2 | E88: 1 | F88: 1
A89: Hounslow | B89: 0 | C89: 0 | D89: 0 | E89: 0 | F89: 0
A90: Isle of Wight | B90: 4 | C90: 2 | D90: 2 | E90: 0 | F90: 0
A91: Isles of Scilly | B91: 0 | C91: 0 | D91: 0 | E91: 0 | F91: 0
A92: Islington | B92: 7 | C92: 0 | D92: 7 | E92: 0 | F92: 0
A93: Kensington and Chelsea | B93: 1 | C93: 0 | D93: 1 | E93: 0 | F93: 0
A94: Kent | B94: 22 | C94: 5 | D94: 14 | E94: 3 | F94: 0
A95: Kingston upon Hull City of | B95: 4 | C95: 0 | D95: 1 | E95: 3 | F95: 0
A96: Kingston upon Thames | B96: 2 | C96: 0 | D96: 1 | E96: 1 | F96: 0
A97: Kirklees | B97: 8 | C97: 1 | D97: 7 | E97: 0 | F97: 0
A98: Knowsley | B98: 2 | C98: 0 | D98: 2 | E98: 0 | F98: 0
A99: Lambeth | B99: 10 | C99: 6 | D99: 4 | E99: 0 | F99: 0
A100: Lancashire | B100: 20 | C100: 7 | D100: 10 | E100: 3 | F100: 0
A101: Leeds | B101: 10 | C101: 0 | D101: 9 | E101: 1 | F101: 0
A102: Leicester | B102: 4 | C102: 0 | D102: 1 | E102: 3 | F102: 0
A103: Leicestershire | B103: 8 | C103: 0 | D103: 1 | E103: 7 | F103: 0
A104: Lewisham | B104: 3 | C104: 0 | D104: 2 | E104: 1 | F104: 0
A105: Lincolnshire | B105: 14 | C105: 2 | D105: 9 | E105: 3 | F105: 0
A106: Liverpool | B106: 8 | C106: 2 | D106: 6 | E106: 0 | F106: 0
A107: Luton | B107: 7 | C107: 1 | D107: 2 | E107: 4 | F107: 0
A108: Manchester | B108: 8 | C108: 0 | D108: 2 | E108: 6 | F108: 0
A109: Medway | B109: 5 | C109: 0 | D109: 3 | E109: 2 | F109: 0
A110: Merton | B110: 1 | C110: 0 | D110: 1 | E110: 0 | F110: 0
A111: Middlesbrough | B111: 1 | C111: 0 | D111: 1 | E111: 0 | F111: 0
A112: Milton Keynes | B112: 3 | C112: 0 | D112: 1 | E112: 2 | F112: 0
A113: Newcastle Upon Tyne | B113: 7 | C113: 1 | D113: 6 | E113: 0 | F113: 0
A114: Newham | B114: 5 | C114: 1 | D114: 4 | E114: 0 | F114: 0
A115: Norfolk | B115: 11 | C115: 1 | D115: 6 | E115: 4 | F115: 0
A116: North East Lincolnshire | B116: 3 | C116: 2 | D116: 1 | E116: 0 | F116: 0
A117: North Lincolnshire | B117: 5 | C117: 0 | D117: 5 | E117: 0 | F117: 0
A118: North Somerset | B118: 3 | C118: 0 | D118: 2 | E118: 1 | F118: 0
A119: North Tyneside | B119: 3 | C119: 2 | D119: 1 | E119: 0 | F119: 0
A120: North Yorkshire | B120: 9 | C120: 0 | D120: 2 | E120: 7 | F120: 0
A121: Northamptonshire | B121: 10 | C121: 0 | D121: 4 | E121: 5 | F121: 1
A122: Northumberland | B122: 4 | C122: 1 | D122: 3 | E122: 0 | F122: 0
A123: Nottingham | B123: 3 | C123: 0 | D123: 0 | E123: 3 | F123: 0
A124: Nottinghamshire | B124: 8 | C124: 1 | D124: 6 | E124: 1 | F124: 0
A125: Oldham | B125: 2 | C125: 0 | D125: 2 | E125: 0 | F125: 0
A126: Oxfordshire | B126: 9 | C126: 0 | D126: 7 | E126: 2 | F126: 0
A127: Peterborough | B127: 0 | C127: 0 | D127: 0 | E127: 0 | F127: 0
A128: Plymouth | B128: 3 | C128: 0 | D128: 1 | E128: 0 | F128: 2
A129: Poole | B129: 0 | C129: 0 | D129: 0 | E129: 0 | F129: 0
A130: Portsmouth | B130: 2 | C130: 0 | D130: 1 | E130: 1 | F130: 0
A131: Reading | B131: 4 | C131: 0 | D131: 4 | E131: 0 | F131: 0
A132: Redbridge | B132: 1 | C132: 0 | D132: 0 | E132: 1 | F132: 0
A133: Redcar and Cleveland | B133: 1 | C133: 0 | D133: 1 | E133: 0 | F133: 0
A134: Richmond upon Thames | B134: 1 | C134: 0 | D134: 1 | E134: 0 | F134: 0
A135: Rochdale | B135: 4 | C135: 0 | D135: 0 | E135: 4 | F135: 0
A136: Rotherham | B136: 4 | C136: 0 | D136: 4 | E136: 0 | F136: 0
A137: Rutland | B137: 0 | C137: 0 | D137: 0 | E137: 0 | F137: 0
A138: Salford | B138: 2 | C138: 0 | D138: 1 | E138: 1 | F138: 0
A139: Sandwell | B139: 8 | C139: 5 | D139: 2 | E139: 1 | F139: 0
A140: Sefton | B140: 2 | C140: 0 | D140: 2 | E140: 0 | F140: 0
A141: Sheffield | B141: 9 | C141: 0 | D141: 3 | E141: 5 | F141: 1
A142: Shropshire | B142: 3 | C142: 0 | D142: 3 | E142: 0 | F142: 0
A143: Slough | B143: 1 | C143: 0 | D143: 1 | E143: 0 | F143: 0
A144: Solihull | B144: 2 | C144: 0 | D144: 2 | E144: 0 | F144: 0
A145: Somerset | B145: 11 | C145: 0 | D145: 4 | E145: 6 | F145: 1
A146: South Gloucestershire | B146: 3 | C146: 0 | D146: 0 | E146: 3 | F146: 0
A147: South Tyneside | B147: 4 | C147: 0 | D147: 3 | E147: 1 | F147: 0
A148: Southampton | B148: 3 | C148: 2 | D148: 1 | E148: 0 | F148: 0
A149: Southend-on-Sea | B149: 3 | C149: 2 | D149: 0 | E149: 0 | F149: 1
A150: Southwark | B150: 4 | C150: 0 | D150: 2 | E150: 2 | F150: 0
A151: St. Helens | B151: 4 | C151: 0 | D151: 0 | E151: 4 | F151: 0
A152: Staffordshire | B152: 10 | C152: 0 | D152: 3 | E152: 7 | F152: 0
A153: Stockport | B153: 2 | C153: 0 | D153: 1 | E153: 1 | F153: 0
A154: Stockton-on-Tees | B154: 0 | C154: 0 | D154: 0 | E154: 0 | F154: 0
A155: Stoke-on-Trent | B155: 1 | C155: 1 | D155: 0 | E155: 0 | F155: 0
A156: Suffolk | B156: 10 | C156: 1 | D156: 6 | E156: 3 | F156: 0
A157: Sunderland | B157: 3 | C157: 0 | D157: 3 | E157: 0 | F157: 0
A158: Surrey | B158: 8 | C158: 0 | D158: 3 | E158: 5 | F158: 0
A159: Sutton | B159: 2 | C159: 0 | D159: 1 | E159: 1 | F159: 0
A160: Swindon | B160: 3 | C160: 1 | D160: 2 | E160: 0 | F160: 0
A161: Tameside | B161: 5 | C161: 0 | D161: 0 | E161: 5 | F161: 0
A162: Telford and Wrekin | B162: 1 | C162: 0 | D162: 0 | E162: 1 | F162: 0
A163: Thurrock | B163: 5 | C163: 0 | D163: 1 | E163: 3 | F163: 1
A164: Torbay | B164: 0 | C164: 0 | D164: 0 | E164: 0 | F164: 0
A165: Tower Hamlets | B165: 0 | C165: 0 | D165: 0 | E165: 0 | F165: 0
A166: Trafford | B166: 3 | C166: 0 | D166: 1 | E166: 2 | F166: 0
A167: Wakefield | B167: 4 | C167: 0 | D167: 4 | E167: 0 | F167: 0
A168: Walsall | B168: 6 | C168: 1 | D168: 2 | E168: 2 | F168: 1
A169: Waltham Forest | B169: 3 | C169: 1 | D169: 1 | E169: 0 | F169: 1
A170: Wandsworth | B170: 4 | C170: 0 | D170: 3 | E170: 1 | F170: 0
A171: Warrington | B171: 1 | C171: 0 | D171: 1 | E171: 0 | F171: 0
A172: Warwickshire | B172: 9 | C172: 3 | D172: 5 | E172: 1 | F172: 0
A173: West Berkshire | B173: 2 | C173: 0 | D173: 0 | E173: 2 | F173: 0
A174: West Sussex | B174: 8 | C174: 1 | D174: 3 | E174: 4 | F174: 0
A175: Westminster | B175: 3 | C175: 0 | D175: 2 | E175: 1 | F175: 0
A176: Wigan | B176: 4 | C176: 0 | D176: 1 | E176: 3 | F176: 0
A177: Wiltshire | B177: 9 | C177: 3 | D177: 1 | E177: 5 | F177: 0
A178: Windsor and Maidenhead | B178: 1 | C178: 0 | D178: 0 | E178: 1 | F178: 0
A179: Wirral | B179: 6 | C179: 0 | D179: 4 | E179: 2 | F179: 0
A180: Wokingham | B180: 0 | C180: 0 | D180: 0 | E180: 0 | F180: 0
A181: Wolverhampton | B181: 4 | C181: 1 | D181: 3 | E181: 0 | F181: 0
A182: Worcestershire | B182: 9 | C182: 3 | D182: 5 | E182: 1 | F182: 0
A183: York | B183: 1 | C183: 0 | D183: 1 | E183: 0 | F183: 0
B184: =SUM(B32:B183) -> 708 | C184: =SUM(C32:C183) -> 86 | D184: =SUM(D32:D183) -> 378 | E184: =SUM(E32:E183) -> 226 | F184: =SUM(F32:F183) -> 18
A185: Chart 1
B187: Outstanding | C187: Good | D187: Satisfactory | E187: Inadequate | H187: Outstanding | I187: Good | J187: Satisfactory | K187: Inadequate
A188: Overall effectiveness (708) | B188: =SUM(H188/L188*100) -> 12.14689266 | C188: =SUM(I188/L188*100) -> 53.38983051 | D188: =SUM(J188/L188*100) -> 31.92090395 | E188: =SUM(K188/L188*100) -> 2.542372881 | F188: =SUM(B188:E188) -> 100 | G188: Overall effectiveness (708) | H188: =B4 -> 86 | I188: =C4 -> 378 | J188: =D4 -> 226 | K188: =E4 -> 18 | L188: =SUM(H188:K188) -> 708
A189: How good are outcomes for users? (708) | B189: =SUM(H189/L189*100) -> 11.5819209 | C189: =SUM(I189/L189*100) -> 55.08474576 | D189: =SUM(J189/L189*100) -> 30.93220339 | E189: =SUM(K189/L189*100) -> 2.401129944 | F189: =SUM(B189:E189) -> 100 | G189: How good are outcomes for users? (708) | H189: =B6 -> 82 | I189: =C6 -> 390 | J189: =D6 -> 219 | K189: =E6 -> 17 | L189: =SUM(H189:K189) -> 708
A190: How good is the provision? (708) | B190: =SUM(H190/L190*100) -> 15.39548023 | C190: =SUM(I190/L190*100) -> 54.66101695 | D190: =SUM(J190/L190*100) -> 27.96610169 | E190: =SUM(K190/L190*100) -> 1.97740113 | F190: =SUM(B190:E190) -> 100 | G190: How good is the provision? (708) | H190: =B12 -> 109 | I190: =C12 -> 387 | J190: =D12 -> 198 | K190: =E12 -> 14 | L190: =SUM(H190:K190) -> 708
A191: How effective are the leadership and management? (708) | B191: =SUM(H191/L191*100) -> 13.27683616 | C191: =SUM(I191/L191*100) -> 53.38983051 | D191: =SUM(J191/L191*100) -> 30.93220339 | E191: =SUM(K191/L191*100) -> 2.401129944 | F191: =SUM(B191:E191) -> 100 | G191: How effective are the leadership and management? (708) | H191: =B18 -> 94 | I191: =C18 -> 378 | J191: =D18 -> 219 | K191: =E18 -> 17 | L191: =SUM(H191:K191) -> 708
A194: Chart 2
B195: Outstanding | C195: Good | D195: Satisfactory | E195: Inadequate | F195: Total
A196: 1 September 2011 - 31 August 2012 | B196: 86 | C196: 378 | D196: 226 | E196: 18 | F196: 708
A197: 1 September 2010 - 31 August 2011 | B197: 99 | C197: 419 | D197: 180 | E197: 12 | F197: =SUM(B197:E197) -> 710
B201: Outstanding | C201: Good | D201: Satisfactory | E201: Inadequate | F201: Total
A202: 1 September 2011 - 31 August 2012 (708) | B202: =B196/F196*100 -> 12.14689266 | C202: =C196/F196*100 -> 53.38983051 | D202: =D196/F196*100 -> 31.92090395 | E202: =E196/F196*100 -> 2.542372881 | F202: =SUM(B202:E202) -> 100
A203: 1 September 2010 - 31 August 2011 (710) | B203: =B197/F197*100 -> 13.94366197 | C203: =C197/F197*100 -> 59.01408451 | D203: =D197/F197*100 -> 25.35211268 | E203: =E197/F197*100 -> 1.690140845 | F203: =SUM(B203:E203) -> 100
A212: Table 5 (vlookup)
A214: Local Authority | B214: September 2011 - August 2012
A215: North East | B215: Total inspected | C215: Outstanding | D215: Good | E215: Satisfactory | F215: Inadequate
A216: Darlington | B216: =VLOOKUP(A216,$A$31:$F$183,2,0) -> 1 | C216: =VLOOKUP(A216,$A$31:$F$183,3,0) -> 0 | D216: =VLOOKUP(A216,$A$31:$F$183,4,0) -> 1 | E216: =VLOOKUP(A216,$A$31:$F$183,5,0) -> 0 | F216: =VLOOKUP(A216,$A$31:$F$183,6,0) -> 0
A217: Durham | B217: =VLOOKUP(A217,$A$31:$F$183,2,0) -> 8 | C217: 0 | D217: 2 | E217: 4 | F217: 2
A218: Gateshead | B218: 2 | C218: 0 | D218: 1 | E218: 1 | F218: 0
... 150 more rows

Sheet Table 1
B2: Table 1: Number of children's centres inspected between 1 April 2010 and 31 August 2012
C5: Full inspections
B7: All inspections since April 20101 | C7: 1457
B9: 1 September 2011 - 31 August 2012 | C9: 708
C11: Source: Ofsted Inspections
A14: 1 These are all inspections since April 2010, including 14 re-inspections

Sheet Table 2
B2: ="Table 2: Inspection outcomes of children's centres inspected " & IF('Table 2'!I4=Dates1!$B$3, "between " & Dates1!$B$3, IF('Table 2'!I4 = Dates1!B4, "in " & Dates1!B4, IF('Table 2'!I4=Dates1!B5, "in " & Dates1!B5, IF('Table 2'!I4=Dates1!B6, "in " & Dates1!B6)))) & "" & CHAR(185) -> Table 2: Inspection outcomes of children's centres inspected between 1 September 2011 and 31 August 2012¹
I4: 1 September 2011 and 31 August 2012
I6: Total number inspected | K6: Outstanding | N6: Good | Q6: Satisfactory | T6: Inadequate
K7: Number | L7: % | N7: Number | O7: % | Q7: Number | R7: % | T7: Number | U7: %
B9: The effectiveness of the children’s centre in meeting the needs of and improving outcomes for families | I9: =IF($I4="Select a quarter that matches the period from the box, right.","-",K9+N9+Q9+T9) -> 708 | K9: =IF($I$4=Dates1!$B$3,Datapack!B4,IF($I$4=Dates1!$B$4,Datapack!H4,IF($I$4=Dates1!$B$5,Datapack!N4,IF($I$4=Dates1!$B$6,Datapack!T4)))) -> 86 | L9: =K9/$I9*100 -> 12.14689266 | N9: =IF($I$4=Dates1!$B$3,Datapack!C4,IF($I$4=Dates1!$B$4,Datapack!I4,IF($I$4=Dates1!$B$5,Datapack!O4,IF($I$4=Dates1!$B$6,Datapack!U4)))) -> 378 | O9: =N9/$I9*100 -> 53.38983051 | Q9: =IF($I$4=Dates1!$B$3,Datapack!D4,IF($I$4=Dates1!$B$4,Datapack!J4,IF($I$4=Dates1!$B$5,Datapack!P4,IF($I$4=Dates1!$B$6,Datapack!V4)))) -> 226 | R9: =Q9/$I9*100 -> 31.92090395 | T9: =IF($I$4=Dates1!$B$3,Datapack!E4,IF($I$4=Dates1!$B$4,Datapack!K4,IF($I$4=Dates1!$B$5,Datapack!Q4,IF($I$4=Dates1!$B$6,Datapack!W4)))) -> 18 | U9: =T9/$I9*100 -> 2.542372881
B10: The centre’s capacity for sustained improvement, including the quality of its leadership and management | I10: =IF($I5="Select a quarter that matches the period from the box, right.","-",K10+N10+Q10+T10) -> 708 | K10: =IF($I$4=Dates1!$B$3,Datapack!B5,IF($I$4=Dates1!$B$4,Datapack!H5,IF($I$4=Dates1!$B$5,Datapack!N5,IF($I$4=Dates1!$B$6,Datapack!T5)))) -> 103 | L10: =K10/$I10*100 -> 14.5480226 | N10: =IF($I$4=Dates1!$B$3,Datapack!C5,IF($I$4=Dates1!$B$4,Datapack!I5,IF($I$4=Dates1!$B$5,Datapack!O5,IF($I$4=Dates1!$B$6,Datapack!U5)))) -> 369 | O10: =N10/$I10*100 -> 52.11864407 | Q10: =IF($I$4=Dates1!$B$3,Datapack!D5,IF($I$4=Dates1!$B$4,Datapack!J5,IF($I$4=Dates1!$B$5,Datapack!P5,IF($I$4=Dates1!$B$6,Datapack!V5)))) -> 220 | R10: =Q10/$I10*100 -> 31.07344633 | T10: =IF($I$4=Dates1!$B$3,Datapack!E5,IF($I$4=Dates1!$B$4,Datapack!K5,IF($I$4=Dates1!$B$5,Datapack!Q5,IF($I$4=Dates1!$B$6,Datapack!W5)))) -> 16 | U10: =T10/$I10*100 -> 2.259887006
B11: How good are outcomes for families? | I11: 708 | K11: =IF($I$4=Dates1!$B$3,Datapack!B6,IF($I$4=Dates1!$B$4,Datapack!H6,IF($I$4=Dates1!$B$5,Datapack!N6,IF($I$4=Dates1!$B$6,Datapack!T6)))) -> 82 | L11: 11.5819209 | N11: =IF($I$4=Dates1!$B$3,Datapack!C6,IF($I$4=Dates1!$B$4,Datapack!I6,IF($I$4=Dates1!$B$5,Datapack!O6,IF($I$4=Dates1!$B$6,Datapack!U6)))) -> 390 | O11: 55.08474576 | Q11: =IF($I$4=Dates1!$B$3,Datapack!D6,IF($I$4=Dates1!$B$4,Datapack!J6,IF($I$4=Dates1!$B$5,Datapack!P6,IF($I$4=Dates1!$B$6,Datapack!V6)))) -> 219 | R11: 30.93220339 | T11: =IF($I$4=Dates1!$B$3,Datapack!E6,IF($I$4=Dates1!$B$4,Datapack!K6,IF($I$4=Dates1!$B$5,Datapack!Q6,IF($I$4=Dates1!$B$6,Datapack!W6)))) -> 17 | U11: 2.401129944
B12: The extent to which children, including those from target groups, are physically, mentally and emotionally healthy and families have healthy lifestyles | I12: 708 | K12: =IF($I$4=Dates1!$B$3,Datapack!B7,IF($I$4=Dates1!$B$4,Datapack!H7,IF($I$4=Dates1!$B$5,Datapack!N7,IF($I$4=Dates1!$B$6,Datapack!T7)))) -> 77 | L12: 10.87570621 | N12: =IF($I$4=Dates1!$B$3,Datapack!C7,IF($I$4=Dates1!$B$4,Datapack!I7,IF($I$4=Dates1!$B$5,Datapack!O7,IF($I$4=Dates1!$B$6,Datapack!U7)))) -> 374 | O12: 52.82485876 | Q12: =IF($I$4=Dates1!$B$3,Datapack!D7,IF($I$4=Dates1!$B$4,Datapack!J7,IF($I$4=Dates1!$B$5,Datapack!P7,IF($I$4=Dates1!$B$6,Datapack!V7)))) -> 249 | R12: 35.16949153 | T12: =IF($I$4=Dates1!$B$3,Datapack!E7,IF($I$4=Dates1!$B$4,Datapack!K7,IF($I$4=Dates1!$B$5,Datapack!Q7,IF($I$4=Dates1!$B$6,Datapack!W7)))) -> 8 | U12: 1.129943503
B13: The extent to which children are safe and protected, their welfare concerns are identified and appropriate steps taken to address them | I13: 708 | K13: =IF($I$4=Dates1!$B$3,Datapack!B8,IF($I$4=Dates1!$B$4,Datapack!H8,IF($I$4=Dates1!$B$5,Datapack!N8,IF($I$4=Dates1!$B$6,Datapack!T8)))) -> 175 | L13: 24.71751412 | N13: =IF($I$4=Dates1!$B$3,Datapack!C8,IF($I$4=Dates1!$B$4,Datapack!I8,IF($I$4=Dates1!$B$5,Datapack!O8,IF($I$4=Dates1!$B$6,Datapack!U8)))) -> 416 | O13: 58.75706215 | Q13: =IF($I$4=Dates1!$B$3,Datapack!D8,IF($I$4=Dates1!$B$4,Datapack!J8,IF($I$4=Dates1!$B$5,Datapack!P8,IF($I$4=Dates1!$B$6,Datapack!V8)))) -> 109 | R13: 15.39548023 | T13: =IF($I$4=Dates1!$B$3,Datapack!E8,IF($I$4=Dates1!$B$4,Datapack!K8,IF($I$4=Dates1!$B$5,Datapack!Q8,IF($I$4=Dates1!$B$6,Datapack!W8)))) -> 8 | U13: 1.129943503
B14: The extent to which all children and parents, including those from target groups, enjoy and achieve educationally and in their personal and social development | I14: 708 | K14: =IF($I$4=Dates1!$B$3,Datapack!B9,IF($I$4=Dates1!$B$4,Datapack!H9,IF($I$4=Dates1!$B$5,Datapack!N9,IF($I$4=Dates1!$B$6,Datapack!T9)))) -> 92 | L14: 12.99435028 | N14: =IF($I$4=Dates1!$B$3,Datapack!C9,IF($I$4=Dates1!$B$4,Datapack!I9,IF($I$4=Dates1!$B$5,Datapack!O9,IF($I$4=Dates1!$B$6,Datapack!U9)))) -> 407 | O14: 57.48587571 | Q14: =IF($I$4=Dates1!$B$3,Datapack!D9,IF($I$4=Dates1!$B$4,Datapack!J9,IF($I$4=Dates1!$B$5,Datapack!P9,IF($I$4=Dates1!$B$6,Datapack!V9)))) -> 204 | R14: 28.81355932 | T14: =IF($I$4=Dates1!$B$3,Datapack!E9,IF($I$4=Dates1!$B$4,Datapack!K9,IF($I$4=Dates1!$B$5,Datapack!Q9,IF($I$4=Dates1!$B$6,Datapack!W9)))) -> 5 | U14: 0.7062146893
B15: The extent to which children engage in positive behaviour and develop positive relationships and parents, including those from target groups, contribute to decision-making and governance of the centre | I15: 708 | K15: =IF($I$4=Dates1!$B$3,Datapack!B10,IF($I$4=Dates1!$B$4,Datapack!H10,IF($I$4=Dates1!$B$5,Datapack!N10,IF($I$4=Dates1!$B$6,Datapack!T10)))) -> 105 | L15: 14.83050847 | N15: =IF($I$4=Dates1!$B$3,Datapack!C10,IF($I$4=Dates1!$B$4,Datapack!I10,IF($I$4=Dates1!$B$5,Datapack!O10,IF($I$4=Dates1!$B$6,Datapack!U10)))) -> 356 | O15: 50.28248588 | Q15: =IF($I$4=Dates1!$B$3,Datapack!D10,IF($I$4=Dates1!$B$4,Datapack!J10,IF($I$4=Dates1!$B$5,Datapack!P10,IF($I$4=Dates1!$B$6,Datapack!V10)))) -> 231 | R15: 32.62711864 | T15: =IF($I$4=Dates1!$B$3,Datapack!E10,IF($I$4=Dates1!$B$4,Datapack!K10,IF($I$4=Dates1!$B$5,Datapack!Q10,IF($I$4=Dates1!$B$6,Datapack!W10)))) -> 16 | U15: 2.259887006
B16: The extent to which children are developing skills for the future and parents, including those from target groups, are developing economic stability and independence including access to training and employment | I16: 708 | K16: =IF($I$4=Dates1!$B$3,Datapack!B11,IF($I$4=Dates1!$B$4,Datapack!H11,IF($I$4=Dates1!$B$5,Datapack!N11,IF($I$4=Dates1!$B$6,Datapack!T11)))) -> 64 | L16: 9.039548023 | N16: =IF($I$4=Dates1!$B$3,Datapack!C11,IF($I$4=Dates1!$B$4,Datapack!I11,IF($I$4=Dates1!$B$5,Datapack!O11,IF($I$4=Dates1!$B$6,Datapack!U11)))) -> 311 | O16: 43.92655367 | Q16: =IF($I$4=Dates1!$B$3,Datapack!D11,IF($I$4=Dates1!$B$4,Datapack!J11,IF($I$4=Dates1!$B$5,Datapack!P11,IF($I$4=Dates1!$B$6,Datapack!V11)))) -> 318 | R16: 44.91525424 | T16: =IF($I$4=Dates1!$B$3,Datapack!E11,IF($I$4=Dates1!$B$4,Datapack!K11,IF($I$4=Dates1!$B$5,Datapack!Q11,IF($I$4=Dates1!$B$6,Datapack!W11)))) -> 15 | U16: 2.118644068
B17: How good is the provision? | I17: 708 | K17: =IF($I$4=Dates1!$B$3,Datapack!B12,IF($I$4=Dates1!$B$4,Datapack!H12,IF($I$4=Dates1!$B$5,Datapack!N12,IF($I$4=Dates1!$B$6,Datapack!T12)))) -> 109 | L17: 15.39548023 | N17: =IF($I$4=Dates1!$B$3,Datapack!C12,IF($I$4=Dates1!$B$4,Datapack!I12,IF($I$4=Dates1!$B$5,Datapack!O12,IF($I$4=Dates1!$B$6,Datapack!U12)))) -> 387 | O17: 54.66101695 | Q17: =IF($I$4=Dates1!$B$3,Datapack!D12,IF($I$4=Dates1!$B$4,Datapack!J12,IF($I$4=Dates1!$B$5,Datapack!P12,IF($I$4=Dates1!$B$6,Datapack!V12)))) -> 198 | R17: 27.96610169 | T17: =IF($I$4=Dates1!$B$3,Datapack!E12,IF($I$4=Dates1!$B$4,Datapack!K12,IF($I$4=Dates1!$B$5,Datapack!Q12,IF($I$4=Dates1!$B$6,Datapack!W12)))) -> 14 | U17: 1.97740113
B18: The effectiveness of the assessment of the needs of children, parents and other users2 | I18: 1 | K18: =IF($I$4=Dates1!$B$3,Datapack!B13,IF($I$4=Dates1!$B$4,Datapack!H13,IF($I$4=Dates1!$B$5,Datapack!N13,IF($I$4=Dates1!$B$6,Datapack!T13)))) -> 1 | L18: 100 | N18: =IF($I$4=Dates1!$B$3,Datapack!C13,IF($I$4=Dates1!$B$4,Datapack!I13,IF($I$4=Dates1!$B$5,Datapack!O13,IF($I$4=Dates1!$B$6,Datapack!U13)))) -> 0 | O18: 0 | Q18: =IF($I$4=Dates1!$B$3,Datapack!D13,IF($I$4=Dates1!$B$4,Datapack!J13,IF($I$4=Dates1!$B$5,Datapack!P13,IF($I$4=Dates1!$B$6,Datapack!V13)))) -> 0 | R18: 0 | T18: =IF($I$4=Dates1!$B$3,Datapack!E13,IF($I$4=Dates1!$B$4,Datapack!K13,IF($I$4=Dates1!$B$5,Datapack!Q13,IF($I$4=Dates1!$B$6,Datapack!W13)))) -> 0 | U18: 0
B19: The extent to which the range of services, activities and opportunities meet the needs of families, including those in target groups2 | I19: 707 | K19: =IF($I$4=Dates1!$B$3,Datapack!B14,IF($I$4=Dates1!$B$4,Datapack!H14,IF($I$4=Dates1!$B$5,Datapack!N14,IF($I$4=Dates1!$B$6,Datapack!T14)))) -> 96 | L19: 13.57850071 | N19: =IF($I$4=Dates1!$B$3,Datapack!C14,IF($I$4=Dates1!$B$4,Datapack!I14,IF($I$4=Dates1!$B$5,Datapack!O14,IF($I$4=Dates1!$B$6,Datapack!U14)))) -> 375 | O19: 53.04101839 | Q19: =IF($I$4=Dates1!$B$3,Datapack!D14,IF($I$4=Dates1!$B$4,Datapack!J14,IF($I$4=Dates1!$B$5,Datapack!P14,IF($I$4=Dates1!$B$6,Datapack!V14)))) -> 218 | R19: 30.83451202 | T19: =IF($I$4=Dates1!$B$3,Datapack!E14,IF($I$4=Dates1!$B$4,Datapack!K14,IF($I$4=Dates1!$B$5,Datapack!Q14,IF($I$4=Dates1!$B$6,Datapack!W14)))) -> 18 | U19: 2.545968883
B20: The extent to which the centre promotes purposeful learning, development and enjoyment for all families, including those in target groups | I20: 708 | K20: =IF($I$4=Dates1!$B$3,Datapack!B15,IF($I$4=Dates1!$B$4,Datapack!H15,IF($I$4=Dates1!$B$5,Datapack!N15,IF($I$4=Dates1!$B$6,Datapack!T15)))) -> 99 | L20: 13.98305085 | N20: =IF($I$4=Dates1!$B$3,Datapack!C15,IF($I$4=Dates1!$B$4,Datapack!I15,IF($I$4=Dates1!$B$5,Datapack!O15,IF($I$4=Dates1!$B$6,Datapack!U15)))) -> 395 | O20: 55.79096045 | Q20: =IF($I$4=Dates1!$B$3,Datapack!D15,IF($I$4=Dates1!$B$4,Datapack!J15,IF($I$4=Dates1!$B$5,Datapack!P15,IF($I$4=Dates1!$B$6,Datapack!V15)))) -> 206 | R20: 29.0960452 | T20: =IF($I$4=Dates1!$B$3,Datapack!E15,IF($I$4=Dates1!$B$4,Datapack!K15,IF($I$4=Dates1!$B$5,Datapack!Q15,IF($I$4=Dates1!$B$6,Datapack!W15)))) -> 8 | U20: 1.129943503
B21: The extent to which the range of services, activities and opportunities meet the needs of users and the wider community2 | I21: 1 | K21: =IF($I$4=Dates1!$B$3,Datapack!B16,IF($I$4=Dates1!$B$4,Datapack!H16,IF($I$4=Dates1!$B$5,Datapack!N16,IF($I$4=Dates1!$B$6,Datapack!T16)))) -> 0 | L21: 0 | N21: =IF($I$4=Dates1!$B$3,Datapack!C16,IF($I$4=Dates1!$B$4,Datapack!I16,IF($I$4=Dates1!$B$5,Datapack!O16,IF($I$4=Dates1!$B$6,Datapack!U16)))) -> 1 | O21: 100 | Q21: =IF($I$4=Dates1!$B$3,Datapack!D16,IF($I$4=Dates1!$B$4,Datapack!J16,IF($I$4=Dates1!$B$5,Datapack!P16,IF($I$4=Dates1!$B$6,Datapack!V16)))) -> 0 | R21: 0 | T21: =IF($I$4=Dates1!$B$3,Datapack!E16,IF($I$4=Dates1!$B$4,Datapack!K16,IF($I$4=Dates1!$B$5,Datapack!Q16,IF($I$4=Dates1!$B$6,Datapack!W16)))) -> 0 | U21: 0
B22: The quality of care, guidance and support offered to families, including those in target groups | I22: 708 | K22: =IF($I$4=Dates1!$B$3,Datapack!B17,IF($I$4=Dates1!$B$4,Datapack!H17,IF($I$4=Dates1!$B$5,Datapack!N17,IF($I$4=Dates1!$B$6,Datapack!T17)))) -> 227 | L22: 32.06214689 | N22: =IF($I$4=Dates1!$B$3,Datapack!C17,IF($I$4=Dates1!$B$4,Datapack!I17,IF($I$4=Dates1!$B$5,Datapack!O17,IF($I$4=Dates1!$B$6,Datapack!U17)))) -> 373 | O22: 52.68361582 | Q22: =IF($I$4=Dates1!$B$3,Datapack!D17,IF($I$4=Dates1!$B$4,Datapack!J17,IF($I$4=Dates1!$B$5,Datapack!P17,IF($I$4=Dates1!$B$6,Datapack!V17)))) -> 100 | R22: 14.12429379 | T22: =IF($I$4=Dates1!$B$3,Datapack!E17,IF($I$4=Dates1!$B$4,Datapack!K17,IF($I$4=Dates1!$B$5,Datapack!Q17,IF($I$4=Dates1!$B$6,Datapack!W17)))) -> 8 | U22: 1.129943503
B23: How effective are the leadership and management? | I23: 708 | K23: =IF($I$4=Dates1!$B$3,Datapack!B18,IF($I$4=Dates1!$B$4,Datapack!H18,IF($I$4=Dates1!$B$5,Datapack!N18,IF($I$4=Dates1!$B$6,Datapack!T18)))) -> 94 | L23: 13.27683616 | N23: =IF($I$4=Dates1!$B$3,Datapack!C18,IF($I$4=Dates1!$B$4,Datapack!I18,IF($I$4=Dates1!$B$5,Datapack!O18,IF($I$4=Dates1!$B$6,Datapack!U18)))) -> 378 | O23: 53.38983051 | Q23: =IF($I$4=Dates1!$B$3,Datapack!D18,IF($I$4=Dates1!$B$4,Datapack!J18,IF($I$4=Dates1!$B$5,Datapack!P18,IF($I$4=Dates1!$B$6,Datapack!V18)))) -> 219 | R23: 30.93220339 | T23: =IF($I$4=Dates1!$B$3,Datapack!E18,IF($I$4=Dates1!$B$4,Datapack!K18,IF($I$4=Dates1!$B$5,Datapack!Q18,IF($I$4=Dates1!$B$6,Datapack!W18)))) -> 17 | U23: 2.401129944
B24: The extent to which governance, accountability, professional supervision and day-to-day management arrangements are clear and understood | I24: 708 | K24: =IF($I$4=Dates1!$B$3,Datapack!B19,IF($I$4=Dates1!$B$4,Datapack!H19,IF($I$4=Dates1!$B$5,Datapack!N19,IF($I$4=Dates1!$B$6,Datapack!T19)))) -> 90 | L24: 12.71186441 | N24: =IF($I$4=Dates1!$B$3,Datapack!C19,IF($I$4=Dates1!$B$4,Datapack!I19,IF($I$4=Dates1!$B$5,Datapack!O19,IF($I$4=Dates1!$B$6,Datapack!U19)))) -> 361 | O24: 50.98870056 | Q24: =IF($I$4=Dates1!$B$3,Datapack!D19,IF($I$4=Dates1!$B$4,Datapack!J19,IF($I$4=Dates1!$B$5,Datapack!P19,IF($I$4=Dates1!$B$6,Datapack!V19)))) -> 240 | R24: 33.89830508 | T24: =IF($I$4=Dates1!$B$3,Datapack!E19,IF($I$4=Dates1!$B$4,Datapack!K19,IF($I$4=Dates1!$B$5,Datapack!Q19,IF($I$4=Dates1!$B$6,Datapack!W19)))) -> 17 | U24: 2.401129944
B25: The effectiveness of evaluation and its use in setting ambitious targets which secure improvement in outcomes2 | I25: =IF($I20="Select a quarter that matches the period from the box, right.","-",K25+N25+Q25+T25) -> 707 | K25: =IF($I$4=Dates1!$B$3,Datapack!B20,IF($I$4=Dates1!$B$4,Datapack!H20,IF($I$4=Dates1!$B$5,Datapack!N20,IF($I$4=Dates1!$B$6,Datapack!T20)))) -> 97 | L25: 13.71994342 | N25: =IF($I$4=Dates1!$B$3,Datapack!C20,IF($I$4=Dates1!$B$4,Datapack!I20,IF($I$4=Dates1!$B$5,Datapack!O20,IF($I$4=Dates1!$B$6,Datapack!U20)))) -> 325 | O25: 45.9688826 | Q25: =IF($I$4=Dates1!$B$3,Datapack!D20,IF($I$4=Dates1!$B$4,Datapack!J20,IF($I$4=Dates1!$B$5,Datapack!P20,IF($I$4=Dates1!$B$6,Datapack!V20)))) -> 267 | R25: 37.76520509 | T25: =IF($I$4=Dates1!$B$3,Datapack!E20,IF($I$4=Dates1!$B$4,Datapack!K20,IF($I$4=Dates1!$B$5,Datapack!Q20,IF($I$4=Dates1!$B$6,Datapack!W20)))) -> 18 | U25: 2.545968883
B26: The extent to which ambitious targets drive improvement, provision is integrated and there are high expectations for users and the wider community2 | I26: 1 | K26: =IF($I$4=Dates1!$B$3,Datapack!B21,IF($I$4=Dates1!$B$4,Datapack!H21,IF($I$4=Dates1!$B$5,Datapack!N21,IF($I$4=Dates1!$B$6,Datapack!T1)))) -> 0 | L26: 0 | N26: =IF($I$4=Dates1!$B$3,Datapack!C21,IF($I$4=Dates1!$B$4,Datapack!I21,IF($I$4=Dates1!$B$5,Datapack!O21,IF($I$4=Dates1!$B$6,Datapack!U21)))) -> 1 | O26: 100 | Q26: =IF($I$4=Dates1!$B$3,Datapack!D21,IF($I$4=Dates1!$B$4,Datapack!J21,IF($I$4=Dates1!$B$5,Datapack!P21,IF($I$4=Dates1!$B$6,Datapack!V21)))) -> 0 | R26: 0 | T26: =IF($I$4=Dates1!$B$3,Datapack!E21,IF($I$4=Dates1!$B$4,Datapack!K21,IF($I$4=Dates1!$B$5,Datapack!Q21,IF($I$4=Dates1!$B$6,Datapack!W21)))) -> 0 | U26: 0
B27: The extent to which resources are used and managed efficiently and effectively to meet the needs of families, including those in target groups | I27: 708 | K27: =IF($I$4=Dates1!$B$3,Datapack!B22,IF($I$4=Dates1!$B$4,Datapack!H22,IF($I$4=Dates1!$B$5,Datapack!N22,IF($I$4=Dates1!$B$6,Datapack!T22)))) -> 119 | L27: 16.8079096 | N27: =IF($I$4=Dates1!$B$3,Datapack!C22,IF($I$4=Dates1!$B$4,Datapack!I22,IF($I$4=Dates1!$B$5,Datapack!O22,IF($I$4=Dates1!$B$6,Datapack!U22)))) -> 350 | O27: 49.43502825 | Q27: =IF($I$4=Dates1!$B$3,Datapack!D22,IF($I$4=Dates1!$B$4,Datapack!J22,IF($I$4=Dates1!$B$5,Datapack!P22,IF($I$4=Dates1!$B$6,Datapack!V22)))) -> 222 | R27: 31.3559322 | T27: =IF($I$4=Dates1!$B$3,Datapack!E22,IF($I$4=Dates1!$B$4,Datapack!K22,IF($I$4=Dates1!$B$5,Datapack!Q22,IF($I$4=Dates1!$B$6,Datapack!W22)))) -> 17 | U27: 2.401129944
B28: The extent to which equality is promoted and diversity celebrated, illegal or unlawful discrimination is tackled and the centre fulfils its statutory duties | I28: 708 | K28: =IF($I$4=Dates1!$B$3,Datapack!B23,IF($I$4=Dates1!$B$4,Datapack!H23,IF($I$4=Dates1!$B$5,Datapack!N23,IF($I$4=Dates1!$B$6,Datapack!T23)))) -> 99 | L28: 13.98305085 | N28: =IF($I$4=Dates1!$B$3,Datapack!C23,IF($I$4=Dates1!$B$4,Datapack!I23,IF($I$4=Dates1!$B$5,Datapack!O23,IF($I$4=Dates1!$B$6,Datapack!U23)))) -> 383 | O28: 54.0960452 | Q28: =IF($I$4=Dates1!$B$3,Datapack!D23,IF($I$4=Dates1!$B$4,Datapack!J23,IF($I$4=Dates1!$B$5,Datapack!P23,IF($I$4=Dates1!$B$6,Datapack!V23)))) -> 212 | R28: 29.94350282 | T28: =IF($I$4=Dates1!$B$3,Datapack!E23,IF($I$4=Dates1!$B$4,Datapack!K23,IF($I$4=Dates1!$B$5,Datapack!Q23,IF($I$4=Dates1!$B$6,Datapack!W23)))) -> 14 | U28: 1.97740113
B29: The effectiveness of the centre’s policy, procedures and work with key agencies in safeguarding children and, where applicable, vulnerable adults | I29: 708 | K29: =IF($I$4=Dates1!$B$3,Datapack!B24,IF($I$4=Dates1!$B$4,Datapack!H24,IF($I$4=Dates1!$B$5,Datapack!N24,IF($I$4=Dates1!$B$6,Datapack!T24)))) -> 200 | L29: 28.24858757 | N29: =IF($I$4=Dates1!$B$3,Datapack!C24,IF($I$4=Dates1!$B$4,Datapack!I24,IF($I$4=Dates1!$B$5,Datapack!O24,IF($I$4=Dates1!$B$6,Datapack!U24)))) -> 404 | O29: 57.06214689 | Q29: =IF($I$4=Dates1!$B$3,Datapack!D24,IF($I$4=Dates1!$B$4,Datapack!J24,IF($I$4=Dates1!$B$5,Datapack!P24,IF($I$4=Dates1!$B$6,Datapack!V24)))) -> 97 | R29: 13.70056497 | T29: =IF($I$4=Dates1!$B$3,Datapack!E24,IF($I$4=Dates1!$B$4,Datapack!K24,IF($I$4=Dates1!$B$5,Datapack!Q24,IF($I$4=Dates1!$B$6,Datapack!W24)))) -> 7 | U29: 0.988700565
B30: The extent to which evaluation is used to shape and improve services and activities2 | I30: 1 | K30: =IF($I$4=Dates1!$B$3,Datapack!B25,IF($I$4=Dates1!$B$4,Datapack!H25,IF($I$4=Dates1!$B$5,Datapack!N25,IF($I$4=Dates1!$B$6,Datapack!T25)))) -> 0 | L30: 0 | N30: =IF($I$4=Dates1!$B$3,Datapack!C25,IF($I$4=Dates1!$B$4,Datapack!I25,IF($I$4=Dates1!$B$5,Datapack!O25,IF($I$4=Dates1!$B$6,Datapack!U25)))) -> 1 | O30: 100 | Q30: =IF($I$4=Dates1!$B$3,Datapack!D25,IF($I$4=Dates1!$B$4,Datapack!J25,IF($I$4=Dates1!$B$5,Datapack!P25,IF($I$4=Dates1!$B$6,Datapack!V25)))) -> 0 | R30: 0 | T30: =IF($I$4=Dates1!$B$3,Datapack!E25,IF($I$4=Dates1!$B$4,Datapack!K25,IF($I$4=Dates1!$B$5,Datapack!Q25,IF($I$4=Dates1!$B$6,Datapack!W25)))) -> 0 | U30: 0
B31: The extent to which partnerships with other agencies ensure the integrated delivery of the range of services provided by the centre to meet its core purpose | I31: 708 | K31: =IF($I$4=Dates1!$B$3,Datapack!B26,IF($I$4=Dates1!$B$4,Datapack!H26,IF($I$4=Dates1!$B$5,Datapack!N26,IF($I$4=Dates1!$B$6,Datapack!T26)))) -> 162 | L31: 22.88135593 | N31: =IF($I$4=Dates1!$B$3,Datapack!C26,IF($I$4=Dates1!$B$4,Datapack!I26,IF($I$4=Dates1!$B$5,Datapack!O26,IF($I$4=Dates1!$B$6,Datapack!U26)))) -> 362 | O31: 51.1299435 | Q31: =IF($I$4=Dates1!$B$3,Datapack!D26,IF($I$4=Dates1!$B$4,Datapack!J26,IF($I$4=Dates1!$B$5,Datapack!P26,IF($I$4=Dates1!$B$6,Datapack!V26)))) -> 174 | R31: 24.57627119 | T31: =IF($I$4=Dates1!$B$3,Datapack!E26,IF($I$4=Dates1!$B$4,Datapack!K26,IF($I$4=Dates1!$B$5,Datapack!Q26,IF($I$4=Dates1!$B$6,Datapack!W26)))) -> 10 | U31: 1.412429379
B32: The extent to which the centre supports and encourages families in the reach area to engage with services and uses their views to develop the range of provision | I32: 708 | K32: =IF($I$4=Dates1!$B$3,Datapack!B27,IF($I$4=Dates1!$B$4,Datapack!H27,IF($I$4=Dates1!$B$5,Datapack!N27,IF($I$4=Dates1!$B$6,Datapack!T27)))) -> 100 | L32: 14.12429379 | N32: =IF($I$4=Dates1!$B$3,Datapack!C27,IF($I$4=Dates1!$B$4,Datapack!I27,IF($I$4=Dates1!$B$5,Datapack!O27,IF($I$4=Dates1!$B$6,Datapack!U27)))) -> 350 | O32: 49.43502825 | Q32: =IF($I$4=Dates1!$B$3,Datapack!D27,IF($I$4=Dates1!$B$4,Datapack!J27,IF($I$4=Dates1!$B$5,Datapack!P27,IF($I$4=Dates1!$B$6,Datapack!V27)))) -> 246 | R32: 34.74576271 | T32: =IF($I$4=Dates1!$B$3,Datapack!E27,IF($I$4=Dates1!$B$4,Datapack!K27,IF($I$4=Dates1!$B$5,Datapack!Q27,IF($I$4=Dates1!$B$6,Datapack!W27)))) -> 12 | U32: 1.694915254
R33: Source: Ofsted Inspections
B34: 1. Percentages are rounded and may not add to 100.
B35: 2. One inspection began in August and ended in September 2011. Although the inspection was completed in September, outcomes were recorded against 4 judgements that were no longer part of the inspection framework after 1 September 2011 and 2 new outcomes included after 1 September 2011 were not judged. Several re-worded judgements were amalgamated.

Sheet Table 3
B2: Table 3: Most recent inspection outcomes of children's centres as at 31 August 20121 2
I5: Total number inspected | K5: Outstanding | N5: Good | Q5: Satisfactory | T5: Inadequate
K6: Number | L6: % | N6: Number | O6: % | Q6: Number | R6: % | T6: Number | U6: %
B8: The effectiveness of the children’s centre in meeting the needs of and improving outcomes for families | I8: =SUM(K8+N8+Q8+T8) -> 1443 | K8: 190 | L8: =SUM(K8/I8*100) -> 13.16701317 | N8: 814 | O8: =SUM(N8/I8*100) -> 56.41025641 | Q8: 419 | R8: =SUM(Q8/I8*100) -> 29.03672904 | T8: 20 | U8: =SUM(T8/I8*100) -> 1.386001386
B9: The centre’s capacity for sustained improvement, including the quality of its leadership and management | I9: =SUM(K9+N9+Q9+T9) -> 1443 | K9: 221 | L9: =SUM(K9/I9*100) -> 15.31531532 | N9: 804 | O9: =SUM(N9/I9*100) -> 55.71725572 | Q9: 398 | R9: =SUM(Q9/I9*100) -> 27.58142758 | T9: 20 | U9: =SUM(T9/I9*100) -> 1.386001386
B10: How good are outcomes for families? | I10: 1443 | K10: 182 | L10: 12.61261261 | N10: 857 | O10: 59.39015939 | Q10: 387 | R10: 26.81912682 | T10: 17 | U10: 1.178101178
B11: The extent to which children, including those from target groups, are physically, mentally and emotionally healthy and families have healthy lifestyles | I11: 1443 | K11: 199 | L11: 13.79071379 | N11: 824 | O11: 57.1032571 | Q11: 412 | R11: 28.55162855 | T11: 8 | U11: 0.5544005544
B12: The extent to which children are safe and protected, their welfare concerns are identified and appropriate steps taken to address them | I12: 1443 | K12: 349 | L12: 24.18572419 | N12: 887 | O12: 61.46916147 | Q12: 199 | R12: 13.79071379 | T12: 8 | U12: 0.5544005544
B13: The extent to which all children and parents, including those from target groups, enjoy and achieve educationally and in their personal and social development | I13: 1443 | K13: 209 | L13: 14.48371448 | N13: 883 | O13: 61.19196119 | Q13: 346 | R13: 23.97782398 | T13: 5 | U13: 0.3465003465
B14: The extent to which children engage in positive behaviour and develop positive relationships and parents, including those from target groups, contribute to decision-making and governance of the centre | I14: 1443 | K14: 237 | L14: 16.42411642 | N14: 769 | O14: 53.29175329 | Q14: 419 | R14: 29.03672904 | T14: 18 | U14: 1.247401247
B15: The extent to which children are developing skills for the future and parents, including those from target groups, are developing economic stability and independence including access to training and employment | I15: 1443 | K15: 145 | L15: 10.04851005 | N15: 715 | O15: 49.54954955 | Q15: 568 | R15: 39.36243936 | T15: 15 | U15: 1.03950104
B16: How good is the provision? | I16: 1443 | K16: 233 | L16: 16.14691615 | N16: 830 | O16: 57.51905752 | Q16: 365 | R16: 25.29452529 | T16: 15 | U16: 1.03950104
A17: 4 | B17: The effectiveness of the assessment of the needs of children, parents and other users | I17: 737 | K17: 169 | L17: 22.93080054 | N17: 400 | O17: 54.27408412 | Q17: 166 | R17: 22.52374491 | T17: 2 | U17: 0.2713704206
A18: 3 | B18: The extent to which the range of services, activities and opportunities meet the needs of families, including those in target groups | I18: 706 | K18: 96 | L18: 13.59773371 | N18: 375 | O18: 53.11614731 | Q18: 218 | R18: 30.87818697 | T18: 17 | U18: 2.407932011
B19: The extent to which the centre promotes purposeful learning, development and enjoyment for all families, including those in target groups | I19: 1443 | K19: 210 | L19: 14.55301455 | N19: 878 | O19: 60.84546085 | Q19: 347 | R19: 24.04712405 | T19: 8 | U19: 0.5544005544
A20: 4 | B20: The extent to which the range of services, activities and opportunities meet the needs of users and the wider community | I20: 737 | K20: 124 | L20: 16.82496608 | N20: 412 | O20: 55.90230665 | Q20: 198 | R20: 26.86567164 | T20: 3 | U20: 0.4070556309
B21: The quality of care, guidance and support offered to families, including those in target groups | I21: 1443 | K21: 493 | L21: 34.16493416 | N21: 758 | O21: 52.52945253 | Q21: 185 | R21: 12.82051282 | T21: 7 | U21: 0.4851004851
B22: How effective are the leadership and management? | I22: 1443 | K22: 210 | L22: 14.55301455 | N22: 811 | O22: 56.2023562 | Q22: 403 | R22: 27.92792793 | T22: 19 | U22: 1.316701317
B23: The extent to which governance, accountability, professional supervision and day-to-day management arrangements are clear and understood | I23: 1443 | K23: 210 | L23: 14.55301455 | N23: 769 | O23: 53.29175329 | Q23: 438 | R23: 30.35343035 | T23: 26 | U23: 1.801801802
A24: 3 | B24: The effectiveness of evaluation and its use in setting ambitious targets which secure improvement in outcomes | I24: 706 | K24: 97 | L24: 13.73937677 | N24: 325 | O24: 46.03399433 | Q24: 267 | R24: 37.81869688 | T24: 17 | U24: 2.407932011
A25: 4 | B25: The extent to which ambitious targets drive improvement, provision is integrated and there are high expectations for users and the wider community | I25: 737 | K25: 127 | L25: 17.23202171 | N25: 392 | O25: 53.18860244 | Q25: 212 | R25: 28.76526459 | T25: 6 | U25: 0.8141112619
B26: The extent to which resources are used and managed efficiently and effectively to meet the needs of families, including those in target groups | I26: 1443 | K26: 261 | L26: 18.08731809 | N26: 759 | O26: 52.5987526 | Q26: 405 | R26: 28.06652807 | T26: 18 | U26: 1.247401247
B27: The extent to which equality is promoted and diversity celebrated, illegal or unlawful discrimination is tackled and the centre fulfils its statutory duties | I27: 1443 | K27: 213 | L27: 14.76091476 | N27: 814 | O27: 56.41025641 | Q27: 402 | R27: 27.85862786 | T27: 14 | U27: 0.9702009702
B28: The effectiveness of the centre’s policy, procedures and work with key agencies in safeguarding children and, where applicable, vulnerable adults | I28: 1443 | K28: 399 | L28: 27.65072765 | N28: 843 | O28: 58.41995842 | Q28: 192 | R28: 13.30561331 | T28: 9 | U28: 0.6237006237
A29: 4 | B29: The extent to which evaluation is used to shape and improve services and activities | I29: 737 | K29: 98 | L29: 13.29715061 | N29: 349 | O29: 47.3541384 | Q29: 280 | R29: 37.99185889 | T29: 10 | U29: 1.356852103
B30: The extent to which partnerships with other agencies ensure the integrated delivery of the range of services provided by the centre to meet its core purpose | I30: 1443 | K30: 393 | L30: 27.23492723 | N30: 727 | O30: 50.38115038 | Q30: 310 | R30: 21.48302148 | T30: 13 | U30: 0.9009009009
B31: The extent to which the centre supports and encourages families in the reach area to engage with services and uses their views to develop the range of provision | I31: 1443 | K31: 220 | L31: 15.24601525 | N31: 754 | O31: 52.25225225 | Q31: 451 | R31: 31.25433125 | T31: 18 | U31: 1.247401247
R32: Source: Ofsted Inspections
B33: 1. Percentages are rounded and may not add to 100.
B34: 2. Wording of some judgements refreshed on 1 September 2011 but the criteria for assessing them is unchanged. Data are amalgamated for inspections conducted before and after this date.
B35: 3. Judgement only made at inspections since 1 September 2011.
B36: 4. Judgement only made at inspections between 1 April 2010 and 31 August 2011.

Sheet Table 4
B2: Table 4: Overall effectiveness of children's centres inspected over two inspection years
C5: Total number inspected | E5: Outstanding | H5: Good | K5: Satisfactory | N5: Inadequate
E6: Number | F6: % | H6: Number | I6: % | K6: Number | L6: % | N6: Number | O6: %
B8: 1 September 2011 and 31 August 2012 | C8: 708 | E8: 86 | F8: =E8/C8*100 -> 12.14689266 | H8: 378 | I8: =H8/C8*100 -> 53.38983051 | K8: 226 | L8: =K8/C8*100 -> 31.92090395 | N8: 18 | O8: =N8/C8*100 -> 2.542372881
B11: 1 September 2010 and 31 August 2011 | C11: 710 | E11: 99 | F11: =E11/C11*100 -> 13.94366197 | H11: 419 | I11: =H11/C11*100 -> 59.01408451 | K11: 180 | L11: =K11/C11*100 -> 25.35211268 | N11: 12 | O11: =N11/C11*100 -> 1.690140845
L13: Source: Ofsted Inspections

Sheet Table 5
B2: ="Table 5: Overall effectiveness of children's centres inspected "&IF('Table 5'!G4=Dates1!$B$3,"between "&Dates1!$B$3,IF('Table 5'!G4=Dates1!B4,"in "&Dates1!B4,IF('Table 5'!G4=Dates1!B5,"in "&Dates1!B5,IF('Table 5'!G4=Dates1!B6,"in "&Dates1!B6))))&", by local authority"&""&CHAR(185)&"" -> Table 5: Overall effectiveness of children's centres inspected between 1 September 2011 and 31 August 2012, by local authority¹
G4: 1 September 2011 and 31 August 2012
F6: Total number inspected | H6: Outstanding | J6: Good | L6: Satisfactory | N6: Inadequate
B8: ENGLAND | F8: =SUM(F10+F24+F49+F66+F77+F93+F106+F141+F162) -> 708 | H8: =SUM(H10+H24+H49+H66+H77+H93+H106+H141+H162) -> 86 | J8: 378 | L8: 226 | N8: 18
B10: NORTH EAST | F10: =SUM(F11:F22) -> 36 | H10: =SUM(H11:H22) -> 4 | J10: =SUM(J11:J22) -> 24 | L10: =SUM(L11:L22) -> 6 | N10: =SUM(N11:N22) -> 2
B11: Darlington | F11: =IF($G$4=Dates1!$B$3,Datapack!B216,IF($G$4=Dates1!$B$4,Datapack!H216,IF($G$4=Dates1!$B$5,Datapack!N216,IF($G$4=Dates1!$B$6,Datapack!T216,)))) -> 1 | H11: =IF($G$4=Dates1!$B$3,Datapack!C216,IF($G$4=Dates1!$B$4,Datapack!I216,IF($G$4=Dates1!$B$5,Datapack!O216,IF($G$4=Dates1!$B$6,Datapack!U216,)))) -> 0 | J11: =IF($G$4=Dates1!$B$3,Datapack!D216,IF($G$4=Dates1!$B$4,Datapack!J216,IF($G$4=Dates1!$B$5,Datapack!P216,IF($G$4=Dates1!$B$6,Datapack!V216,)))) -> 1 | L11: =IF($G$4=Dates1!$B$3,Datapack!E216,IF($G$4=Dates1!$B$4,Datapack!K216,IF($G$4=Dates1!$B$5,Datapack!Q216,IF($G$4=Dates1!$B$6,Datapack!W216,)))) -> 0 | N11: =IF($G$4=Dates1!$B$3,Datapack!F216,IF($G$4=Dates1!$B$4,Datapack!L216,IF($G$4=Dates1!$B$5,Datapack!R216,IF($G$4=Dates1!$B$6,Datapack!X216,)))) -> 0
B12: Durham | F12: =IF($G$4=Dates1!$B$3,Datapack!B217,IF($G$4=Dates1!$B$4,Datapack!H217,IF($G$4=Dates1!$B$5,Datapack!N217,IF($G$4=Dates1!$B$6,Datapack!T217,)))) -> 8 | H12: =IF($G$4=Dates1!$B$3,Datapack!C217,IF($G$4=Dates1!$B$4,Datapack!I217,IF($G$4=Dates1!$B$5,Datapack!O217,IF($G$4=Dates1!$B$6,Datapack!U217,)))) -> 0 | J12: =IF($G$4=Dates1!$B$3,Datapack!D217,IF($G$4=Dates1!$B$4,Datapack!J217,IF($G$4=Dates1!$B$5,Datapack!P217,IF($G$4=Dates1!$B$6,Datapack!V217,)))) -> 2 | L12: =IF($G$4=Dates1!$B$3,Datapack!E217,IF($G$4=Dates1!$B$4,Datapack!K217,IF($G$4=Dates1!$B$5,Datapack!Q217,IF($G$4=Dates1!$B$6,Datapack!W217,)))) -> 4 | N12: =IF($G$4=Dates1!$B$3,Datapack!F217,IF($G$4=Dates1!$B$4,Datapack!L217,IF($G$4=Dates1!$B$5,Datapack!R217,IF($G$4=Dates1!$B$6,Datapack!X217,)))) -> 2
B13: Gateshead | F13: =IF($G$4=Dates1!$B$3,Datapack!B218,IF($G$4=Dates1!$B$4,Datapack!H218,IF($G$4=Dates1!$B$5,Datapack!N218,IF($G$4=Dates1!$B$6,Datapack!T218,)))) -> 2 | H13: =IF($G$4=Dates1!$B$3,Datapack!C218,IF($G$4=Dates1!$B$4,Datapack!I218,IF($G$4=Dates1!$B$5,Datapack!O218,IF($G$4=Dates1!$B$6,Datapack!U218,)))) -> 0 | J13: =IF($G$4=Dates1!$B$3,Datapack!D218,IF($G$4=Dates1!$B$4,Datapack!J218,IF($G$4=Dates1!$B$5,Datapack!P218,IF($G$4=Dates1!$B$6,Datapack!V218,)))) -> 1 | L13: =IF($G$4=Dates1!$B$3,Datapack!E218,IF($G$4=Dates1!$B$4,Datapack!K218,IF($G$4=Dates1!$B$5,Datapack!Q218,IF($G$4=Dates1!$B$6,Datapack!W218,)))) -> 1 | N13: =IF($G$4=Dates1!$B$3,Datapack!F218,IF($G$4=Dates1!$B$4,Datapack!L218,IF($G$4=Dates1!$B$5,Datapack!R218,IF($G$4=Dates1!$B$6,Datapack!X218,)))) -> 0
B14: Hartlepool | F14: =IF($G$4=Dates1!$B$3,Datapack!B219,IF($G$4=Dates1!$B$4,Datapack!H219,IF($G$4=Dates1!$B$5,Datapack!N219,IF($G$4=Dates1!$B$6,Datapack!T219,)))) -> 2 | H14: =IF($G$4=Dates1!$B$3,Datapack!C219,IF($G$4=Dates1!$B$4,Datapack!I219,IF($G$4=Dates1!$B$5,Datapack!O219,IF($G$4=Dates1!$B$6,Datapack!U219,)))) -> 0 | J14: =IF($G$4=Dates1!$B$3,Datapack!D219,IF($G$4=Dates1!$B$4,Datapack!J219,IF($G$4=Dates1!$B$5,Datapack!P219,IF($G$4=Dates1!$B$6,Datapack!V219,)))) -> 2 | L14: =IF($G$4=Dates1!$B$3,Datapack!E219,IF($G$4=Dates1!$B$4,Datapack!K219,IF($G$4=Dates1!$B$5,Datapack!Q219,IF($G$4=Dates1!$B$6,Datapack!W219,)))) -> 0 | N14: =IF($G$4=Dates1!$B$3,Datapack!F219,IF($G$4=Dates1!$B$4,Datapack!L219,IF($G$4=Dates1!$B$5,Datapack!R219,IF($G$4=Dates1!$B$6,Datapack!X219,)))) -> 0
B15: Middlesbrough | F15: =IF($G$4=Dates1!$B$3,Datapack!B220,IF($G$4=Dates1!$B$4,Datapack!H220,IF($G$4=Dates1!$B$5,Datapack!N220,IF($G$4=Dates1!$B$6,Datapack!T220,)))) -> 1 | H15: =IF($G$4=Dates1!$B$3,Datapack!C220,IF($G$4=Dates1!$B$4,Datapack!I220,IF($G$4=Dates1!$B$5,Datapack!O220,IF($G$4=Dates1!$B$6,Datapack!U220,)))) -> 0 | J15: =IF($G$4=Dates1!$B$3,Datapack!D220,IF($G$4=Dates1!$B$4,Datapack!J220,IF($G$4=Dates1!$B$5,Datapack!P220,IF($G$4=Dates1!$B$6,Datapack!V220,)))) -> 1 | L15: =IF($G$4=Dates1!$B$3,Datapack!E220,IF($G$4=Dates1!$B$4,Datapack!K220,IF($G$4=Dates1!$B$5,Datapack!Q220,IF($G$4=Dates1!$B$6,Datapack!W220,)))) -> 0 | N15: =IF($G$4=Dates1!$B$3,Datapack!F220,IF($G$4=Dates1!$B$4,Datapack!L220,IF($G$4=Dates1!$B$5,Datapack!R220,IF($G$4=Dates1!$B$6,Datapack!X220,)))) -> 0
B16: Newcastle upon Tyne | F16: =IF($G$4=Dates1!$B$3,Datapack!B221,IF($G$4=Dates1!$B$4,Datapack!H221,IF($G$4=Dates1!$B$5,Datapack!N221,IF($G$4=Dates1!$B$6,Datapack!T221,)))) -> 7 | H16: =IF($G$4=Dates1!$B$3,Datapack!C221,IF($G$4=Dates1!$B$4,Datapack!I221,IF($G$4=Dates1!$B$5,Datapack!O221,IF($G$4=Dates1!$B$6,Datapack!U221,)))) -> 1 | J16: =IF($G$4=Dates1!$B$3,Datapack!D221,IF($G$4=Dates1!$B$4,Datapack!J221,IF($G$4=Dates1!$B$5,Datapack!P221,IF($G$4=Dates1!$B$6,Datapack!V221,)))) -> 6 | L16: =IF($G$4=Dates1!$B$3,Datapack!E221,IF($G$4=Dates1!$B$4,Datapack!K221,IF($G$4=Dates1!$B$5,Datapack!Q221,IF($G$4=Dates1!$B$6,Datapack!W221,)))) -> 0 | N16: =IF($G$4=Dates1!$B$3,Datapack!F221,IF($G$4=Dates1!$B$4,Datapack!L221,IF($G$4=Dates1!$B$5,Datapack!R221,IF($G$4=Dates1!$B$6,Datapack!X221,)))) -> 0
B17: North Tyneside | F17: =IF($G$4=Dates1!$B$3,Datapack!B222,IF($G$4=Dates1!$B$4,Datapack!H222,IF($G$4=Dates1!$B$5,Datapack!N222,IF($G$4=Dates1!$B$6,Datapack!T222,)))) -> 3 | H17: =IF($G$4=Dates1!$B$3,Datapack!C222,IF($G$4=Dates1!$B$4,Datapack!I222,IF($G$4=Dates1!$B$5,Datapack!O222,IF($G$4=Dates1!$B$6,Datapack!U222,)))) -> 2 | J17: =IF($G$4=Dates1!$B$3,Datapack!D222,IF($G$4=Dates1!$B$4,Datapack!J222,IF($G$4=Dates1!$B$5,Datapack!P222,IF($G$4=Dates1!$B$6,Datapack!V222,)))) -> 1 | L17: =IF($G$4=Dates1!$B$3,Datapack!E222,IF($G$4=Dates1!$B$4,Datapack!K222,IF($G$4=Dates1!$B$5,Datapack!Q222,IF($G$4=Dates1!$B$6,Datapack!W222,)))) -> 0 | N17: =IF($G$4=Dates1!$B$3,Datapack!F222,IF($G$4=Dates1!$B$4,Datapack!L222,IF($G$4=Dates1!$B$5,Datapack!R222,IF($G$4=Dates1!$B$6,Datapack!X222,)))) -> 0
B18: Northumberland | F18: =IF($G$4=Dates1!$B$3,Datapack!B223,IF($G$4=Dates1!$B$4,Datapack!H223,IF($G$4=Dates1!$B$5,Datapack!N223,IF($G$4=Dates1!$B$6,Datapack!T223,)))) -> 4 | H18: =IF($G$4=Dates1!$B$3,Datapack!C223,IF($G$4=Dates1!$B$4,Datapack!I223,IF($G$4=Dates1!$B$5,Datapack!O223,IF($G$4=Dates1!$B$6,Datapack!U223,)))) -> 1 | J18: =IF($G$4=Dates1!$B$3,Datapack!D223,IF($G$4=Dates1!$B$4,Datapack!J223,IF($G$4=Dates1!$B$5,Datapack!P223,IF($G$4=Dates1!$B$6,Datapack!V223,)))) -> 3 | L18: =IF($G$4=Dates1!$B$3,Datapack!E223,IF($G$4=Dates1!$B$4,Datapack!K223,IF($G$4=Dates1!$B$5,Datapack!Q223,IF($G$4=Dates1!$B$6,Datapack!W223,)))) -> 0 | N18: =IF($G$4=Dates1!$B$3,Datapack!F223,IF($G$4=Dates1!$B$4,Datapack!L223,IF($G$4=Dates1!$B$5,Datapack!R223,IF($G$4=Dates1!$B$6,Datapack!X223,)))) -> 0
B19: Redcar and Cleveland | F19: =IF($G$4=Dates1!$B$3,Datapack!B224,IF($G$4=Dates1!$B$4,Datapack!H224,IF($G$4=Dates1!$B$5,Datapack!N224,IF($G$4=Dates1!$B$6,Datapack!T224,)))) -> 1 | H19: =IF($G$4=Dates1!$B$3,Datapack!C224,IF($G$4=Dates1!$B$4,Datapack!I224,IF($G$4=Dates1!$B$5,Datapack!O224,IF($G$4=Dates1!$B$6,Datapack!U224,)))) -> 0 | J19: =IF($G$4=Dates1!$B$3,Datapack!D224,IF($G$4=Dates1!$B$4,Datapack!J224,IF($G$4=Dates1!$B$5,Datapack!P224,IF($G$4=Dates1!$B$6,Datapack!V224,)))) -> 1 | L19: =IF($G$4=Dates1!$B$3,Datapack!E224,IF($G$4=Dates1!$B$4,Datapack!K224,IF($G$4=Dates1!$B$5,Datapack!Q224,IF($G$4=Dates1!$B$6,Datapack!W224,)))) -> 0 | N19: =IF($G$4=Dates1!$B$3,Datapack!F224,IF($G$4=Dates1!$B$4,Datapack!L224,IF($G$4=Dates1!$B$5,Datapack!R224,IF($G$4=Dates1!$B$6,Datapack!X224,)))) -> 0
B20: South Tyneside | F20: =IF($G$4=Dates1!$B$3,Datapack!B225,IF($G$4=Dates1!$B$4,Datapack!H225,IF($G$4=Dates1!$B$5,Datapack!N225,IF($G$4=Dates1!$B$6,Datapack!T225,)))) -> 4 | H20: =IF($G$4=Dates1!$B$3,Datapack!C225,IF($G$4=Dates1!$B$4,Datapack!I225,IF($G$4=Dates1!$B$5,Datapack!O225,IF($G$4=Dates1!$B$6,Datapack!U225,)))) -> 0 | J20: =IF($G$4=Dates1!$B$3,Datapack!D225,IF($G$4=Dates1!$B$4,Datapack!J225,IF($G$4=Dates1!$B$5,Datapack!P225,IF($G$4=Dates1!$B$6,Datapack!V225,)))) -> 3 | L20: =IF($G$4=Dates1!$B$3,Datapack!E225,IF($G$4=Dates1!$B$4,Datapack!K225,IF($G$4=Dates1!$B$5,Datapack!Q225,IF($G$4=Dates1!$B$6,Datapack!W225,)))) -> 1 | N20: =IF($G$4=Dates1!$B$3,Datapack!F225,IF($G$4=Dates1!$B$4,Datapack!L225,IF($G$4=Dates1!$B$5,Datapack!R225,IF($G$4=Dates1!$B$6,Datapack!X225,)))) -> 0
B21: Stockton-on-Tees | F21: =IF($G$4=Dates1!$B$3,Datapack!B226,IF($G$4=Dates1!$B$4,Datapack!H226,IF($G$4=Dates1!$B$5,Datapack!N226,IF($G$4=Dates1!$B$6,Datapack!T226,)))) -> 0 | H21: =IF($G$4=Dates1!$B$3,Datapack!C226,IF($G$4=Dates1!$B$4,Datapack!I226,IF($G$4=Dates1!$B$5,Datapack!O226,IF($G$4=Dates1!$B$6,Datapack!U226,)))) -> 0 | J21: =IF($G$4=Dates1!$B$3,Datapack!D226,IF($G$4=Dates1!$B$4,Datapack!J226,IF($G$4=Dates1!$B$5,Datapack!P226,IF($G$4=Dates1!$B$6,Datapack!V226,)))) -> 0 | L21: =IF($G$4=Dates1!$B$3,Datapack!E226,IF($G$4=Dates1!$B$4,Datapack!K226,IF($G$4=Dates1!$B$5,Datapack!Q226,IF($G$4=Dates1!$B$6,Datapack!W226,)))) -> 0 | N21: =IF($G$4=Dates1!$B$3,Datapack!F226,IF($G$4=Dates1!$B$4,Datapack!L226,IF($G$4=Dates1!$B$5,Datapack!R226,IF($G$4=Dates1!$B$6,Datapack!X226,)))) -> 0
B22: Sunderland | F22: =IF($G$4=Dates1!$B$3,Datapack!B227,IF($G$4=Dates1!$B$4,Datapack!H227,IF($G$4=Dates1!$B$5,Datapack!N227,IF($G$4=Dates1!$B$6,Datapack!T227,)))) -> 3 | H22: =IF($G$4=Dates1!$B$3,Datapack!C227,IF($G$4=Dates1!$B$4,Datapack!I227,IF($G$4=Dates1!$B$5,Datapack!O227,IF($G$4=Dates1!$B$6,Datapack!U227,)))) -> 0 | J22: =IF($G$4=Dates1!$B$3,Datapack!D227,IF($G$4=Dates1!$B$4,Datapack!J227,IF($G$4=Dates1!$B$5,Datapack!P227,IF($G$4=Dates1!$B$6,Datapack!V227,)))) -> 3 | L22: =IF($G$4=Dates1!$B$3,Datapack!E227,IF($G$4=Dates1!$B$4,Datapack!K227,IF($G$4=Dates1!$B$5,Datapack!Q227,IF($G$4=Dates1!$B$6,Datapack!W227,)))) -> 0 | N22: =IF($G$4=Dates1!$B$3,Datapack!F227,IF($G$4=Dates1!$B$4,Datapack!L227,IF($G$4=Dates1!$B$5,Datapack!R227,IF($G$4=Dates1!$B$6,Datapack!X227,)))) -> 0
B24: NORTH WEST | F24: =SUM(F25:F47) -> 102 | H24: =SUM(H25:H47) -> 13 | J24: 50 | L24: 39 | N24: 0
B25: Blackburn with Darwen | F25: =IF($G$4=Dates1!$B$3,Datapack!B230,IF($G$4=Dates1!$B$4,Datapack!H230,IF($G$4=Dates1!$B$5,Datapack!N230,IF($G$4=Dates1!$B$6,Datapack!T230,)))) -> 4 | H25: =IF($G$4=Dates1!$B$3,Datapack!C230,IF($G$4=Dates1!$B$4,Datapack!I230,IF($G$4=Dates1!$B$5,Datapack!O230,IF($G$4=Dates1!$B$6,Datapack!U230,)))) -> 0 | J25: =IF($G$4=Dates1!$B$3,Datapack!D230,IF($G$4=Dates1!$B$4,Datapack!J230,IF($G$4=Dates1!$B$5,Datapack!P230,IF($G$4=Dates1!$B$6,Datapack!V230,)))) -> 4 | L25: =IF($G$4=Dates1!$B$3,Datapack!E230,IF($G$4=Dates1!$B$4,Datapack!K230,IF($G$4=Dates1!$B$5,Datapack!Q230,IF($G$4=Dates1!$B$6,Datapack!W230,)))) -> 0 | N25: =IF($G$4=Dates1!$B$3,Datapack!F230,IF($G$4=Dates1!$B$4,Datapack!L230,IF($G$4=Dates1!$B$5,Datapack!R230,IF($G$4=Dates1!$B$6,Datapack!X230,)))) -> 0
B26: Blackpool | F26: =IF($G$4=Dates1!$B$3,Datapack!B231,IF($G$4=Dates1!$B$4,Datapack!H231,IF($G$4=Dates1!$B$5,Datapack!N231,IF($G$4=Dates1!$B$6,Datapack!T231,)))) -> 3 | H26: =IF($G$4=Dates1!$B$3,Datapack!C231,IF($G$4=Dates1!$B$4,Datapack!I231,IF($G$4=Dates1!$B$5,Datapack!O231,IF($G$4=Dates1!$B$6,Datapack!U231,)))) -> 2 | J26: =IF($G$4=Dates1!$B$3,Datapack!D231,IF($G$4=Dates1!$B$4,Datapack!J231,IF($G$4=Dates1!$B$5,Datapack!P231,IF($G$4=Dates1!$B$6,Datapack!V231,)))) -> 1 | L26: =IF($G$4=Dates1!$B$3,Datapack!E231,IF($G$4=Dates1!$B$4,Datapack!K231,IF($G$4=Dates1!$B$5,Datapack!Q231,IF($G$4=Dates1!$B$6,Datapack!W231,)))) -> 0 | N26: =IF($G$4=Dates1!$B$3,Datapack!F231,IF($G$4=Dates1!$B$4,Datapack!L231,IF($G$4=Dates1!$B$5,Datapack!R231,IF($G$4=Dates1!$B$6,Datapack!X231,)))) -> 0
B27: Bolton | F27: =IF($G$4=Dates1!$B$3,Datapack!B232,IF($G$4=Dates1!$B$4,Datapack!H232,IF($G$4=Dates1!$B$5,Datapack!N232,IF($G$4=Dates1!$B$6,Datapack!T232,)))) -> 4 | H27: =IF($G$4=Dates1!$B$3,Datapack!C232,IF($G$4=Dates1!$B$4,Datapack!I232,IF($G$4=Dates1!$B$5,Datapack!O232,IF($G$4=Dates1!$B$6,Datapack!U232,)))) -> 0 | J27: =IF($G$4=Dates1!$B$3,Datapack!D232,IF($G$4=Dates1!$B$4,Datapack!J232,IF($G$4=Dates1!$B$5,Datapack!P232,IF($G$4=Dates1!$B$6,Datapack!V232,)))) -> 1 | L27: =IF($G$4=Dates1!$B$3,Datapack!E232,IF($G$4=Dates1!$B$4,Datapack!K232,IF($G$4=Dates1!$B$5,Datapack!Q232,IF($G$4=Dates1!$B$6,Datapack!W232,)))) -> 3 | N27: =IF($G$4=Dates1!$B$3,Datapack!F232,IF($G$4=Dates1!$B$4,Datapack!L232,IF($G$4=Dates1!$B$5,Datapack!R232,IF($G$4=Dates1!$B$6,Datapack!X232,)))) -> 0
B28: Bury | F28: =IF($G$4=Dates1!$B$3,Datapack!B233,IF($G$4=Dates1!$B$4,Datapack!H233,IF($G$4=Dates1!$B$5,Datapack!N233,IF($G$4=Dates1!$B$6,Datapack!T233,)))) -> 3 | H28: =IF($G$4=Dates1!$B$3,Datapack!C233,IF($G$4=Dates1!$B$4,Datapack!I233,IF($G$4=Dates1!$B$5,Datapack!O233,IF($G$4=Dates1!$B$6,Datapack!U233,)))) -> 0 | J28: =IF($G$4=Dates1!$B$3,Datapack!D233,IF($G$4=Dates1!$B$4,Datapack!J233,IF($G$4=Dates1!$B$5,Datapack!P233,IF($G$4=Dates1!$B$6,Datapack!V233,)))) -> 0 | L28: =IF($G$4=Dates1!$B$3,Datapack!E233,IF($G$4=Dates1!$B$4,Datapack!K233,IF($G$4=Dates1!$B$5,Datapack!Q233,IF($G$4=Dates1!$B$6,Datapack!W233,)))) -> 3 | N28: =IF($G$4=Dates1!$B$3,Datapack!F233,IF($G$4=Dates1!$B$4,Datapack!L233,IF($G$4=Dates1!$B$5,Datapack!R233,IF($G$4=Dates1!$B$6,Datapack!X233,)))) -> 0
B29: Cheshire East | F29: =IF($G$4=Dates1!$B$3,Datapack!B234,IF($G$4=Dates1!$B$4,Datapack!H234,IF($G$4=Dates1!$B$5,Datapack!N234,IF($G$4=Dates1!$B$6,Datapack!T234,)))) -> 2 | H29: =IF($G$4=Dates1!$B$3,Datapack!C234,IF($G$4=Dates1!$B$4,Datapack!I234,IF($G$4=Dates1!$B$5,Datapack!O234,IF($G$4=Dates1!$B$6,Datapack!U234,)))) -> 0 | J29: =IF($G$4=Dates1!$B$3,Datapack!D234,IF($G$4=Dates1!$B$4,Datapack!J234,IF($G$4=Dates1!$B$5,Datapack!P234,IF($G$4=Dates1!$B$6,Datapack!V234,)))) -> 1 | L29: =IF($G$4=Dates1!$B$3,Datapack!E234,IF($G$4=Dates1!$B$4,Datapack!K234,IF($G$4=Dates1!$B$5,Datapack!Q234,IF($G$4=Dates1!$B$6,Datapack!W234,)))) -> 1 | N29: =IF($G$4=Dates1!$B$3,Datapack!F234,IF($G$4=Dates1!$B$4,Datapack!L234,IF($G$4=Dates1!$B$5,Datapack!R234,IF($G$4=Dates1!$B$6,Datapack!X234,)))) -> 0
B30: Cheshire West and Chester | F30: =IF($G$4=Dates1!$B$3,Datapack!B235,IF($G$4=Dates1!$B$4,Datapack!H235,IF($G$4=Dates1!$B$5,Datapack!N235,IF($G$4=Dates1!$B$6,Datapack!T235,)))) -> 2 | H30: =IF($G$4=Dates1!$B$3,Datapack!C235,IF($G$4=Dates1!$B$4,Datapack!I235,IF($G$4=Dates1!$B$5,Datapack!O235,IF($G$4=Dates1!$B$6,Datapack!U235,)))) -> 0 | J30: =IF($G$4=Dates1!$B$3,Datapack!D235,IF($G$4=Dates1!$B$4,Datapack!J235,IF($G$4=Dates1!$B$5,Datapack!P235,IF($G$4=Dates1!$B$6,Datapack!V235,)))) -> 1 | L30: =IF($G$4=Dates1!$B$3,Datapack!E235,IF($G$4=Dates1!$B$4,Datapack!K235,IF($G$4=Dates1!$B$5,Datapack!Q235,IF($G$4=Dates1!$B$6,Datapack!W235,)))) -> 1 | N30: =IF($G$4=Dates1!$B$3,Datapack!F235,IF($G$4=Dates1!$B$4,Datapack!L235,IF($G$4=Dates1!$B$5,Datapack!R235,IF($G$4=Dates1!$B$6,Datapack!X235,)))) -> 0
B31: Cumbria | F31: =IF($G$4=Dates1!$B$3,Datapack!B236,IF($G$4=Dates1!$B$4,Datapack!H236,IF($G$4=Dates1!$B$5,Datapack!N236,IF($G$4=Dates1!$B$6,Datapack!T236,)))) -> 8 | H31: =IF($G$4=Dates1!$B$3,Datapack!C236,IF($G$4=Dates1!$B$4,Datapack!I236,IF($G$4=Dates1!$B$5,Datapack!O236,IF($G$4=Dates1!$B$6,Datapack!U236,)))) -> 2 | J31: =IF($G$4=Dates1!$B$3,Datapack!D236,IF($G$4=Dates1!$B$4,Datapack!J236,IF($G$4=Dates1!$B$5,Datapack!P236,IF($G$4=Dates1!$B$6,Datapack!V236,)))) -> 6 | L31: =IF($G$4=Dates1!$B$3,Datapack!E236,IF($G$4=Dates1!$B$4,Datapack!K236,IF($G$4=Dates1!$B$5,Datapack!Q236,IF($G$4=Dates1!$B$6,Datapack!W236,)))) -> 0 | N31: =IF($G$4=Dates1!$B$3,Datapack!F236,IF($G$4=Dates1!$B$4,Datapack!L236,IF($G$4=Dates1!$B$5,Datapack!R236,IF($G$4=Dates1!$B$6,Datapack!X236,)))) -> 0
B32: Halton | F32: =IF($G$4=Dates1!$B$3,Datapack!B237,IF($G$4=Dates1!$B$4,Datapack!H237,IF($G$4=Dates1!$B$5,Datapack!N237,IF($G$4=Dates1!$B$6,Datapack!T237,)))) -> 3 | H32: =IF($G$4=Dates1!$B$3,Datapack!C237,IF($G$4=Dates1!$B$4,Datapack!I237,IF($G$4=Dates1!$B$5,Datapack!O237,IF($G$4=Dates1!$B$6,Datapack!U237,)))) -> 0 | J32: =IF($G$4=Dates1!$B$3,Datapack!D237,IF($G$4=Dates1!$B$4,Datapack!J237,IF($G$4=Dates1!$B$5,Datapack!P237,IF($G$4=Dates1!$B$6,Datapack!V237,)))) -> 3 | L32: =IF($G$4=Dates1!$B$3,Datapack!E237,IF($G$4=Dates1!$B$4,Datapack!K237,IF($G$4=Dates1!$B$5,Datapack!Q237,IF($G$4=Dates1!$B$6,Datapack!W237,)))) -> 0 | N32: =IF($G$4=Dates1!$B$3,Datapack!F237,IF($G$4=Dates1!$B$4,Datapack!L237,IF($G$4=Dates1!$B$5,Datapack!R237,IF($G$4=Dates1!$B$6,Datapack!X237,)))) -> 0
B33: Knowsley | F33: =IF($G$4=Dates1!$B$3,Datapack!B238,IF($G$4=Dates1!$B$4,Datapack!H238,IF($G$4=Dates1!$B$5,Datapack!N238,IF($G$4=Dates1!$B$6,Datapack!T238,)))) -> 2 | H33: =IF($G$4=Dates1!$B$3,Datapack!C238,IF($G$4=Dates1!$B$4,Datapack!I238,IF($G$4=Dates1!$B$5,Datapack!O238,IF($G$4=Dates1!$B$6,Datapack!U238,)))) -> 0 | J33: =IF($G$4=Dates1!$B$3,Datapack!D238,IF($G$4=Dates1!$B$4,Datapack!J238,IF($G$4=Dates1!$B$5,Datapack!P238,IF($G$4=Dates1!$B$6,Datapack!V238,)))) -> 2 | L33: =IF($G$4=Dates1!$B$3,Datapack!E238,IF($G$4=Dates1!$B$4,Datapack!K238,IF($G$4=Dates1!$B$5,Datapack!Q238,IF($G$4=Dates1!$B$6,Datapack!W238,)))) -> 0 | N33: =IF($G$4=Dates1!$B$3,Datapack!F238,IF($G$4=Dates1!$B$4,Datapack!L238,IF($G$4=Dates1!$B$5,Datapack!R238,IF($G$4=Dates1!$B$6,Datapack!X238,)))) -> 0
B34: Lancashire | F34: =IF($G$4=Dates1!$B$3,Datapack!B239,IF($G$4=Dates1!$B$4,Datapack!H239,IF($G$4=Dates1!$B$5,Datapack!N239,IF($G$4=Dates1!$B$6,Datapack!T239,)))) -> 20 | H34: =IF($G$4=Dates1!$B$3,Datapack!C239,IF($G$4=Dates1!$B$4,Datapack!I239,IF($G$4=Dates1!$B$5,Datapack!O239,IF($G$4=Dates1!$B$6,Datapack!U239,)))) -> 7 | J34: =IF($G$4=Dates1!$B$3,Datapack!D239,IF($G$4=Dates1!$B$4,Datapack!J239,IF($G$4=Dates1!$B$5,Datapack!P239,IF($G$4=Dates1!$B$6,Datapack!V239,)))) -> 10 | L34: =IF($G$4=Dates1!$B$3,Datapack!E239,IF($G$4=Dates1!$B$4,Datapack!K239,IF($G$4=Dates1!$B$5,Datapack!Q239,IF($G$4=Dates1!$B$6,Datapack!W239,)))) -> 3 | N34: =IF($G$4=Dates1!$B$3,Datapack!F239,IF($G$4=Dates1!$B$4,Datapack!L239,IF($G$4=Dates1!$B$5,Datapack!R239,IF($G$4=Dates1!$B$6,Datapack!X239,)))) -> 0
B35: Liverpool | F35: =IF($G$4=Dates1!$B$3,Datapack!B240,IF($G$4=Dates1!$B$4,Datapack!H240,IF($G$4=Dates1!$B$5,Datapack!N240,IF($G$4=Dates1!$B$6,Datapack!T240,)))) -> 8 | H35: =IF($G$4=Dates1!$B$3,Datapack!C240,IF($G$4=Dates1!$B$4,Datapack!I240,IF($G$4=Dates1!$B$5,Datapack!O240,IF($G$4=Dates1!$B$6,Datapack!U240,)))) -> 2 | J35: =IF($G$4=Dates1!$B$3,Datapack!D240,IF($G$4=Dates1!$B$4,Datapack!J240,IF($G$4=Dates1!$B$5,Datapack!P240,IF($G$4=Dates1!$B$6,Datapack!V240,)))) -> 6 | L35: =IF($G$4=Dates1!$B$3,Datapack!E240,IF($G$4=Dates1!$B$4,Datapack!K240,IF($G$4=Dates1!$B$5,Datapack!Q240,IF($G$4=Dates1!$B$6,Datapack!W240,)))) -> 0 | N35: =IF($G$4=Dates1!$B$3,Datapack!F240,IF($G$4=Dates1!$B$4,Datapack!L240,IF($G$4=Dates1!$B$5,Datapack!R240,IF($G$4=Dates1!$B$6,Datapack!X240,)))) -> 0
B36: Manchester | F36: =IF($G$4=Dates1!$B$3,Datapack!B241,IF($G$4=Dates1!$B$4,Datapack!H241,IF($G$4=Dates1!$B$5,Datapack!N241,IF($G$4=Dates1!$B$6,Datapack!T241,)))) -> 8 | H36: =IF($G$4=Dates1!$B$3,Datapack!C241,IF($G$4=Dates1!$B$4,Datapack!I241,IF($G$4=Dates1!$B$5,Datapack!O241,IF($G$4=Dates1!$B$6,Datapack!U241,)))) -> 0 | J36: =IF($G$4=Dates1!$B$3,Datapack!D241,IF($G$4=Dates1!$B$4,Datapack!J241,IF($G$4=Dates1!$B$5,Datapack!P241,IF($G$4=Dates1!$B$6,Datapack!V241,)))) -> 2 | L36: =IF($G$4=Dates1!$B$3,Datapack!E241,IF($G$4=Dates1!$B$4,Datapack!K241,IF($G$4=Dates1!$B$5,Datapack!Q241,IF($G$4=Dates1!$B$6,Datapack!W241,)))) -> 6 | N36: =IF($G$4=Dates1!$B$3,Datapack!F241,IF($G$4=Dates1!$B$4,Datapack!L241,IF($G$4=Dates1!$B$5,Datapack!R241,IF($G$4=Dates1!$B$6,Datapack!X241,)))) -> 0
B37: Oldham | F37: =IF($G$4=Dates1!$B$3,Datapack!B242,IF($G$4=Dates1!$B$4,Datapack!H242,IF($G$4=Dates1!$B$5,Datapack!N242,IF($G$4=Dates1!$B$6,Datapack!T242,)))) -> 2 | H37: =IF($G$4=Dates1!$B$3,Datapack!C242,IF($G$4=Dates1!$B$4,Datapack!I242,IF($G$4=Dates1!$B$5,Datapack!O242,IF($G$4=Dates1!$B$6,Datapack!U242,)))) -> 0 | J37: =IF($G$4=Dates1!$B$3,Datapack!D242,IF($G$4=Dates1!$B$4,Datapack!J242,IF($G$4=Dates1!$B$5,Datapack!P242,IF($G$4=Dates1!$B$6,Datapack!V242,)))) -> 2 | L37: =IF($G$4=Dates1!$B$3,Datapack!E242,IF($G$4=Dates1!$B$4,Datapack!K242,IF($G$4=Dates1!$B$5,Datapack!Q242,IF($G$4=Dates1!$B$6,Datapack!W242,)))) -> 0 | N37: =IF($G$4=Dates1!$B$3,Datapack!F242,IF($G$4=Dates1!$B$4,Datapack!L242,IF($G$4=Dates1!$B$5,Datapack!R242,IF($G$4=Dates1!$B$6,Datapack!X242,)))) -> 0
B38: Rochdale | F38: =IF($G$4=Dates1!$B$3,Datapack!B243,IF($G$4=Dates1!$B$4,Datapack!H243,IF($G$4=Dates1!$B$5,Datapack!N243,IF($G$4=Dates1!$B$6,Datapack!T243,)))) -> 4 | H38: =IF($G$4=Dates1!$B$3,Datapack!C243,IF($G$4=Dates1!$B$4,Datapack!I243,IF($G$4=Dates1!$B$5,Datapack!O243,IF($G$4=Dates1!$B$6,Datapack!U243,)))) -> 0 | J38: =IF($G$4=Dates1!$B$3,Datapack!D243,IF($G$4=Dates1!$B$4,Datapack!J243,IF($G$4=Dates1!$B$5,Datapack!P243,IF($G$4=Dates1!$B$6,Datapack!V243,)))) -> 0 | L38: =IF($G$4=Dates1!$B$3,Datapack!E243,IF($G$4=Dates1!$B$4,Datapack!K243,IF($G$4=Dates1!$B$5,Datapack!Q243,IF($G$4=Dates1!$B$6,Datapack!W243,)))) -> 4 | N38: =IF($G$4=Dates1!$B$3,Datapack!F243,IF($G$4=Dates1!$B$4,Datapack!L243,IF($G$4=Dates1!$B$5,Datapack!R243,IF($G$4=Dates1!$B$6,Datapack!X243,)))) -> 0
B39: Salford | F39: =IF($G$4=Dates1!$B$3,Datapack!B244,IF($G$4=Dates1!$B$4,Datapack!H244,IF($G$4=Dates1!$B$5,Datapack!N244,IF($G$4=Dates1!$B$6,Datapack!T244,)))) -> 2 | H39: =IF($G$4=Dates1!$B$3,Datapack!C244,IF($G$4=Dates1!$B$4,Datapack!I244,IF($G$4=Dates1!$B$5,Datapack!O244,IF($G$4=Dates1!$B$6,Datapack!U244,)))) -> 0 | J39: =IF($G$4=Dates1!$B$3,Datapack!D244,IF($G$4=Dates1!$B$4,Datapack!J244,IF($G$4=Dates1!$B$5,Datapack!P244,IF($G$4=Dates1!$B$6,Datapack!V244,)))) -> 1 | L39: =IF($G$4=Dates1!$B$3,Datapack!E244,IF($G$4=Dates1!$B$4,Datapack!K244,IF($G$4=Dates1!$B$5,Datapack!Q244,IF($G$4=Dates1!$B$6,Datapack!W244,)))) -> 1 | N39: =IF($G$4=Dates1!$B$3,Datapack!F244,IF($G$4=Dates1!$B$4,Datapack!L244,IF($G$4=Dates1!$B$5,Datapack!R244,IF($G$4=Dates1!$B$6,Datapack!X244,)))) -> 0
B40: Sefton | F40: =IF($G$4=Dates1!$B$3,Datapack!B245,IF($G$4=Dates1!$B$4,Datapack!H245,IF($G$4=Dates1!$B$5,Datapack!N245,IF($G$4=Dates1!$B$6,Datapack!T245,)))) -> 2 | H40: =IF($G$4=Dates1!$B$3,Datapack!C245,IF($G$4=Dates1!$B$4,Datapack!I245,IF($G$4=Dates1!$B$5,Datapack!O245,IF($G$4=Dates1!$B$6,Datapack!U245,)))) -> 0 | J40: =IF($G$4=Dates1!$B$3,Datapack!D245,IF($G$4=Dates1!$B$4,Datapack!J245,IF($G$4=Dates1!$B$5,Datapack!P245,IF($G$4=Dates1!$B$6,Datapack!V245,)))) -> 2 | L40: =IF($G$4=Dates1!$B$3,Datapack!E245,IF($G$4=Dates1!$B$4,Datapack!K245,IF($G$4=Dates1!$B$5,Datapack!Q245,IF($G$4=Dates1!$B$6,Datapack!W245,)))) -> 0 | N40: =IF($G$4=Dates1!$B$3,Datapack!F245,IF($G$4=Dates1!$B$4,Datapack!L245,IF($G$4=Dates1!$B$5,Datapack!R245,IF($G$4=Dates1!$B$6,Datapack!X245,)))) -> 0
B41: St. Helens | F41: =IF($G$4=Dates1!$B$3,Datapack!B246,IF($G$4=Dates1!$B$4,Datapack!H246,IF($G$4=Dates1!$B$5,Datapack!N246,IF($G$4=Dates1!$B$6,Datapack!T246,)))) -> 4 | H41: =IF($G$4=Dates1!$B$3,Datapack!C246,IF($G$4=Dates1!$B$4,Datapack!I246,IF($G$4=Dates1!$B$5,Datapack!O246,IF($G$4=Dates1!$B$6,Datapack!U246,)))) -> 0 | J41: =IF($G$4=Dates1!$B$3,Datapack!D246,IF($G$4=Dates1!$B$4,Datapack!J246,IF($G$4=Dates1!$B$5,Datapack!P246,IF($G$4=Dates1!$B$6,Datapack!V246,)))) -> 0 | L41: =IF($G$4=Dates1!$B$3,Datapack!E246,IF($G$4=Dates1!$B$4,Datapack!K246,IF($G$4=Dates1!$B$5,Datapack!Q246,IF($G$4=Dates1!$B$6,Datapack!W246,)))) -> 4 | N41: =IF($G$4=Dates1!$B$3,Datapack!F246,IF($G$4=Dates1!$B$4,Datapack!L246,IF($G$4=Dates1!$B$5,Datapack!R246,IF($G$4=Dates1!$B$6,Datapack!X246,)))) -> 0
B42: Stockport | F42: =IF($G$4=Dates1!$B$3,Datapack!B247,IF($G$4=Dates1!$B$4,Datapack!H247,IF($G$4=Dates1!$B$5,Datapack!N247,IF($G$4=Dates1!$B$6,Datapack!T247,)))) -> 2 | H42: =IF($G$4=Dates1!$B$3,Datapack!C247,IF($G$4=Dates1!$B$4,Datapack!I247,IF($G$4=Dates1!$B$5,Datapack!O247,IF($G$4=Dates1!$B$6,Datapack!U247,)))) -> 0 | J42: =IF($G$4=Dates1!$B$3,Datapack!D247,IF($G$4=Dates1!$B$4,Datapack!J247,IF($G$4=Dates1!$B$5,Datapack!P247,IF($G$4=Dates1!$B$6,Datapack!V247,)))) -> 1 | L42: =IF($G$4=Dates1!$B$3,Datapack!E247,IF($G$4=Dates1!$B$4,Datapack!K247,IF($G$4=Dates1!$B$5,Datapack!Q247,IF($G$4=Dates1!$B$6,Datapack!W247,)))) -> 1 | N42: =IF($G$4=Dates1!$B$3,Datapack!F247,IF($G$4=Dates1!$B$4,Datapack!L247,IF($G$4=Dates1!$B$5,Datapack!R247,IF($G$4=Dates1!$B$6,Datapack!X247,)))) -> 0
B43: Tameside | F43: =IF($G$4=Dates1!$B$3,Datapack!B248,IF($G$4=Dates1!$B$4,Datapack!H248,IF($G$4=Dates1!$B$5,Datapack!N248,IF($G$4=Dates1!$B$6,Datapack!T248,)))) -> 5 | H43: =IF($G$4=Dates1!$B$3,Datapack!C248,IF($G$4=Dates1!$B$4,Datapack!I248,IF($G$4=Dates1!$B$5,Datapack!O248,IF($G$4=Dates1!$B$6,Datapack!U248,)))) -> 0 | J43: =IF($G$4=Dates1!$B$3,Datapack!D248,IF($G$4=Dates1!$B$4,Datapack!J248,IF($G$4=Dates1!$B$5,Datapack!P248,IF($G$4=Dates1!$B$6,Datapack!V248,)))) -> 0 | L43: =IF($G$4=Dates1!$B$3,Datapack!E248,IF($G$4=Dates1!$B$4,Datapack!K248,IF($G$4=Dates1!$B$5,Datapack!Q248,IF($G$4=Dates1!$B$6,Datapack!W248,)))) -> 5 | N43: =IF($G$4=Dates1!$B$3,Datapack!F248,IF($G$4=Dates1!$B$4,Datapack!L248,IF($G$4=Dates1!$B$5,Datapack!R248,IF($G$4=Dates1!$B$6,Datapack!X248,)))) -> 0
B44: Trafford | F44: =IF($G$4=Dates1!$B$3,Datapack!B249,IF($G$4=Dates1!$B$4,Datapack!H249,IF($G$4=Dates1!$B$5,Datapack!N249,IF($G$4=Dates1!$B$6,Datapack!T249,)))) -> 3 | H44: =IF($G$4=Dates1!$B$3,Datapack!C249,IF($G$4=Dates1!$B$4,Datapack!I249,IF($G$4=Dates1!$B$5,Datapack!O249,IF($G$4=Dates1!$B$6,Datapack!U249,)))) -> 0 | J44: =IF($G$4=Dates1!$B$3,Datapack!D249,IF($G$4=Dates1!$B$4,Datapack!J249,IF($G$4=Dates1!$B$5,Datapack!P249,IF($G$4=Dates1!$B$6,Datapack!V249,)))) -> 1 | L44: =IF($G$4=Dates1!$B$3,Datapack!E249,IF($G$4=Dates1!$B$4,Datapack!K249,IF($G$4=Dates1!$B$5,Datapack!Q249,IF($G$4=Dates1!$B$6,Datapack!W249,)))) -> 2 | N44: =IF($G$4=Dates1!$B$3,Datapack!F249,IF($G$4=Dates1!$B$4,Datapack!L249,IF($G$4=Dates1!$B$5,Datapack!R249,IF($G$4=Dates1!$B$6,Datapack!X249,)))) -> 0
B45: Warrington | F45: =IF($G$4=Dates1!$B$3,Datapack!B250,IF($G$4=Dates1!$B$4,Datapack!H250,IF($G$4=Dates1!$B$5,Datapack!N250,IF($G$4=Dates1!$B$6,Datapack!T250,)))) -> 1 | H45: =IF($G$4=Dates1!$B$3,Datapack!C250,IF($G$4=Dates1!$B$4,Datapack!I250,IF($G$4=Dates1!$B$5,Datapack!O250,IF($G$4=Dates1!$B$6,Datapack!U250,)))) -> 0 | J45: =IF($G$4=Dates1!$B$3,Datapack!D250,IF($G$4=Dates1!$B$4,Datapack!J250,IF($G$4=Dates1!$B$5,Datapack!P250,IF($G$4=Dates1!$B$6,Datapack!V250,)))) -> 1 | L45: =IF($G$4=Dates1!$B$3,Datapack!E250,IF($G$4=Dates1!$B$4,Datapack!K250,IF($G$4=Dates1!$B$5,Datapack!Q250,IF($G$4=Dates1!$B$6,Datapack!W250,)))) -> 0 | N45: =IF($G$4=Dates1!$B$3,Datapack!F250,IF($G$4=Dates1!$B$4,Datapack!L250,IF($G$4=Dates1!$B$5,Datapack!R250,IF($G$4=Dates1!$B$6,Datapack!X250,)))) -> 0
B46: Wigan | F46: =IF($G$4=Dates1!$B$3,Datapack!B251,IF($G$4=Dates1!$B$4,Datapack!H251,IF($G$4=Dates1!$B$5,Datapack!N251,IF($G$4=Dates1!$B$6,Datapack!T251,)))) -> 4 | H46: =IF($G$4=Dates1!$B$3,Datapack!C251,IF($G$4=Dates1!$B$4,Datapack!I251,IF($G$4=Dates1!$B$5,Datapack!O251,IF($G$4=Dates1!$B$6,Datapack!U251,)))) -> 0 | J46: =IF($G$4=Dates1!$B$3,Datapack!D251,IF($G$4=Dates1!$B$4,Datapack!J251,IF($G$4=Dates1!$B$5,Datapack!P251,IF($G$4=Dates1!$B$6,Datapack!V251,)))) -> 1 | L46: =IF($G$4=Dates1!$B$3,Datapack!E251,IF($G$4=Dates1!$B$4,Datapack!K251,IF($G$4=Dates1!$B$5,Datapack!Q251,IF($G$4=Dates1!$B$6,Datapack!W251,)))) -> 3 | N46: =IF($G$4=Dates1!$B$3,Datapack!F251,IF($G$4=Dates1!$B$4,Datapack!L251,IF($G$4=Dates1!$B$5,Datapack!R251,IF($G$4=Dates1!$B$6,Datapack!X251,)))) -> 0
B47: Wirral | F47: =IF($G$4=Dates1!$B$3,Datapack!B252,IF($G$4=Dates1!$B$4,Datapack!H252,IF($G$4=Dates1!$B$5,Datapack!N252,IF($G$4=Dates1!$B$6,Datapack!T252,)))) -> 6 | H47: =IF($G$4=Dates1!$B$3,Datapack!C252,IF($G$4=Dates1!$B$4,Datapack!I252,IF($G$4=Dates1!$B$5,Datapack!O252,IF($G$4=Dates1!$B$6,Datapack!U252,)))) -> 0 | J47: =IF($G$4=Dates1!$B$3,Datapack!D252,IF($G$4=Dates1!$B$4,Datapack!J252,IF($G$4=Dates1!$B$5,Datapack!P252,IF($G$4=Dates1!$B$6,Datapack!V252,)))) -> 4 | L47: =IF($G$4=Dates1!$B$3,Datapack!E252,IF($G$4=Dates1!$B$4,Datapack!K252,IF($G$4=Dates1!$B$5,Datapack!Q252,IF($G$4=Dates1!$B$6,Datapack!W252,)))) -> 2 | N47: =IF($G$4=Dates1!$B$3,Datapack!F252,IF($G$4=Dates1!$B$4,Datapack!L252,IF($G$4=Dates1!$B$5,Datapack!R252,IF($G$4=Dates1!$B$6,Datapack!X252,)))) -> 0
B49: YORKSHIRE AND THE HUMBER | F49: =SUM(F50:F64) -> 78 | H49: =SUM(H50:H64) -> 4 | J49: 48 | L49: 23 | N49: 3
B50: Barnsley | F50: =IF($G$4=Dates1!$B$3,Datapack!B255,IF($G$4=Dates1!$B$4,Datapack!H255,IF($G$4=Dates1!$B$5,Datapack!N255,IF($G$4=Dates1!$B$6,Datapack!T255,)))) -> 1 | H50: =IF($G$4=Dates1!$B$3,Datapack!C255,IF($G$4=Dates1!$B$4,Datapack!I255,IF($G$4=Dates1!$B$5,Datapack!O255,IF($G$4=Dates1!$B$6,Datapack!U255,)))) -> 0 | J50: =IF($G$4=Dates1!$B$3,Datapack!D255,IF($G$4=Dates1!$B$4,Datapack!J255,IF($G$4=Dates1!$B$5,Datapack!P255,IF($G$4=Dates1!$B$6,Datapack!V255,)))) -> 0 | L50: =IF($G$4=Dates1!$B$3,Datapack!E255,IF($G$4=Dates1!$B$4,Datapack!K255,IF($G$4=Dates1!$B$5,Datapack!Q255,IF($G$4=Dates1!$B$6,Datapack!W255,)))) -> 1 | N50: =IF($G$4=Dates1!$B$3,Datapack!F255,IF($G$4=Dates1!$B$4,Datapack!L255,IF($G$4=Dates1!$B$5,Datapack!R255,IF($G$4=Dates1!$B$6,Datapack!X255,)))) -> 0
B51: Bradford | F51: =IF($G$4=Dates1!$B$3,Datapack!B256,IF($G$4=Dates1!$B$4,Datapack!H256,IF($G$4=Dates1!$B$5,Datapack!N256,IF($G$4=Dates1!$B$6,Datapack!T256,)))) -> 8 | H51: =IF($G$4=Dates1!$B$3,Datapack!C256,IF($G$4=Dates1!$B$4,Datapack!I256,IF($G$4=Dates1!$B$5,Datapack!O256,IF($G$4=Dates1!$B$6,Datapack!U256,)))) -> 1 | J51: =IF($G$4=Dates1!$B$3,Datapack!D256,IF($G$4=Dates1!$B$4,Datapack!J256,IF($G$4=Dates1!$B$5,Datapack!P256,IF($G$4=Dates1!$B$6,Datapack!V256,)))) -> 6 | L51: =IF($G$4=Dates1!$B$3,Datapack!E256,IF($G$4=Dates1!$B$4,Datapack!K256,IF($G$4=Dates1!$B$5,Datapack!Q256,IF($G$4=Dates1!$B$6,Datapack!W256,)))) -> 0 | N51: =IF($G$4=Dates1!$B$3,Datapack!F256,IF($G$4=Dates1!$B$4,Datapack!L256,IF($G$4=Dates1!$B$5,Datapack!R256,IF($G$4=Dates1!$B$6,Datapack!X256,)))) -> 1
B52: Calderdale | F52: =IF($G$4=Dates1!$B$3,Datapack!B257,IF($G$4=Dates1!$B$4,Datapack!H257,IF($G$4=Dates1!$B$5,Datapack!N257,IF($G$4=Dates1!$B$6,Datapack!T257,)))) -> 3 | H52: =IF($G$4=Dates1!$B$3,Datapack!C257,IF($G$4=Dates1!$B$4,Datapack!I257,IF($G$4=Dates1!$B$5,Datapack!O257,IF($G$4=Dates1!$B$6,Datapack!U257,)))) -> 0 | J52: =IF($G$4=Dates1!$B$3,Datapack!D257,IF($G$4=Dates1!$B$4,Datapack!J257,IF($G$4=Dates1!$B$5,Datapack!P257,IF($G$4=Dates1!$B$6,Datapack!V257,)))) -> 0 | L52: =IF($G$4=Dates1!$B$3,Datapack!E257,IF($G$4=Dates1!$B$4,Datapack!K257,IF($G$4=Dates1!$B$5,Datapack!Q257,IF($G$4=Dates1!$B$6,Datapack!W257,)))) -> 3 | N52: =IF($G$4=Dates1!$B$3,Datapack!F257,IF($G$4=Dates1!$B$4,Datapack!L257,IF($G$4=Dates1!$B$5,Datapack!R257,IF($G$4=Dates1!$B$6,Datapack!X257,)))) -> 0
B53: Doncaster | F53: =IF($G$4=Dates1!$B$3,Datapack!B258,IF($G$4=Dates1!$B$4,Datapack!H258,IF($G$4=Dates1!$B$5,Datapack!N258,IF($G$4=Dates1!$B$6,Datapack!T258,)))) -> 7 | H53: =IF($G$4=Dates1!$B$3,Datapack!C258,IF($G$4=Dates1!$B$4,Datapack!I258,IF($G$4=Dates1!$B$5,Datapack!O258,IF($G$4=Dates1!$B$6,Datapack!U258,)))) -> 0 | J53: =IF($G$4=Dates1!$B$3,Datapack!D258,IF($G$4=Dates1!$B$4,Datapack!J258,IF($G$4=Dates1!$B$5,Datapack!P258,IF($G$4=Dates1!$B$6,Datapack!V258,)))) -> 3 | L53: =IF($G$4=Dates1!$B$3,Datapack!E258,IF($G$4=Dates1!$B$4,Datapack!K258,IF($G$4=Dates1!$B$5,Datapack!Q258,IF($G$4=Dates1!$B$6,Datapack!W258,)))) -> 3 | N53: =IF($G$4=Dates1!$B$3,Datapack!F258,IF($G$4=Dates1!$B$4,Datapack!L258,IF($G$4=Dates1!$B$5,Datapack!R258,IF($G$4=Dates1!$B$6,Datapack!X258,)))) -> 1
B54: East Riding of Yorkshire | F54: =IF($G$4=Dates1!$B$3,Datapack!B259,IF($G$4=Dates1!$B$4,Datapack!H259,IF($G$4=Dates1!$B$5,Datapack!N259,IF($G$4=Dates1!$B$6,Datapack!T259,)))) -> 2 | H54: =IF($G$4=Dates1!$B$3,Datapack!C259,IF($G$4=Dates1!$B$4,Datapack!I259,IF($G$4=Dates1!$B$5,Datapack!O259,IF($G$4=Dates1!$B$6,Datapack!U259,)))) -> 0 | J54: =IF($G$4=Dates1!$B$3,Datapack!D259,IF($G$4=Dates1!$B$4,Datapack!J259,IF($G$4=Dates1!$B$5,Datapack!P259,IF($G$4=Dates1!$B$6,Datapack!V259,)))) -> 2 | L54: =IF($G$4=Dates1!$B$3,Datapack!E259,IF($G$4=Dates1!$B$4,Datapack!K259,IF($G$4=Dates1!$B$5,Datapack!Q259,IF($G$4=Dates1!$B$6,Datapack!W259,)))) -> 0 | N54: =IF($G$4=Dates1!$B$3,Datapack!F259,IF($G$4=Dates1!$B$4,Datapack!L259,IF($G$4=Dates1!$B$5,Datapack!R259,IF($G$4=Dates1!$B$6,Datapack!X259,)))) -> 0
B55: Kingston upon Hull City of | F55: =IF($G$4=Dates1!$B$3,Datapack!B260,IF($G$4=Dates1!$B$4,Datapack!H260,IF($G$4=Dates1!$B$5,Datapack!N260,IF($G$4=Dates1!$B$6,Datapack!T260,)))) -> 4 | H55: =IF($G$4=Dates1!$B$3,Datapack!C260,IF($G$4=Dates1!$B$4,Datapack!I260,IF($G$4=Dates1!$B$5,Datapack!O260,IF($G$4=Dates1!$B$6,Datapack!U260,)))) -> 0 | J55: =IF($G$4=Dates1!$B$3,Datapack!D260,IF($G$4=Dates1!$B$4,Datapack!J260,IF($G$4=Dates1!$B$5,Datapack!P260,IF($G$4=Dates1!$B$6,Datapack!V260,)))) -> 1 | L55: =IF($G$4=Dates1!$B$3,Datapack!E260,IF($G$4=Dates1!$B$4,Datapack!K260,IF($G$4=Dates1!$B$5,Datapack!Q260,IF($G$4=Dates1!$B$6,Datapack!W260,)))) -> 3 | N55: =IF($G$4=Dates1!$B$3,Datapack!F260,IF($G$4=Dates1!$B$4,Datapack!L260,IF($G$4=Dates1!$B$5,Datapack!R260,IF($G$4=Dates1!$B$6,Datapack!X260,)))) -> 0
B56: Kirklees | F56: =IF($G$4=Dates1!$B$3,Datapack!B261,IF($G$4=Dates1!$B$4,Datapack!H261,IF($G$4=Dates1!$B$5,Datapack!N261,IF($G$4=Dates1!$B$6,Datapack!T261,)))) -> 8 | H56: =IF($G$4=Dates1!$B$3,Datapack!C261,IF($G$4=Dates1!$B$4,Datapack!I261,IF($G$4=Dates1!$B$5,Datapack!O261,IF($G$4=Dates1!$B$6,Datapack!U261,)))) -> 1 | J56: =IF($G$4=Dates1!$B$3,Datapack!D261,IF($G$4=Dates1!$B$4,Datapack!J261,IF($G$4=Dates1!$B$5,Datapack!P261,IF($G$4=Dates1!$B$6,Datapack!V261,)))) -> 7 | L56: =IF($G$4=Dates1!$B$3,Datapack!E261,IF($G$4=Dates1!$B$4,Datapack!K261,IF($G$4=Dates1!$B$5,Datapack!Q261,IF($G$4=Dates1!$B$6,Datapack!W261,)))) -> 0 | N56: =IF($G$4=Dates1!$B$3,Datapack!F261,IF($G$4=Dates1!$B$4,Datapack!L261,IF($G$4=Dates1!$B$5,Datapack!R261,IF($G$4=Dates1!$B$6,Datapack!X261,)))) -> 0
B57: Leeds | F57: =IF($G$4=Dates1!$B$3,Datapack!B262,IF($G$4=Dates1!$B$4,Datapack!H262,IF($G$4=Dates1!$B$5,Datapack!N262,IF($G$4=Dates1!$B$6,Datapack!T262,)))) -> 10 | H57: =IF($G$4=Dates1!$B$3,Datapack!C262,IF($G$4=Dates1!$B$4,Datapack!I262,IF($G$4=Dates1!$B$5,Datapack!O262,IF($G$4=Dates1!$B$6,Datapack!U262,)))) -> 0 | J57: =IF($G$4=Dates1!$B$3,Datapack!D262,IF($G$4=Dates1!$B$4,Datapack!J262,IF($G$4=Dates1!$B$5,Datapack!P262,IF($G$4=Dates1!$B$6,Datapack!V262,)))) -> 9 | L57: =IF($G$4=Dates1!$B$3,Datapack!E262,IF($G$4=Dates1!$B$4,Datapack!K262,IF($G$4=Dates1!$B$5,Datapack!Q262,IF($G$4=Dates1!$B$6,Datapack!W262,)))) -> 1 | N57: =IF($G$4=Dates1!$B$3,Datapack!F262,IF($G$4=Dates1!$B$4,Datapack!L262,IF($G$4=Dates1!$B$5,Datapack!R262,IF($G$4=Dates1!$B$6,Datapack!X262,)))) -> 0
B58: North East Lincolnshire | F58: =IF($G$4=Dates1!$B$3,Datapack!B263,IF($G$4=Dates1!$B$4,Datapack!H263,IF($G$4=Dates1!$B$5,Datapack!N263,IF($G$4=Dates1!$B$6,Datapack!T263,)))) -> 3 | H58: =IF($G$4=Dates1!$B$3,Datapack!C263,IF($G$4=Dates1!$B$4,Datapack!I263,IF($G$4=Dates1!$B$5,Datapack!O263,IF($G$4=Dates1!$B$6,Datapack!U263,)))) -> 2 | J58: =IF($G$4=Dates1!$B$3,Datapack!D263,IF($G$4=Dates1!$B$4,Datapack!J263,IF($G$4=Dates1!$B$5,Datapack!P263,IF($G$4=Dates1!$B$6,Datapack!V263,)))) -> 1 | L58: =IF($G$4=Dates1!$B$3,Datapack!E263,IF($G$4=Dates1!$B$4,Datapack!K263,IF($G$4=Dates1!$B$5,Datapack!Q263,IF($G$4=Dates1!$B$6,Datapack!W263,)))) -> 0 | N58: =IF($G$4=Dates1!$B$3,Datapack!F263,IF($G$4=Dates1!$B$4,Datapack!L263,IF($G$4=Dates1!$B$5,Datapack!R263,IF($G$4=Dates1!$B$6,Datapack!X263,)))) -> 0
B59: North Lincolnshire | F59: =IF($G$4=Dates1!$B$3,Datapack!B264,IF($G$4=Dates1!$B$4,Datapack!H264,IF($G$4=Dates1!$B$5,Datapack!N264,IF($G$4=Dates1!$B$6,Datapack!T264,)))) -> 5 | H59: =IF($G$4=Dates1!$B$3,Datapack!C264,IF($G$4=Dates1!$B$4,Datapack!I264,IF($G$4=Dates1!$B$5,Datapack!O264,IF($G$4=Dates1!$B$6,Datapack!U264,)))) -> 0 | J59: =IF($G$4=Dates1!$B$3,Datapack!D264,IF($G$4=Dates1!$B$4,Datapack!J264,IF($G$4=Dates1!$B$5,Datapack!P264,IF($G$4=Dates1!$B$6,Datapack!V264,)))) -> 5 | L59: =IF($G$4=Dates1!$B$3,Datapack!E264,IF($G$4=Dates1!$B$4,Datapack!K264,IF($G$4=Dates1!$B$5,Datapack!Q264,IF($G$4=Dates1!$B$6,Datapack!W264,)))) -> 0 | N59: =IF($G$4=Dates1!$B$3,Datapack!F264,IF($G$4=Dates1!$B$4,Datapack!L264,IF($G$4=Dates1!$B$5,Datapack!R264,IF($G$4=Dates1!$B$6,Datapack!X264,)))) -> 0
B60: North Yorkshire | F60: =IF($G$4=Dates1!$B$3,Datapack!B265,IF($G$4=Dates1!$B$4,Datapack!H265,IF($G$4=Dates1!$B$5,Datapack!N265,IF($G$4=Dates1!$B$6,Datapack!T265,)))) -> 9 | H60: =IF($G$4=Dates1!$B$3,Datapack!C265,IF($G$4=Dates1!$B$4,Datapack!I265,IF($G$4=Dates1!$B$5,Datapack!O265,IF($G$4=Dates1!$B$6,Datapack!U265,)))) -> 0 | J60: =IF($G$4=Dates1!$B$3,Datapack!D265,IF($G$4=Dates1!$B$4,Datapack!J265,IF($G$4=Dates1!$B$5,Datapack!P265,IF($G$4=Dates1!$B$6,Datapack!V265,)))) -> 2 | L60: =IF($G$4=Dates1!$B$3,Datapack!E265,IF($G$4=Dates1!$B$4,Datapack!K265,IF($G$4=Dates1!$B$5,Datapack!Q265,IF($G$4=Dates1!$B$6,Datapack!W265,)))) -> 7 | N60: =IF($G$4=Dates1!$B$3,Datapack!F265,IF($G$4=Dates1!$B$4,Datapack!L265,IF($G$4=Dates1!$B$5,Datapack!R265,IF($G$4=Dates1!$B$6,Datapack!X265,)))) -> 0
B61: Rotherham | F61: =IF($G$4=Dates1!$B$3,Datapack!B266,IF($G$4=Dates1!$B$4,Datapack!H266,IF($G$4=Dates1!$B$5,Datapack!N266,IF($G$4=Dates1!$B$6,Datapack!T266,)))) -> 4 | H61: =IF($G$4=Dates1!$B$3,Datapack!C266,IF($G$4=Dates1!$B$4,Datapack!I266,IF($G$4=Dates1!$B$5,Datapack!O266,IF($G$4=Dates1!$B$6,Datapack!U266,)))) -> 0 | J61: =IF($G$4=Dates1!$B$3,Datapack!D266,IF($G$4=Dates1!$B$4,Datapack!J266,IF($G$4=Dates1!$B$5,Datapack!P266,IF($G$4=Dates1!$B$6,Datapack!V266,)))) -> 4 | L61: =IF($G$4=Dates1!$B$3,Datapack!E266,IF($G$4=Dates1!$B$4,Datapack!K266,IF($G$4=Dates1!$B$5,Datapack!Q266,IF($G$4=Dates1!$B$6,Datapack!W266,)))) -> 0 | N61: =IF($G$4=Dates1!$B$3,Datapack!F266,IF($G$4=Dates1!$B$4,Datapack!L266,IF($G$4=Dates1!$B$5,Datapack!R266,IF($G$4=Dates1!$B$6,Datapack!X266,)))) -> 0
B62: Sheffield | F62: =IF($G$4=Dates1!$B$3,Datapack!B267,IF($G$4=Dates1!$B$4,Datapack!H267,IF($G$4=Dates1!$B$5,Datapack!N267,IF($G$4=Dates1!$B$6,Datapack!T267,)))) -> 9 | H62: =IF($G$4=Dates1!$B$3,Datapack!C267,IF($G$4=Dates1!$B$4,Datapack!I267,IF($G$4=Dates1!$B$5,Datapack!O267,IF($G$4=Dates1!$B$6,Datapack!U267,)))) -> 0 | J62: =IF($G$4=Dates1!$B$3,Datapack!D267,IF($G$4=Dates1!$B$4,Datapack!J267,IF($G$4=Dates1!$B$5,Datapack!P267,IF($G$4=Dates1!$B$6,Datapack!V267,)))) -> 3 | L62: =IF($G$4=Dates1!$B$3,Datapack!E267,IF($G$4=Dates1!$B$4,Datapack!K267,IF($G$4=Dates1!$B$5,Datapack!Q267,IF($G$4=Dates1!$B$6,Datapack!W267,)))) -> 5 | N62: =IF($G$4=Dates1!$B$3,Datapack!F267,IF($G$4=Dates1!$B$4,Datapack!L267,IF($G$4=Dates1!$B$5,Datapack!R267,IF($G$4=Dates1!$B$6,Datapack!X267,)))) -> 1
B63: Wakefield | F63: =IF($G$4=Dates1!$B$3,Datapack!B268,IF($G$4=Dates1!$B$4,Datapack!H268,IF($G$4=Dates1!$B$5,Datapack!N268,IF($G$4=Dates1!$B$6,Datapack!T268,)))) -> 4 | H63: =IF($G$4=Dates1!$B$3,Datapack!C268,IF($G$4=Dates1!$B$4,Datapack!I268,IF($G$4=Dates1!$B$5,Datapack!O268,IF($G$4=Dates1!$B$6,Datapack!U268,)))) -> 0 | J63: =IF($G$4=Dates1!$B$3,Datapack!D268,IF($G$4=Dates1!$B$4,Datapack!J268,IF($G$4=Dates1!$B$5,Datapack!P268,IF($G$4=Dates1!$B$6,Datapack!V268,)))) -> 4 | L63: =IF($G$4=Dates1!$B$3,Datapack!E268,IF($G$4=Dates1!$B$4,Datapack!K268,IF($G$4=Dates1!$B$5,Datapack!Q268,IF($G$4=Dates1!$B$6,Datapack!W268,)))) -> 0 | N63: =IF($G$4=Dates1!$B$3,Datapack!F268,IF($G$4=Dates1!$B$4,Datapack!L268,IF($G$4=Dates1!$B$5,Datapack!R268,IF($G$4=Dates1!$B$6,Datapack!X268,)))) -> 0
B64: York | F64: =IF($G$4=Dates1!$B$3,Datapack!B269,IF($G$4=Dates1!$B$4,Datapack!H269,IF($G$4=Dates1!$B$5,Datapack!N269,IF($G$4=Dates1!$B$6,Datapack!T269,)))) -> 1 | H64: =IF($G$4=Dates1!$B$3,Datapack!C269,IF($G$4=Dates1!$B$4,Datapack!I269,IF($G$4=Dates1!$B$5,Datapack!O269,IF($G$4=Dates1!$B$6,Datapack!U269,)))) -> 0 | J64: =IF($G$4=Dates1!$B$3,Datapack!D269,IF($G$4=Dates1!$B$4,Datapack!J269,IF($G$4=Dates1!$B$5,Datapack!P269,IF($G$4=Dates1!$B$6,Datapack!V269,)))) -> 1 | L64: =IF($G$4=Dates1!$B$3,Datapack!E269,IF($G$4=Dates1!$B$4,Datapack!K269,IF($G$4=Dates1!$B$5,Datapack!Q269,IF($G$4=Dates1!$B$6,Datapack!W269,)))) -> 0 | N64: =IF($G$4=Dates1!$B$3,Datapack!F269,IF($G$4=Dates1!$B$4,Datapack!L269,IF($G$4=Dates1!$B$5,Datapack!R269,IF($G$4=Dates1!$B$6,Datapack!X269,)))) -> 0
B66: EAST MIDLANDS | F66: =SUM(F67:F75) -> 64 | H66: =SUM(H67:H75) -> 3 | J66: 32 | L66: 27 | N66: 2
B67: Derby | F67: =IF($G$4=Dates1!$B$3,Datapack!B272,IF($G$4=Dates1!$B$4,Datapack!H272,IF($G$4=Dates1!$B$5,Datapack!N272,IF($G$4=Dates1!$B$6,Datapack!T272,)))) -> 4 | H67: =IF($G$4=Dates1!$B$3,Datapack!C272,IF($G$4=Dates1!$B$4,Datapack!I272,IF($G$4=Dates1!$B$5,Datapack!O272,IF($G$4=Dates1!$B$6,Datapack!U272,)))) -> 0 | J67: =IF($G$4=Dates1!$B$3,Datapack!D272,IF($G$4=Dates1!$B$4,Datapack!J272,IF($G$4=Dates1!$B$5,Datapack!P272,IF($G$4=Dates1!$B$6,Datapack!V272,)))) -> 2 | L67: =IF($G$4=Dates1!$B$3,Datapack!E272,IF($G$4=Dates1!$B$4,Datapack!K272,IF($G$4=Dates1!$B$5,Datapack!Q272,IF($G$4=Dates1!$B$6,Datapack!W272,)))) -> 2 | N67: =IF($G$4=Dates1!$B$3,Datapack!F272,IF($G$4=Dates1!$B$4,Datapack!L272,IF($G$4=Dates1!$B$5,Datapack!R272,IF($G$4=Dates1!$B$6,Datapack!X272,)))) -> 0
B68: Derbyshire | F68: =IF($G$4=Dates1!$B$3,Datapack!B273,IF($G$4=Dates1!$B$4,Datapack!H273,IF($G$4=Dates1!$B$5,Datapack!N273,IF($G$4=Dates1!$B$6,Datapack!T273,)))) -> 13 | H68: =IF($G$4=Dates1!$B$3,Datapack!C273,IF($G$4=Dates1!$B$4,Datapack!I273,IF($G$4=Dates1!$B$5,Datapack!O273,IF($G$4=Dates1!$B$6,Datapack!U273,)))) -> 0 | J68: =IF($G$4=Dates1!$B$3,Datapack!D273,IF($G$4=Dates1!$B$4,Datapack!J273,IF($G$4=Dates1!$B$5,Datapack!P273,IF($G$4=Dates1!$B$6,Datapack!V273,)))) -> 9 | L68: =IF($G$4=Dates1!$B$3,Datapack!E273,IF($G$4=Dates1!$B$4,Datapack!K273,IF($G$4=Dates1!$B$5,Datapack!Q273,IF($G$4=Dates1!$B$6,Datapack!W273,)))) -> 3 | N68: =IF($G$4=Dates1!$B$3,Datapack!F273,IF($G$4=Dates1!$B$4,Datapack!L273,IF($G$4=Dates1!$B$5,Datapack!R273,IF($G$4=Dates1!$B$6,Datapack!X273,)))) -> 1
B69: Leicester | F69: =IF($G$4=Dates1!$B$3,Datapack!B274,IF($G$4=Dates1!$B$4,Datapack!H274,IF($G$4=Dates1!$B$5,Datapack!N274,IF($G$4=Dates1!$B$6,Datapack!T274,)))) -> 4 | H69: =IF($G$4=Dates1!$B$3,Datapack!C274,IF($G$4=Dates1!$B$4,Datapack!I274,IF($G$4=Dates1!$B$5,Datapack!O274,IF($G$4=Dates1!$B$6,Datapack!U274,)))) -> 0 | J69: =IF($G$4=Dates1!$B$3,Datapack!D274,IF($G$4=Dates1!$B$4,Datapack!J274,IF($G$4=Dates1!$B$5,Datapack!P274,IF($G$4=Dates1!$B$6,Datapack!V274,)))) -> 1 | L69: =IF($G$4=Dates1!$B$3,Datapack!E274,IF($G$4=Dates1!$B$4,Datapack!K274,IF($G$4=Dates1!$B$5,Datapack!Q274,IF($G$4=Dates1!$B$6,Datapack!W274,)))) -> 3 | N69: =IF($G$4=Dates1!$B$3,Datapack!F274,IF($G$4=Dates1!$B$4,Datapack!L274,IF($G$4=Dates1!$B$5,Datapack!R274,IF($G$4=Dates1!$B$6,Datapack!X274,)))) -> 0
B70: Leicestershire | F70: =IF($G$4=Dates1!$B$3,Datapack!B275,IF($G$4=Dates1!$B$4,Datapack!H275,IF($G$4=Dates1!$B$5,Datapack!N275,IF($G$4=Dates1!$B$6,Datapack!T275,)))) -> 8 | H70: =IF($G$4=Dates1!$B$3,Datapack!C275,IF($G$4=Dates1!$B$4,Datapack!I275,IF($G$4=Dates1!$B$5,Datapack!O275,IF($G$4=Dates1!$B$6,Datapack!U275,)))) -> 0 | J70: =IF($G$4=Dates1!$B$3,Datapack!D275,IF($G$4=Dates1!$B$4,Datapack!J275,IF($G$4=Dates1!$B$5,Datapack!P275,IF($G$4=Dates1!$B$6,Datapack!V275,)))) -> 1 | L70: =IF($G$4=Dates1!$B$3,Datapack!E275,IF($G$4=Dates1!$B$4,Datapack!K275,IF($G$4=Dates1!$B$5,Datapack!Q275,IF($G$4=Dates1!$B$6,Datapack!W275,)))) -> 7 | N70: =IF($G$4=Dates1!$B$3,Datapack!F275,IF($G$4=Dates1!$B$4,Datapack!L275,IF($G$4=Dates1!$B$5,Datapack!R275,IF($G$4=Dates1!$B$6,Datapack!X275,)))) -> 0
B71: Lincolnshire | F71: =IF($G$4=Dates1!$B$3,Datapack!B276,IF($G$4=Dates1!$B$4,Datapack!H276,IF($G$4=Dates1!$B$5,Datapack!N276,IF($G$4=Dates1!$B$6,Datapack!T276,)))) -> 14 | H71: =IF($G$4=Dates1!$B$3,Datapack!C276,IF($G$4=Dates1!$B$4,Datapack!I276,IF($G$4=Dates1!$B$5,Datapack!O276,IF($G$4=Dates1!$B$6,Datapack!U276,)))) -> 2 | J71: =IF($G$4=Dates1!$B$3,Datapack!D276,IF($G$4=Dates1!$B$4,Datapack!J276,IF($G$4=Dates1!$B$5,Datapack!P276,IF($G$4=Dates1!$B$6,Datapack!V276,)))) -> 9 | L71: =IF($G$4=Dates1!$B$3,Datapack!E276,IF($G$4=Dates1!$B$4,Datapack!K276,IF($G$4=Dates1!$B$5,Datapack!Q276,IF($G$4=Dates1!$B$6,Datapack!W276,)))) -> 3 | N71: =IF($G$4=Dates1!$B$3,Datapack!F276,IF($G$4=Dates1!$B$4,Datapack!L276,IF($G$4=Dates1!$B$5,Datapack!R276,IF($G$4=Dates1!$B$6,Datapack!X276,)))) -> 0
B72: Northamptonshire | F72: =IF($G$4=Dates1!$B$3,Datapack!B277,IF($G$4=Dates1!$B$4,Datapack!H277,IF($G$4=Dates1!$B$5,Datapack!N277,IF($G$4=Dates1!$B$6,Datapack!T277,)))) -> 10 | H72: =IF($G$4=Dates1!$B$3,Datapack!C277,IF($G$4=Dates1!$B$4,Datapack!I277,IF($G$4=Dates1!$B$5,Datapack!O277,IF($G$4=Dates1!$B$6,Datapack!U277,)))) -> 0 | J72: =IF($G$4=Dates1!$B$3,Datapack!D277,IF($G$4=Dates1!$B$4,Datapack!J277,IF($G$4=Dates1!$B$5,Datapack!P277,IF($G$4=Dates1!$B$6,Datapack!V277,)))) -> 4 | L72: =IF($G$4=Dates1!$B$3,Datapack!E277,IF($G$4=Dates1!$B$4,Datapack!K277,IF($G$4=Dates1!$B$5,Datapack!Q277,IF($G$4=Dates1!$B$6,Datapack!W277,)))) -> 5 | N72: =IF($G$4=Dates1!$B$3,Datapack!F277,IF($G$4=Dates1!$B$4,Datapack!L277,IF($G$4=Dates1!$B$5,Datapack!R277,IF($G$4=Dates1!$B$6,Datapack!X277,)))) -> 1
B73: Nottingham | F73: =IF($G$4=Dates1!$B$3,Datapack!B278,IF($G$4=Dates1!$B$4,Datapack!H278,IF($G$4=Dates1!$B$5,Datapack!N278,IF($G$4=Dates1!$B$6,Datapack!T278,)))) -> 3 | H73: =IF($G$4=Dates1!$B$3,Datapack!C278,IF($G$4=Dates1!$B$4,Datapack!I278,IF($G$4=Dates1!$B$5,Datapack!O278,IF($G$4=Dates1!$B$6,Datapack!U278,)))) -> 0 | J73: =IF($G$4=Dates1!$B$3,Datapack!D278,IF($G$4=Dates1!$B$4,Datapack!J278,IF($G$4=Dates1!$B$5,Datapack!P278,IF($G$4=Dates1!$B$6,Datapack!V278,)))) -> 0 | L73: =IF($G$4=Dates1!$B$3,Datapack!E278,IF($G$4=Dates1!$B$4,Datapack!K278,IF($G$4=Dates1!$B$5,Datapack!Q278,IF($G$4=Dates1!$B$6,Datapack!W278,)))) -> 3 | N73: =IF($G$4=Dates1!$B$3,Datapack!F278,IF($G$4=Dates1!$B$4,Datapack!L278,IF($G$4=Dates1!$B$5,Datapack!R278,IF($G$4=Dates1!$B$6,Datapack!X278,)))) -> 0
B74: Nottinghamshire | F74: =IF($G$4=Dates1!$B$3,Datapack!B279,IF($G$4=Dates1!$B$4,Datapack!H279,IF($G$4=Dates1!$B$5,Datapack!N279,IF($G$4=Dates1!$B$6,Datapack!T279,)))) -> 8 | H74: =IF($G$4=Dates1!$B$3,Datapack!C279,IF($G$4=Dates1!$B$4,Datapack!I279,IF($G$4=Dates1!$B$5,Datapack!O279,IF($G$4=Dates1!$B$6,Datapack!U279,)))) -> 1 | J74: =IF($G$4=Dates1!$B$3,Datapack!D279,IF($G$4=Dates1!$B$4,Datapack!J279,IF($G$4=Dates1!$B$5,Datapack!P279,IF($G$4=Dates1!$B$6,Datapack!V279,)))) -> 6 | L74: =IF($G$4=Dates1!$B$3,Datapack!E279,IF($G$4=Dates1!$B$4,Datapack!K279,IF($G$4=Dates1!$B$5,Datapack!Q279,IF($G$4=Dates1!$B$6,Datapack!W279,)))) -> 1 | N74: =IF($G$4=Dates1!$B$3,Datapack!F279,IF($G$4=Dates1!$B$4,Datapack!L279,IF($G$4=Dates1!$B$5,Datapack!R279,IF($G$4=Dates1!$B$6,Datapack!X279,)))) -> 0
B75: Rutland | F75: =IF($G$4=Dates1!$B$3,Datapack!B280,IF($G$4=Dates1!$B$4,Datapack!H280,IF($G$4=Dates1!$B$5,Datapack!N280,IF($G$4=Dates1!$B$6,Datapack!T280,)))) -> 0 | H75: =IF($G$4=Dates1!$B$3,Datapack!C280,IF($G$4=Dates1!$B$4,Datapack!I280,IF($G$4=Dates1!$B$5,Datapack!O280,IF($G$4=Dates1!$B$6,Datapack!U280,)))) -> 0 | J75: =IF($G$4=Dates1!$B$3,Datapack!D280,IF($G$4=Dates1!$B$4,Datapack!J280,IF($G$4=Dates1!$B$5,Datapack!P280,IF($G$4=Dates1!$B$6,Datapack!V280,)))) -> 0 | L75: =IF($G$4=Dates1!$B$3,Datapack!E280,IF($G$4=Dates1!$B$4,Datapack!K280,IF($G$4=Dates1!$B$5,Datapack!Q280,IF($G$4=Dates1!$B$6,Datapack!W280,)))) -> 0 | N75: =IF($G$4=Dates1!$B$3,Datapack!F280,IF($G$4=Dates1!$B$4,Datapack!L280,IF($G$4=Dates1!$B$5,Datapack!R280,IF($G$4=Dates1!$B$6,Datapack!X280,)))) -> 0
B77: WEST MIDLANDS | F77: =SUM(F78:F91) -> 87 | H77: =SUM(H78:H91) -> 19 | J77: 42 | L77: 24 | N77: 2
B78: Birmingham | F78: =IF($G$4=Dates1!$B$3,Datapack!B283,IF($G$4=Dates1!$B$4,Datapack!H283,IF($G$4=Dates1!$B$5,Datapack!N283,IF($G$4=Dates1!$B$6,Datapack!T283,)))) -> 23 | H78: =IF($G$4=Dates1!$B$3,Datapack!C283,IF($G$4=Dates1!$B$4,Datapack!I283,IF($G$4=Dates1!$B$5,Datapack!O283,IF($G$4=Dates1!$B$6,Datapack!U283,)))) -> 4 | J78: =IF($G$4=Dates1!$B$3,Datapack!D283,IF($G$4=Dates1!$B$4,Datapack!J283,IF($G$4=Dates1!$B$5,Datapack!P283,IF($G$4=Dates1!$B$6,Datapack!V283,)))) -> 9 | L78: =IF($G$4=Dates1!$B$3,Datapack!E283,IF($G$4=Dates1!$B$4,Datapack!K283,IF($G$4=Dates1!$B$5,Datapack!Q283,IF($G$4=Dates1!$B$6,Datapack!W283,)))) -> 9 | N78: =IF($G$4=Dates1!$B$3,Datapack!F283,IF($G$4=Dates1!$B$4,Datapack!L283,IF($G$4=Dates1!$B$5,Datapack!R283,IF($G$4=Dates1!$B$6,Datapack!X283,)))) -> 1
B79: Coventry | F79: =IF($G$4=Dates1!$B$3,Datapack!B284,IF($G$4=Dates1!$B$4,Datapack!H284,IF($G$4=Dates1!$B$5,Datapack!N284,IF($G$4=Dates1!$B$6,Datapack!T284,)))) -> 4 | H79: =IF($G$4=Dates1!$B$3,Datapack!C284,IF($G$4=Dates1!$B$4,Datapack!I284,IF($G$4=Dates1!$B$5,Datapack!O284,IF($G$4=Dates1!$B$6,Datapack!U284,)))) -> 1 | J79: =IF($G$4=Dates1!$B$3,Datapack!D284,IF($G$4=Dates1!$B$4,Datapack!J284,IF($G$4=Dates1!$B$5,Datapack!P284,IF($G$4=Dates1!$B$6,Datapack!V284,)))) -> 2 | L79: =IF($G$4=Dates1!$B$3,Datapack!E284,IF($G$4=Dates1!$B$4,Datapack!K284,IF($G$4=Dates1!$B$5,Datapack!Q284,IF($G$4=Dates1!$B$6,Datapack!W284,)))) -> 1 | N79: =IF($G$4=Dates1!$B$3,Datapack!F284,IF($G$4=Dates1!$B$4,Datapack!L284,IF($G$4=Dates1!$B$5,Datapack!R284,IF($G$4=Dates1!$B$6,Datapack!X284,)))) -> 0
B80: Dudley | F80: =IF($G$4=Dates1!$B$3,Datapack!B285,IF($G$4=Dates1!$B$4,Datapack!H285,IF($G$4=Dates1!$B$5,Datapack!N285,IF($G$4=Dates1!$B$6,Datapack!T285,)))) -> 5 | H80: =IF($G$4=Dates1!$B$3,Datapack!C285,IF($G$4=Dates1!$B$4,Datapack!I285,IF($G$4=Dates1!$B$5,Datapack!O285,IF($G$4=Dates1!$B$6,Datapack!U285,)))) -> 0 | J80: =IF($G$4=Dates1!$B$3,Datapack!D285,IF($G$4=Dates1!$B$4,Datapack!J285,IF($G$4=Dates1!$B$5,Datapack!P285,IF($G$4=Dates1!$B$6,Datapack!V285,)))) -> 4 | L80: =IF($G$4=Dates1!$B$3,Datapack!E285,IF($G$4=Dates1!$B$4,Datapack!K285,IF($G$4=Dates1!$B$5,Datapack!Q285,IF($G$4=Dates1!$B$6,Datapack!W285,)))) -> 1 | N80: =IF($G$4=Dates1!$B$3,Datapack!F285,IF($G$4=Dates1!$B$4,Datapack!L285,IF($G$4=Dates1!$B$5,Datapack!R285,IF($G$4=Dates1!$B$6,Datapack!X285,)))) -> 0
B81: Herefordshire | F81: =IF($G$4=Dates1!$B$3,Datapack!B286,IF($G$4=Dates1!$B$4,Datapack!H286,IF($G$4=Dates1!$B$5,Datapack!N286,IF($G$4=Dates1!$B$6,Datapack!T286,)))) -> 2 | H81: =IF($G$4=Dates1!$B$3,Datapack!C286,IF($G$4=Dates1!$B$4,Datapack!I286,IF($G$4=Dates1!$B$5,Datapack!O286,IF($G$4=Dates1!$B$6,Datapack!U286,)))) -> 0 | J81: =IF($G$4=Dates1!$B$3,Datapack!D286,IF($G$4=Dates1!$B$4,Datapack!J286,IF($G$4=Dates1!$B$5,Datapack!P286,IF($G$4=Dates1!$B$6,Datapack!V286,)))) -> 2 | L81: =IF($G$4=Dates1!$B$3,Datapack!E286,IF($G$4=Dates1!$B$4,Datapack!K286,IF($G$4=Dates1!$B$5,Datapack!Q286,IF($G$4=Dates1!$B$6,Datapack!W286,)))) -> 0 | N81: =IF($G$4=Dates1!$B$3,Datapack!F286,IF($G$4=Dates1!$B$4,Datapack!L286,IF($G$4=Dates1!$B$5,Datapack!R286,IF($G$4=Dates1!$B$6,Datapack!X286,)))) -> 0
B82: Sandwell | F82: =IF($G$4=Dates1!$B$3,Datapack!B287,IF($G$4=Dates1!$B$4,Datapack!H287,IF($G$4=Dates1!$B$5,Datapack!N287,IF($G$4=Dates1!$B$6,Datapack!T287,)))) -> 8 | H82: =IF($G$4=Dates1!$B$3,Datapack!C287,IF($G$4=Dates1!$B$4,Datapack!I287,IF($G$4=Dates1!$B$5,Datapack!O287,IF($G$4=Dates1!$B$6,Datapack!U287,)))) -> 5 | J82: =IF($G$4=Dates1!$B$3,Datapack!D287,IF($G$4=Dates1!$B$4,Datapack!J287,IF($G$4=Dates1!$B$5,Datapack!P287,IF($G$4=Dates1!$B$6,Datapack!V287,)))) -> 2 | L82: =IF($G$4=Dates1!$B$3,Datapack!E287,IF($G$4=Dates1!$B$4,Datapack!K287,IF($G$4=Dates1!$B$5,Datapack!Q287,IF($G$4=Dates1!$B$6,Datapack!W287,)))) -> 1 | N82: =IF($G$4=Dates1!$B$3,Datapack!F287,IF($G$4=Dates1!$B$4,Datapack!L287,IF($G$4=Dates1!$B$5,Datapack!R287,IF($G$4=Dates1!$B$6,Datapack!X287,)))) -> 0
B83: Shropshire | F83: =IF($G$4=Dates1!$B$3,Datapack!B288,IF($G$4=Dates1!$B$4,Datapack!H288,IF($G$4=Dates1!$B$5,Datapack!N288,IF($G$4=Dates1!$B$6,Datapack!T288,)))) -> 3 | H83: =IF($G$4=Dates1!$B$3,Datapack!C288,IF($G$4=Dates1!$B$4,Datapack!I288,IF($G$4=Dates1!$B$5,Datapack!O288,IF($G$4=Dates1!$B$6,Datapack!U288,)))) -> 0 | J83: =IF($G$4=Dates1!$B$3,Datapack!D288,IF($G$4=Dates1!$B$4,Datapack!J288,IF($G$4=Dates1!$B$5,Datapack!P288,IF($G$4=Dates1!$B$6,Datapack!V288,)))) -> 3 | L83: =IF($G$4=Dates1!$B$3,Datapack!E288,IF($G$4=Dates1!$B$4,Datapack!K288,IF($G$4=Dates1!$B$5,Datapack!Q288,IF($G$4=Dates1!$B$6,Datapack!W288,)))) -> 0 | N83: =IF($G$4=Dates1!$B$3,Datapack!F288,IF($G$4=Dates1!$B$4,Datapack!L288,IF($G$4=Dates1!$B$5,Datapack!R288,IF($G$4=Dates1!$B$6,Datapack!X288,)))) -> 0
B84: Solihull | F84: =IF($G$4=Dates1!$B$3,Datapack!B289,IF($G$4=Dates1!$B$4,Datapack!H289,IF($G$4=Dates1!$B$5,Datapack!N289,IF($G$4=Dates1!$B$6,Datapack!T289,)))) -> 2 | H84: =IF($G$4=Dates1!$B$3,Datapack!C289,IF($G$4=Dates1!$B$4,Datapack!I289,IF($G$4=Dates1!$B$5,Datapack!O289,IF($G$4=Dates1!$B$6,Datapack!U289,)))) -> 0 | J84: =IF($G$4=Dates1!$B$3,Datapack!D289,IF($G$4=Dates1!$B$4,Datapack!J289,IF($G$4=Dates1!$B$5,Datapack!P289,IF($G$4=Dates1!$B$6,Datapack!V289,)))) -> 2 | L84: =IF($G$4=Dates1!$B$3,Datapack!E289,IF($G$4=Dates1!$B$4,Datapack!K289,IF($G$4=Dates1!$B$5,Datapack!Q289,IF($G$4=Dates1!$B$6,Datapack!W289,)))) -> 0 | N84: =IF($G$4=Dates1!$B$3,Datapack!F289,IF($G$4=Dates1!$B$4,Datapack!L289,IF($G$4=Dates1!$B$5,Datapack!R289,IF($G$4=Dates1!$B$6,Datapack!X289,)))) -> 0
B85: Staffordshire | F85: =IF($G$4=Dates1!$B$3,Datapack!B290,IF($G$4=Dates1!$B$4,Datapack!H290,IF($G$4=Dates1!$B$5,Datapack!N290,IF($G$4=Dates1!$B$6,Datapack!T290,)))) -> 10 | H85: =IF($G$4=Dates1!$B$3,Datapack!C290,IF($G$4=Dates1!$B$4,Datapack!I290,IF($G$4=Dates1!$B$5,Datapack!O290,IF($G$4=Dates1!$B$6,Datapack!U290,)))) -> 0 | J85: =IF($G$4=Dates1!$B$3,Datapack!D290,IF($G$4=Dates1!$B$4,Datapack!J290,IF($G$4=Dates1!$B$5,Datapack!P290,IF($G$4=Dates1!$B$6,Datapack!V290,)))) -> 3 | L85: =IF($G$4=Dates1!$B$3,Datapack!E290,IF($G$4=Dates1!$B$4,Datapack!K290,IF($G$4=Dates1!$B$5,Datapack!Q290,IF($G$4=Dates1!$B$6,Datapack!W290,)))) -> 7 | N85: =IF($G$4=Dates1!$B$3,Datapack!F290,IF($G$4=Dates1!$B$4,Datapack!L290,IF($G$4=Dates1!$B$5,Datapack!R290,IF($G$4=Dates1!$B$6,Datapack!X290,)))) -> 0
B86: Stoke-on-Trent | F86: =IF($G$4=Dates1!$B$3,Datapack!B291,IF($G$4=Dates1!$B$4,Datapack!H291,IF($G$4=Dates1!$B$5,Datapack!N291,IF($G$4=Dates1!$B$6,Datapack!T291,)))) -> 1 | H86: =IF($G$4=Dates1!$B$3,Datapack!C291,IF($G$4=Dates1!$B$4,Datapack!I291,IF($G$4=Dates1!$B$5,Datapack!O291,IF($G$4=Dates1!$B$6,Datapack!U291,)))) -> 1 | J86: =IF($G$4=Dates1!$B$3,Datapack!D291,IF($G$4=Dates1!$B$4,Datapack!J291,IF($G$4=Dates1!$B$5,Datapack!P291,IF($G$4=Dates1!$B$6,Datapack!V291,)))) -> 0 | L86: =IF($G$4=Dates1!$B$3,Datapack!E291,IF($G$4=Dates1!$B$4,Datapack!K291,IF($G$4=Dates1!$B$5,Datapack!Q291,IF($G$4=Dates1!$B$6,Datapack!W291,)))) -> 0 | N86: =IF($G$4=Dates1!$B$3,Datapack!F291,IF($G$4=Dates1!$B$4,Datapack!L291,IF($G$4=Dates1!$B$5,Datapack!R291,IF($G$4=Dates1!$B$6,Datapack!X291,)))) -> 0
B87: Telford and Wrekin | F87: =IF($G$4=Dates1!$B$3,Datapack!B292,IF($G$4=Dates1!$B$4,Datapack!H292,IF($G$4=Dates1!$B$5,Datapack!N292,IF($G$4=Dates1!$B$6,Datapack!T292,)))) -> 1 | H87: =IF($G$4=Dates1!$B$3,Datapack!C292,IF($G$4=Dates1!$B$4,Datapack!I292,IF($G$4=Dates1!$B$5,Datapack!O292,IF($G$4=Dates1!$B$6,Datapack!U292,)))) -> 0 | J87: =IF($G$4=Dates1!$B$3,Datapack!D292,IF($G$4=Dates1!$B$4,Datapack!J292,IF($G$4=Dates1!$B$5,Datapack!P292,IF($G$4=Dates1!$B$6,Datapack!V292,)))) -> 0 | L87: =IF($G$4=Dates1!$B$3,Datapack!E292,IF($G$4=Dates1!$B$4,Datapack!K292,IF($G$4=Dates1!$B$5,Datapack!Q292,IF($G$4=Dates1!$B$6,Datapack!W292,)))) -> 1 | N87: =IF($G$4=Dates1!$B$3,Datapack!F292,IF($G$4=Dates1!$B$4,Datapack!L292,IF($G$4=Dates1!$B$5,Datapack!R292,IF($G$4=Dates1!$B$6,Datapack!X292,)))) -> 0
B88: Walsall | F88: =IF($G$4=Dates1!$B$3,Datapack!B293,IF($G$4=Dates1!$B$4,Datapack!H293,IF($G$4=Dates1!$B$5,Datapack!N293,IF($G$4=Dates1!$B$6,Datapack!T293,)))) -> 6 | H88: =IF($G$4=Dates1!$B$3,Datapack!C293,IF($G$4=Dates1!$B$4,Datapack!I293,IF($G$4=Dates1!$B$5,Datapack!O293,IF($G$4=Dates1!$B$6,Datapack!U293,)))) -> 1 | J88: =IF($G$4=Dates1!$B$3,Datapack!D293,IF($G$4=Dates1!$B$4,Datapack!J293,IF($G$4=Dates1!$B$5,Datapack!P293,IF($G$4=Dates1!$B$6,Datapack!V293,)))) -> 2 | L88: =IF($G$4=Dates1!$B$3,Datapack!E293,IF($G$4=Dates1!$B$4,Datapack!K293,IF($G$4=Dates1!$B$5,Datapack!Q293,IF($G$4=Dates1!$B$6,Datapack!W293,)))) -> 2 | N88: =IF($G$4=Dates1!$B$3,Datapack!F293,IF($G$4=Dates1!$B$4,Datapack!L293,IF($G$4=Dates1!$B$5,Datapack!R293,IF($G$4=Dates1!$B$6,Datapack!X293,)))) -> 1
B89: Warwickshire | F89: =IF($G$4=Dates1!$B$3,Datapack!B294,IF($G$4=Dates1!$B$4,Datapack!H294,IF($G$4=Dates1!$B$5,Datapack!N294,IF($G$4=Dates1!$B$6,Datapack!T294,)))) -> 9 | H89: =IF($G$4=Dates1!$B$3,Datapack!C294,IF($G$4=Dates1!$B$4,Datapack!I294,IF($G$4=Dates1!$B$5,Datapack!O294,IF($G$4=Dates1!$B$6,Datapack!U294,)))) -> 3 | J89: =IF($G$4=Dates1!$B$3,Datapack!D294,IF($G$4=Dates1!$B$4,Datapack!J294,IF($G$4=Dates1!$B$5,Datapack!P294,IF($G$4=Dates1!$B$6,Datapack!V294,)))) -> 5 | L89: =IF($G$4=Dates1!$B$3,Datapack!E294,IF($G$4=Dates1!$B$4,Datapack!K294,IF($G$4=Dates1!$B$5,Datapack!Q294,IF($G$4=Dates1!$B$6,Datapack!W294,)))) -> 1 | N89: =IF($G$4=Dates1!$B$3,Datapack!F294,IF($G$4=Dates1!$B$4,Datapack!L294,IF($G$4=Dates1!$B$5,Datapack!R294,IF($G$4=Dates1!$B$6,Datapack!X294,)))) -> 0
B90: Wolverhampton | F90: =IF($G$4=Dates1!$B$3,Datapack!B295,IF($G$4=Dates1!$B$4,Datapack!H295,IF($G$4=Dates1!$B$5,Datapack!N295,IF($G$4=Dates1!$B$6,Datapack!T295,)))) -> 4 | H90: =IF($G$4=Dates1!$B$3,Datapack!C295,IF($G$4=Dates1!$B$4,Datapack!I295,IF($G$4=Dates1!$B$5,Datapack!O295,IF($G$4=Dates1!$B$6,Datapack!U295,)))) -> 1 | J90: =IF($G$4=Dates1!$B$3,Datapack!D295,IF($G$4=Dates1!$B$4,Datapack!J295,IF($G$4=Dates1!$B$5,Datapack!P295,IF($G$4=Dates1!$B$6,Datapack!V295,)))) -> 3 | L90: =IF($G$4=Dates1!$B$3,Datapack!E295,IF($G$4=Dates1!$B$4,Datapack!K295,IF($G$4=Dates1!$B$5,Datapack!Q295,IF($G$4=Dates1!$B$6,Datapack!W295,)))) -> 0 | N90: =IF($G$4=Dates1!$B$3,Datapack!F295,IF($G$4=Dates1!$B$4,Datapack!L295,IF($G$4=Dates1!$B$5,Datapack!R295,IF($G$4=Dates1!$B$6,Datapack!X295,)))) -> 0
B91: Worcestershire | F91: =IF($G$4=Dates1!$B$3,Datapack!B296,IF($G$4=Dates1!$B$4,Datapack!H296,IF($G$4=Dates1!$B$5,Datapack!N296,IF($G$4=Dates1!$B$6,Datapack!T296,)))) -> 9 | H91: =IF($G$4=Dates1!$B$3,Datapack!C296,IF($G$4=Dates1!$B$4,Datapack!I296,IF($G$4=Dates1!$B$5,Datapack!O296,IF($G$4=Dates1!$B$6,Datapack!U296,)))) -> 3 | J91: =IF($G$4=Dates1!$B$3,Datapack!D296,IF($G$4=Dates1!$B$4,Datapack!J296,IF($G$4=Dates1!$B$5,Datapack!P296,IF($G$4=Dates1!$B$6,Datapack!V296,)))) -> 5 | L91: =IF($G$4=Dates1!$B$3,Datapack!E296,IF($G$4=Dates1!$B$4,Datapack!K296,IF($G$4=Dates1!$B$5,Datapack!Q296,IF($G$4=Dates1!$B$6,Datapack!W296,)))) -> 1 | N91: =IF($G$4=Dates1!$B$3,Datapack!F296,IF($G$4=Dates1!$B$4,Datapack!L296,IF($G$4=Dates1!$B$5,Datapack!R296,IF($G$4=Dates1!$B$6,Datapack!X296,)))) -> 0
B93: EAST OF ENGLAND | F93: =SUM(F94:F104) -> 71 | H93: =SUM(H94:H104) -> 7 | J93: 32 | L93: 30 | N93: 2
B94: Bedford | F94: =IF($G$4=Dates1!$B$3,Datapack!B299,IF($G$4=Dates1!$B$4,Datapack!H299,IF($G$4=Dates1!$B$5,Datapack!N299,IF($G$4=Dates1!$B$6,Datapack!T299,)))) -> 4 | H94: =IF($G$4=Dates1!$B$3,Datapack!C299,IF($G$4=Dates1!$B$4,Datapack!I299,IF($G$4=Dates1!$B$5,Datapack!O299,IF($G$4=Dates1!$B$6,Datapack!U299,)))) -> 1 | J94: =IF($G$4=Dates1!$B$3,Datapack!D299,IF($G$4=Dates1!$B$4,Datapack!J299,IF($G$4=Dates1!$B$5,Datapack!P299,IF($G$4=Dates1!$B$6,Datapack!V299,)))) -> 2 | L94: =IF($G$4=Dates1!$B$3,Datapack!E299,IF($G$4=Dates1!$B$4,Datapack!K299,IF($G$4=Dates1!$B$5,Datapack!Q299,IF($G$4=Dates1!$B$6,Datapack!W299,)))) -> 1 | N94: =IF($G$4=Dates1!$B$3,Datapack!F299,IF($G$4=Dates1!$B$4,Datapack!L299,IF($G$4=Dates1!$B$5,Datapack!R299,IF($G$4=Dates1!$B$6,Datapack!X299,)))) -> 0
B95: Cambridgeshire | F95: =IF($G$4=Dates1!$B$3,Datapack!B300,IF($G$4=Dates1!$B$4,Datapack!H300,IF($G$4=Dates1!$B$5,Datapack!N300,IF($G$4=Dates1!$B$6,Datapack!T300,)))) -> 10 | H95: =IF($G$4=Dates1!$B$3,Datapack!C300,IF($G$4=Dates1!$B$4,Datapack!I300,IF($G$4=Dates1!$B$5,Datapack!O300,IF($G$4=Dates1!$B$6,Datapack!U300,)))) -> 0 | J95: =IF($G$4=Dates1!$B$3,Datapack!D300,IF($G$4=Dates1!$B$4,Datapack!J300,IF($G$4=Dates1!$B$5,Datapack!P300,IF($G$4=Dates1!$B$6,Datapack!V300,)))) -> 2 | L95: =IF($G$4=Dates1!$B$3,Datapack!E300,IF($G$4=Dates1!$B$4,Datapack!K300,IF($G$4=Dates1!$B$5,Datapack!Q300,IF($G$4=Dates1!$B$6,Datapack!W300,)))) -> 8 | N95: =IF($G$4=Dates1!$B$3,Datapack!F300,IF($G$4=Dates1!$B$4,Datapack!L300,IF($G$4=Dates1!$B$5,Datapack!R300,IF($G$4=Dates1!$B$6,Datapack!X300,)))) -> 0
B96: Central Bedfordshire | F96: =IF($G$4=Dates1!$B$3,Datapack!B301,IF($G$4=Dates1!$B$4,Datapack!H301,IF($G$4=Dates1!$B$5,Datapack!N301,IF($G$4=Dates1!$B$6,Datapack!T301,)))) -> 1 | H96: =IF($G$4=Dates1!$B$3,Datapack!C301,IF($G$4=Dates1!$B$4,Datapack!I301,IF($G$4=Dates1!$B$5,Datapack!O301,IF($G$4=Dates1!$B$6,Datapack!U301,)))) -> 0 | J96: =IF($G$4=Dates1!$B$3,Datapack!D301,IF($G$4=Dates1!$B$4,Datapack!J301,IF($G$4=Dates1!$B$5,Datapack!P301,IF($G$4=Dates1!$B$6,Datapack!V301,)))) -> 1 | L96: =IF($G$4=Dates1!$B$3,Datapack!E301,IF($G$4=Dates1!$B$4,Datapack!K301,IF($G$4=Dates1!$B$5,Datapack!Q301,IF($G$4=Dates1!$B$6,Datapack!W301,)))) -> 0 | N96: =IF($G$4=Dates1!$B$3,Datapack!F301,IF($G$4=Dates1!$B$4,Datapack!L301,IF($G$4=Dates1!$B$5,Datapack!R301,IF($G$4=Dates1!$B$6,Datapack!X301,)))) -> 0
B97: Essex | F97: =IF($G$4=Dates1!$B$3,Datapack!B302,IF($G$4=Dates1!$B$4,Datapack!H302,IF($G$4=Dates1!$B$5,Datapack!N302,IF($G$4=Dates1!$B$6,Datapack!T302,)))) -> 12 | H97: =IF($G$4=Dates1!$B$3,Datapack!C302,IF($G$4=Dates1!$B$4,Datapack!I302,IF($G$4=Dates1!$B$5,Datapack!O302,IF($G$4=Dates1!$B$6,Datapack!U302,)))) -> 1 | J97: =IF($G$4=Dates1!$B$3,Datapack!D302,IF($G$4=Dates1!$B$4,Datapack!J302,IF($G$4=Dates1!$B$5,Datapack!P302,IF($G$4=Dates1!$B$6,Datapack!V302,)))) -> 6 | L97: =IF($G$4=Dates1!$B$3,Datapack!E302,IF($G$4=Dates1!$B$4,Datapack!K302,IF($G$4=Dates1!$B$5,Datapack!Q302,IF($G$4=Dates1!$B$6,Datapack!W302,)))) -> 5 | N97: =IF($G$4=Dates1!$B$3,Datapack!F302,IF($G$4=Dates1!$B$4,Datapack!L302,IF($G$4=Dates1!$B$5,Datapack!R302,IF($G$4=Dates1!$B$6,Datapack!X302,)))) -> 0
B98: Hertfordshire | F98: =IF($G$4=Dates1!$B$3,Datapack!B303,IF($G$4=Dates1!$B$4,Datapack!H303,IF($G$4=Dates1!$B$5,Datapack!N303,IF($G$4=Dates1!$B$6,Datapack!T303,)))) -> 8 | H98: =IF($G$4=Dates1!$B$3,Datapack!C303,IF($G$4=Dates1!$B$4,Datapack!I303,IF($G$4=Dates1!$B$5,Datapack!O303,IF($G$4=Dates1!$B$6,Datapack!U303,)))) -> 0 | J98: =IF($G$4=Dates1!$B$3,Datapack!D303,IF($G$4=Dates1!$B$4,Datapack!J303,IF($G$4=Dates1!$B$5,Datapack!P303,IF($G$4=Dates1!$B$6,Datapack!V303,)))) -> 6 | L98: =IF($G$4=Dates1!$B$3,Datapack!E303,IF($G$4=Dates1!$B$4,Datapack!K303,IF($G$4=Dates1!$B$5,Datapack!Q303,IF($G$4=Dates1!$B$6,Datapack!W303,)))) -> 2 | N98: =IF($G$4=Dates1!$B$3,Datapack!F303,IF($G$4=Dates1!$B$4,Datapack!L303,IF($G$4=Dates1!$B$5,Datapack!R303,IF($G$4=Dates1!$B$6,Datapack!X303,)))) -> 0
B99: Luton | F99: =IF($G$4=Dates1!$B$3,Datapack!B304,IF($G$4=Dates1!$B$4,Datapack!H304,IF($G$4=Dates1!$B$5,Datapack!N304,IF($G$4=Dates1!$B$6,Datapack!T304,)))) -> 7 | H99: =IF($G$4=Dates1!$B$3,Datapack!C304,IF($G$4=Dates1!$B$4,Datapack!I304,IF($G$4=Dates1!$B$5,Datapack!O304,IF($G$4=Dates1!$B$6,Datapack!U304,)))) -> 1 | J99: =IF($G$4=Dates1!$B$3,Datapack!D304,IF($G$4=Dates1!$B$4,Datapack!J304,IF($G$4=Dates1!$B$5,Datapack!P304,IF($G$4=Dates1!$B$6,Datapack!V304,)))) -> 2 | L99: =IF($G$4=Dates1!$B$3,Datapack!E304,IF($G$4=Dates1!$B$4,Datapack!K304,IF($G$4=Dates1!$B$5,Datapack!Q304,IF($G$4=Dates1!$B$6,Datapack!W304,)))) -> 4 | N99: =IF($G$4=Dates1!$B$3,Datapack!F304,IF($G$4=Dates1!$B$4,Datapack!L304,IF($G$4=Dates1!$B$5,Datapack!R304,IF($G$4=Dates1!$B$6,Datapack!X304,)))) -> 0
B100: Norfolk | F100: =IF($G$4=Dates1!$B$3,Datapack!B305,IF($G$4=Dates1!$B$4,Datapack!H305,IF($G$4=Dates1!$B$5,Datapack!N305,IF($G$4=Dates1!$B$6,Datapack!T305,)))) -> 11 | H100: =IF($G$4=Dates1!$B$3,Datapack!C305,IF($G$4=Dates1!$B$4,Datapack!I305,IF($G$4=Dates1!$B$5,Datapack!O305,IF($G$4=Dates1!$B$6,Datapack!U305,)))) -> 1 | J100: =IF($G$4=Dates1!$B$3,Datapack!D305,IF($G$4=Dates1!$B$4,Datapack!J305,IF($G$4=Dates1!$B$5,Datapack!P305,IF($G$4=Dates1!$B$6,Datapack!V305,)))) -> 6 | L100: =IF($G$4=Dates1!$B$3,Datapack!E305,IF($G$4=Dates1!$B$4,Datapack!K305,IF($G$4=Dates1!$B$5,Datapack!Q305,IF($G$4=Dates1!$B$6,Datapack!W305,)))) -> 4 | N100: =IF($G$4=Dates1!$B$3,Datapack!F305,IF($G$4=Dates1!$B$4,Datapack!L305,IF($G$4=Dates1!$B$5,Datapack!R305,IF($G$4=Dates1!$B$6,Datapack!X305,)))) -> 0
B101: Peterborough | F101: =IF($G$4=Dates1!$B$3,Datapack!B306,IF($G$4=Dates1!$B$4,Datapack!H306,IF($G$4=Dates1!$B$5,Datapack!N306,IF($G$4=Dates1!$B$6,Datapack!T306,)))) -> 0 | H101: =IF($G$4=Dates1!$B$3,Datapack!C306,IF($G$4=Dates1!$B$4,Datapack!I306,IF($G$4=Dates1!$B$5,Datapack!O306,IF($G$4=Dates1!$B$6,Datapack!U306,)))) -> 0 | J101: =IF($G$4=Dates1!$B$3,Datapack!D306,IF($G$4=Dates1!$B$4,Datapack!J306,IF($G$4=Dates1!$B$5,Datapack!P306,IF($G$4=Dates1!$B$6,Datapack!V306,)))) -> 0 | L101: =IF($G$4=Dates1!$B$3,Datapack!E306,IF($G$4=Dates1!$B$4,Datapack!K306,IF($G$4=Dates1!$B$5,Datapack!Q306,IF($G$4=Dates1!$B$6,Datapack!W306,)))) -> 0 | N101: =IF($G$4=Dates1!$B$3,Datapack!F306,IF($G$4=Dates1!$B$4,Datapack!L306,IF($G$4=Dates1!$B$5,Datapack!R306,IF($G$4=Dates1!$B$6,Datapack!X306,)))) -> 0
B102: Southend-on-Sea | F102: =IF($G$4=Dates1!$B$3,Datapack!B307,IF($G$4=Dates1!$B$4,Datapack!H307,IF($G$4=Dates1!$B$5,Datapack!N307,IF($G$4=Dates1!$B$6,Datapack!T307,)))) -> 3 | H102: =IF($G$4=Dates1!$B$3,Datapack!C307,IF($G$4=Dates1!$B$4,Datapack!I307,IF($G$4=Dates1!$B$5,Datapack!O307,IF($G$4=Dates1!$B$6,Datapack!U307,)))) -> 2 | J102: =IF($G$4=Dates1!$B$3,Datapack!D307,IF($G$4=Dates1!$B$4,Datapack!J307,IF($G$4=Dates1!$B$5,Datapack!P307,IF($G$4=Dates1!$B$6,Datapack!V307,)))) -> 0 | L102: =IF($G$4=Dates1!$B$3,Datapack!E307,IF($G$4=Dates1!$B$4,Datapack!K307,IF($G$4=Dates1!$B$5,Datapack!Q307,IF($G$4=Dates1!$B$6,Datapack!W307,)))) -> 0 | N102: =IF($G$4=Dates1!$B$3,Datapack!F307,IF($G$4=Dates1!$B$4,Datapack!L307,IF($G$4=Dates1!$B$5,Datapack!R307,IF($G$4=Dates1!$B$6,Datapack!X307,)))) -> 1
B103: Suffolk | F103: =IF($G$4=Dates1!$B$3,Datapack!B308,IF($G$4=Dates1!$B$4,Datapack!H308,IF($G$4=Dates1!$B$5,Datapack!N308,IF($G$4=Dates1!$B$6,Datapack!T308,)))) -> 10 | H103: =IF($G$4=Dates1!$B$3,Datapack!C308,IF($G$4=Dates1!$B$4,Datapack!I308,IF($G$4=Dates1!$B$5,Datapack!O308,IF($G$4=Dates1!$B$6,Datapack!U308,)))) -> 1 | J103: =IF($G$4=Dates1!$B$3,Datapack!D308,IF($G$4=Dates1!$B$4,Datapack!J308,IF($G$4=Dates1!$B$5,Datapack!P308,IF($G$4=Dates1!$B$6,Datapack!V308,)))) -> 6 | L103: =IF($G$4=Dates1!$B$3,Datapack!E308,IF($G$4=Dates1!$B$4,Datapack!K308,IF($G$4=Dates1!$B$5,Datapack!Q308,IF($G$4=Dates1!$B$6,Datapack!W308,)))) -> 3 | N103: =IF($G$4=Dates1!$B$3,Datapack!F308,IF($G$4=Dates1!$B$4,Datapack!L308,IF($G$4=Dates1!$B$5,Datapack!R308,IF($G$4=Dates1!$B$6,Datapack!X308,)))) -> 0
B104: Thurrock | F104: =IF($G$4=Dates1!$B$3,Datapack!B309,IF($G$4=Dates1!$B$4,Datapack!H309,IF($G$4=Dates1!$B$5,Datapack!N309,IF($G$4=Dates1!$B$6,Datapack!T309,)))) -> 5 | H104: =IF($G$4=Dates1!$B$3,Datapack!C309,IF($G$4=Dates1!$B$4,Datapack!I309,IF($G$4=Dates1!$B$5,Datapack!O309,IF($G$4=Dates1!$B$6,Datapack!U309,)))) -> 0 | J104: =IF($G$4=Dates1!$B$3,Datapack!D309,IF($G$4=Dates1!$B$4,Datapack!J309,IF($G$4=Dates1!$B$5,Datapack!P309,IF($G$4=Dates1!$B$6,Datapack!V309,)))) -> 1 | L104: =IF($G$4=Dates1!$B$3,Datapack!E309,IF($G$4=Dates1!$B$4,Datapack!K309,IF($G$4=Dates1!$B$5,Datapack!Q309,IF($G$4=Dates1!$B$6,Datapack!W309,)))) -> 3 | N104: =IF($G$4=Dates1!$B$3,Datapack!F309,IF($G$4=Dates1!$B$4,Datapack!L309,IF($G$4=Dates1!$B$5,Datapack!R309,IF($G$4=Dates1!$B$6,Datapack!X309,)))) -> 1
B106: LONDON | F106: =SUM(F107:F139) -> 94 | H106: =SUM(H107:H139) -> 12 | J106: 64 | L106: 16 | N106: 2
B107: Barking and Dagenham | F107: =IF($G$4=Dates1!$B$3,Datapack!B312,IF($G$4=Dates1!$B$4,Datapack!H312,IF($G$4=Dates1!$B$5,Datapack!N312,IF($G$4=Dates1!$B$6,Datapack!T312,)))) -> 3 | H107: =IF($G$4=Dates1!$B$3,Datapack!C312,IF($G$4=Dates1!$B$4,Datapack!I312,IF($G$4=Dates1!$B$5,Datapack!O312,IF($G$4=Dates1!$B$6,Datapack!U312,)))) -> 3 | J107: =IF($G$4=Dates1!$B$3,Datapack!D312,IF($G$4=Dates1!$B$4,Datapack!J312,IF($G$4=Dates1!$B$5,Datapack!P312,IF($G$4=Dates1!$B$6,Datapack!V312,)))) -> 0 | L107: =IF($G$4=Dates1!$B$3,Datapack!E312,IF($G$4=Dates1!$B$4,Datapack!K312,IF($G$4=Dates1!$B$5,Datapack!Q312,IF($G$4=Dates1!$B$6,Datapack!W312,)))) -> 0 | N107: =IF($G$4=Dates1!$B$3,Datapack!F312,IF($G$4=Dates1!$B$4,Datapack!L312,IF($G$4=Dates1!$B$5,Datapack!R312,IF($G$4=Dates1!$B$6,Datapack!X312,)))) -> 0
B108: Barnet | F108: =IF($G$4=Dates1!$B$3,Datapack!B313,IF($G$4=Dates1!$B$4,Datapack!H313,IF($G$4=Dates1!$B$5,Datapack!N313,IF($G$4=Dates1!$B$6,Datapack!T313,)))) -> 2 | H108: =IF($G$4=Dates1!$B$3,Datapack!C313,IF($G$4=Dates1!$B$4,Datapack!I313,IF($G$4=Dates1!$B$5,Datapack!O313,IF($G$4=Dates1!$B$6,Datapack!U313,)))) -> 0 | J108: =IF($G$4=Dates1!$B$3,Datapack!D313,IF($G$4=Dates1!$B$4,Datapack!J313,IF($G$4=Dates1!$B$5,Datapack!P313,IF($G$4=Dates1!$B$6,Datapack!V313,)))) -> 2 | L108: =IF($G$4=Dates1!$B$3,Datapack!E313,IF($G$4=Dates1!$B$4,Datapack!K313,IF($G$4=Dates1!$B$5,Datapack!Q313,IF($G$4=Dates1!$B$6,Datapack!W313,)))) -> 0 | N108: =IF($G$4=Dates1!$B$3,Datapack!F313,IF($G$4=Dates1!$B$4,Datapack!L313,IF($G$4=Dates1!$B$5,Datapack!R313,IF($G$4=Dates1!$B$6,Datapack!X313,)))) -> 0
B109: Bexley | F109: =IF($G$4=Dates1!$B$3,Datapack!B314,IF($G$4=Dates1!$B$4,Datapack!H314,IF($G$4=Dates1!$B$5,Datapack!N314,IF($G$4=Dates1!$B$6,Datapack!T314,)))) -> 1 | H109: =IF($G$4=Dates1!$B$3,Datapack!C314,IF($G$4=Dates1!$B$4,Datapack!I314,IF($G$4=Dates1!$B$5,Datapack!O314,IF($G$4=Dates1!$B$6,Datapack!U314,)))) -> 0 | J109: =IF($G$4=Dates1!$B$3,Datapack!D314,IF($G$4=Dates1!$B$4,Datapack!J314,IF($G$4=Dates1!$B$5,Datapack!P314,IF($G$4=Dates1!$B$6,Datapack!V314,)))) -> 1 | L109: =IF($G$4=Dates1!$B$3,Datapack!E314,IF($G$4=Dates1!$B$4,Datapack!K314,IF($G$4=Dates1!$B$5,Datapack!Q314,IF($G$4=Dates1!$B$6,Datapack!W314,)))) -> 0 | N109: =IF($G$4=Dates1!$B$3,Datapack!F314,IF($G$4=Dates1!$B$4,Datapack!L314,IF($G$4=Dates1!$B$5,Datapack!R314,IF($G$4=Dates1!$B$6,Datapack!X314,)))) -> 0
B110: Brent | F110: =IF($G$4=Dates1!$B$3,Datapack!B315,IF($G$4=Dates1!$B$4,Datapack!H315,IF($G$4=Dates1!$B$5,Datapack!N315,IF($G$4=Dates1!$B$6,Datapack!T315,)))) -> 1 | H110: =IF($G$4=Dates1!$B$3,Datapack!C315,IF($G$4=Dates1!$B$4,Datapack!I315,IF($G$4=Dates1!$B$5,Datapack!O315,IF($G$4=Dates1!$B$6,Datapack!U315,)))) -> 0 | J110: =IF($G$4=Dates1!$B$3,Datapack!D315,IF($G$4=Dates1!$B$4,Datapack!J315,IF($G$4=Dates1!$B$5,Datapack!P315,IF($G$4=Dates1!$B$6,Datapack!V315,)))) -> 1 | L110: =IF($G$4=Dates1!$B$3,Datapack!E315,IF($G$4=Dates1!$B$4,Datapack!K315,IF($G$4=Dates1!$B$5,Datapack!Q315,IF($G$4=Dates1!$B$6,Datapack!W315,)))) -> 0 | N110: =IF($G$4=Dates1!$B$3,Datapack!F315,IF($G$4=Dates1!$B$4,Datapack!L315,IF($G$4=Dates1!$B$5,Datapack!R315,IF($G$4=Dates1!$B$6,Datapack!X315,)))) -> 0
B111: Bromley | F111: =IF($G$4=Dates1!$B$3,Datapack!B316,IF($G$4=Dates1!$B$4,Datapack!H316,IF($G$4=Dates1!$B$5,Datapack!N316,IF($G$4=Dates1!$B$6,Datapack!T316,)))) -> 2 | H111: =IF($G$4=Dates1!$B$3,Datapack!C316,IF($G$4=Dates1!$B$4,Datapack!I316,IF($G$4=Dates1!$B$5,Datapack!O316,IF($G$4=Dates1!$B$6,Datapack!U316,)))) -> 0 | J111: =IF($G$4=Dates1!$B$3,Datapack!D316,IF($G$4=Dates1!$B$4,Datapack!J316,IF($G$4=Dates1!$B$5,Datapack!P316,IF($G$4=Dates1!$B$6,Datapack!V316,)))) -> 1 | L111: =IF($G$4=Dates1!$B$3,Datapack!E316,IF($G$4=Dates1!$B$4,Datapack!K316,IF($G$4=Dates1!$B$5,Datapack!Q316,IF($G$4=Dates1!$B$6,Datapack!W316,)))) -> 1 | N111: =IF($G$4=Dates1!$B$3,Datapack!F316,IF($G$4=Dates1!$B$4,Datapack!L316,IF($G$4=Dates1!$B$5,Datapack!R316,IF($G$4=Dates1!$B$6,Datapack!X316,)))) -> 0
B112: Camden | F112: =IF($G$4=Dates1!$B$3,Datapack!B317,IF($G$4=Dates1!$B$4,Datapack!H317,IF($G$4=Dates1!$B$5,Datapack!N317,IF($G$4=Dates1!$B$6,Datapack!T317,)))) -> 2 | H112: =IF($G$4=Dates1!$B$3,Datapack!C317,IF($G$4=Dates1!$B$4,Datapack!I317,IF($G$4=Dates1!$B$5,Datapack!O317,IF($G$4=Dates1!$B$6,Datapack!U317,)))) -> 0 | J112: =IF($G$4=Dates1!$B$3,Datapack!D317,IF($G$4=Dates1!$B$4,Datapack!J317,IF($G$4=Dates1!$B$5,Datapack!P317,IF($G$4=Dates1!$B$6,Datapack!V317,)))) -> 2 | L112: =IF($G$4=Dates1!$B$3,Datapack!E317,IF($G$4=Dates1!$B$4,Datapack!K317,IF($G$4=Dates1!$B$5,Datapack!Q317,IF($G$4=Dates1!$B$6,Datapack!W317,)))) -> 0 | N112: =IF($G$4=Dates1!$B$3,Datapack!F317,IF($G$4=Dates1!$B$4,Datapack!L317,IF($G$4=Dates1!$B$5,Datapack!R317,IF($G$4=Dates1!$B$6,Datapack!X317,)))) -> 0
B113: City of London | F113: =IF($G$4=Dates1!$B$3,Datapack!B318,IF($G$4=Dates1!$B$4,Datapack!H318,IF($G$4=Dates1!$B$5,Datapack!N318,IF($G$4=Dates1!$B$6,Datapack!T318,)))) -> 0 | H113: =IF($G$4=Dates1!$B$3,Datapack!C318,IF($G$4=Dates1!$B$4,Datapack!I318,IF($G$4=Dates1!$B$5,Datapack!O318,IF($G$4=Dates1!$B$6,Datapack!U318,)))) -> 0 | J113: =IF($G$4=Dates1!$B$3,Datapack!D318,IF($G$4=Dates1!$B$4,Datapack!J318,IF($G$4=Dates1!$B$5,Datapack!P318,IF($G$4=Dates1!$B$6,Datapack!V318,)))) -> 0 | L113: =IF($G$4=Dates1!$B$3,Datapack!E318,IF($G$4=Dates1!$B$4,Datapack!K318,IF($G$4=Dates1!$B$5,Datapack!Q318,IF($G$4=Dates1!$B$6,Datapack!W318,)))) -> 0 | N113: =IF($G$4=Dates1!$B$3,Datapack!F318,IF($G$4=Dates1!$B$4,Datapack!L318,IF($G$4=Dates1!$B$5,Datapack!R318,IF($G$4=Dates1!$B$6,Datapack!X318,)))) -> 0
B114: Croydon | F114: =IF($G$4=Dates1!$B$3,Datapack!B319,IF($G$4=Dates1!$B$4,Datapack!H319,IF($G$4=Dates1!$B$5,Datapack!N319,IF($G$4=Dates1!$B$6,Datapack!T319,)))) -> 6 | H114: =IF($G$4=Dates1!$B$3,Datapack!C319,IF($G$4=Dates1!$B$4,Datapack!I319,IF($G$4=Dates1!$B$5,Datapack!O319,IF($G$4=Dates1!$B$6,Datapack!U319,)))) -> 1 | J114: =IF($G$4=Dates1!$B$3,Datapack!D319,IF($G$4=Dates1!$B$4,Datapack!J319,IF($G$4=Dates1!$B$5,Datapack!P319,IF($G$4=Dates1!$B$6,Datapack!V319,)))) -> 4 | L114: =IF($G$4=Dates1!$B$3,Datapack!E319,IF($G$4=Dates1!$B$4,Datapack!K319,IF($G$4=Dates1!$B$5,Datapack!Q319,IF($G$4=Dates1!$B$6,Datapack!W319,)))) -> 1 | N114: =IF($G$4=Dates1!$B$3,Datapack!F319,IF($G$4=Dates1!$B$4,Datapack!L319,IF($G$4=Dates1!$B$5,Datapack!R319,IF($G$4=Dates1!$B$6,Datapack!X319,)))) -> 0
B115: Ealing | F115: =IF($G$4=Dates1!$B$3,Datapack!B320,IF($G$4=Dates1!$B$4,Datapack!H320,IF($G$4=Dates1!$B$5,Datapack!N320,IF($G$4=Dates1!$B$6,Datapack!T320,)))) -> 7 | H115: =IF($G$4=Dates1!$B$3,Datapack!C320,IF($G$4=Dates1!$B$4,Datapack!I320,IF($G$4=Dates1!$B$5,Datapack!O320,IF($G$4=Dates1!$B$6,Datapack!U320,)))) -> 0 | J115: =IF($G$4=Dates1!$B$3,Datapack!D320,IF($G$4=Dates1!$B$4,Datapack!J320,IF($G$4=Dates1!$B$5,Datapack!P320,IF($G$4=Dates1!$B$6,Datapack!V320,)))) -> 5 | L115: =IF($G$4=Dates1!$B$3,Datapack!E320,IF($G$4=Dates1!$B$4,Datapack!K320,IF($G$4=Dates1!$B$5,Datapack!Q320,IF($G$4=Dates1!$B$6,Datapack!W320,)))) -> 2 | N115: =IF($G$4=Dates1!$B$3,Datapack!F320,IF($G$4=Dates1!$B$4,Datapack!L320,IF($G$4=Dates1!$B$5,Datapack!R320,IF($G$4=Dates1!$B$6,Datapack!X320,)))) -> 0
B116: Enfield | F116: =IF($G$4=Dates1!$B$3,Datapack!B321,IF($G$4=Dates1!$B$4,Datapack!H321,IF($G$4=Dates1!$B$5,Datapack!N321,IF($G$4=Dates1!$B$6,Datapack!T321,)))) -> 5 | H116: =IF($G$4=Dates1!$B$3,Datapack!C321,IF($G$4=Dates1!$B$4,Datapack!I321,IF($G$4=Dates1!$B$5,Datapack!O321,IF($G$4=Dates1!$B$6,Datapack!U321,)))) -> 0 | J116: =IF($G$4=Dates1!$B$3,Datapack!D321,IF($G$4=Dates1!$B$4,Datapack!J321,IF($G$4=Dates1!$B$5,Datapack!P321,IF($G$4=Dates1!$B$6,Datapack!V321,)))) -> 4 | L116: =IF($G$4=Dates1!$B$3,Datapack!E321,IF($G$4=Dates1!$B$4,Datapack!K321,IF($G$4=Dates1!$B$5,Datapack!Q321,IF($G$4=Dates1!$B$6,Datapack!W321,)))) -> 1 | N116: =IF($G$4=Dates1!$B$3,Datapack!F321,IF($G$4=Dates1!$B$4,Datapack!L321,IF($G$4=Dates1!$B$5,Datapack!R321,IF($G$4=Dates1!$B$6,Datapack!X321,)))) -> 0
B117: Greenwich | F117: =IF($G$4=Dates1!$B$3,Datapack!B322,IF($G$4=Dates1!$B$4,Datapack!H322,IF($G$4=Dates1!$B$5,Datapack!N322,IF($G$4=Dates1!$B$6,Datapack!T322,)))) -> 5 | H117: =IF($G$4=Dates1!$B$3,Datapack!C322,IF($G$4=Dates1!$B$4,Datapack!I322,IF($G$4=Dates1!$B$5,Datapack!O322,IF($G$4=Dates1!$B$6,Datapack!U322,)))) -> 0 | J117: =IF($G$4=Dates1!$B$3,Datapack!D322,IF($G$4=Dates1!$B$4,Datapack!J322,IF($G$4=Dates1!$B$5,Datapack!P322,IF($G$4=Dates1!$B$6,Datapack!V322,)))) -> 5 | L117: =IF($G$4=Dates1!$B$3,Datapack!E322,IF($G$4=Dates1!$B$4,Datapack!K322,IF($G$4=Dates1!$B$5,Datapack!Q322,IF($G$4=Dates1!$B$6,Datapack!W322,)))) -> 0 | N117: =IF($G$4=Dates1!$B$3,Datapack!F322,IF($G$4=Dates1!$B$4,Datapack!L322,IF($G$4=Dates1!$B$5,Datapack!R322,IF($G$4=Dates1!$B$6,Datapack!X322,)))) -> 0
B118: Hackney | F118: =IF($G$4=Dates1!$B$3,Datapack!B323,IF($G$4=Dates1!$B$4,Datapack!H323,IF($G$4=Dates1!$B$5,Datapack!N323,IF($G$4=Dates1!$B$6,Datapack!T323,)))) -> 3 | H118: =IF($G$4=Dates1!$B$3,Datapack!C323,IF($G$4=Dates1!$B$4,Datapack!I323,IF($G$4=Dates1!$B$5,Datapack!O323,IF($G$4=Dates1!$B$6,Datapack!U323,)))) -> 0 | J118: =IF($G$4=Dates1!$B$3,Datapack!D323,IF($G$4=Dates1!$B$4,Datapack!J323,IF($G$4=Dates1!$B$5,Datapack!P323,IF($G$4=Dates1!$B$6,Datapack!V323,)))) -> 2 | L118: =IF($G$4=Dates1!$B$3,Datapack!E323,IF($G$4=Dates1!$B$4,Datapack!K323,IF($G$4=Dates1!$B$5,Datapack!Q323,IF($G$4=Dates1!$B$6,Datapack!W323,)))) -> 1 | N118: =IF($G$4=Dates1!$B$3,Datapack!F323,IF($G$4=Dates1!$B$4,Datapack!L323,IF($G$4=Dates1!$B$5,Datapack!R323,IF($G$4=Dates1!$B$6,Datapack!X323,)))) -> 0
B119: Hammersmith and Fulham | F119: =IF($G$4=Dates1!$B$3,Datapack!B324,IF($G$4=Dates1!$B$4,Datapack!H324,IF($G$4=Dates1!$B$5,Datapack!N324,IF($G$4=Dates1!$B$6,Datapack!T324,)))) -> 0 | H119: =IF($G$4=Dates1!$B$3,Datapack!C324,IF($G$4=Dates1!$B$4,Datapack!I324,IF($G$4=Dates1!$B$5,Datapack!O324,IF($G$4=Dates1!$B$6,Datapack!U324,)))) -> 0 | J119: =IF($G$4=Dates1!$B$3,Datapack!D324,IF($G$4=Dates1!$B$4,Datapack!J324,IF($G$4=Dates1!$B$5,Datapack!P324,IF($G$4=Dates1!$B$6,Datapack!V324,)))) -> 0 | L119: =IF($G$4=Dates1!$B$3,Datapack!E324,IF($G$4=Dates1!$B$4,Datapack!K324,IF($G$4=Dates1!$B$5,Datapack!Q324,IF($G$4=Dates1!$B$6,Datapack!W324,)))) -> 0 | N119: =IF($G$4=Dates1!$B$3,Datapack!F324,IF($G$4=Dates1!$B$4,Datapack!L324,IF($G$4=Dates1!$B$5,Datapack!R324,IF($G$4=Dates1!$B$6,Datapack!X324,)))) -> 0
B120: Haringey | F120: =IF($G$4=Dates1!$B$3,Datapack!B325,IF($G$4=Dates1!$B$4,Datapack!H325,IF($G$4=Dates1!$B$5,Datapack!N325,IF($G$4=Dates1!$B$6,Datapack!T325,)))) -> 3 | H120: =IF($G$4=Dates1!$B$3,Datapack!C325,IF($G$4=Dates1!$B$4,Datapack!I325,IF($G$4=Dates1!$B$5,Datapack!O325,IF($G$4=Dates1!$B$6,Datapack!U325,)))) -> 0 | J120: =IF($G$4=Dates1!$B$3,Datapack!D325,IF($G$4=Dates1!$B$4,Datapack!J325,IF($G$4=Dates1!$B$5,Datapack!P325,IF($G$4=Dates1!$B$6,Datapack!V325,)))) -> 2 | L120: =IF($G$4=Dates1!$B$3,Datapack!E325,IF($G$4=Dates1!$B$4,Datapack!K325,IF($G$4=Dates1!$B$5,Datapack!Q325,IF($G$4=Dates1!$B$6,Datapack!W325,)))) -> 1 | N120: =IF($G$4=Dates1!$B$3,Datapack!F325,IF($G$4=Dates1!$B$4,Datapack!L325,IF($G$4=Dates1!$B$5,Datapack!R325,IF($G$4=Dates1!$B$6,Datapack!X325,)))) -> 0
B121: Harrow | F121: =IF($G$4=Dates1!$B$3,Datapack!B326,IF($G$4=Dates1!$B$4,Datapack!H326,IF($G$4=Dates1!$B$5,Datapack!N326,IF($G$4=Dates1!$B$6,Datapack!T326,)))) -> 1 | H121: =IF($G$4=Dates1!$B$3,Datapack!C326,IF($G$4=Dates1!$B$4,Datapack!I326,IF($G$4=Dates1!$B$5,Datapack!O326,IF($G$4=Dates1!$B$6,Datapack!U326,)))) -> 0 | J121: =IF($G$4=Dates1!$B$3,Datapack!D326,IF($G$4=Dates1!$B$4,Datapack!J326,IF($G$4=Dates1!$B$5,Datapack!P326,IF($G$4=Dates1!$B$6,Datapack!V326,)))) -> 1 | L121: =IF($G$4=Dates1!$B$3,Datapack!E326,IF($G$4=Dates1!$B$4,Datapack!K326,IF($G$4=Dates1!$B$5,Datapack!Q326,IF($G$4=Dates1!$B$6,Datapack!W326,)))) -> 0 | N121: =IF($G$4=Dates1!$B$3,Datapack!F326,IF($G$4=Dates1!$B$4,Datapack!L326,IF($G$4=Dates1!$B$5,Datapack!R326,IF($G$4=Dates1!$B$6,Datapack!X326,)))) -> 0
B122: Havering | F122: =IF($G$4=Dates1!$B$3,Datapack!B327,IF($G$4=Dates1!$B$4,Datapack!H327,IF($G$4=Dates1!$B$5,Datapack!N327,IF($G$4=Dates1!$B$6,Datapack!T327,)))) -> 2 | H122: =IF($G$4=Dates1!$B$3,Datapack!C327,IF($G$4=Dates1!$B$4,Datapack!I327,IF($G$4=Dates1!$B$5,Datapack!O327,IF($G$4=Dates1!$B$6,Datapack!U327,)))) -> 0 | J122: =IF($G$4=Dates1!$B$3,Datapack!D327,IF($G$4=Dates1!$B$4,Datapack!J327,IF($G$4=Dates1!$B$5,Datapack!P327,IF($G$4=Dates1!$B$6,Datapack!V327,)))) -> 2 | L122: =IF($G$4=Dates1!$B$3,Datapack!E327,IF($G$4=Dates1!$B$4,Datapack!K327,IF($G$4=Dates1!$B$5,Datapack!Q327,IF($G$4=Dates1!$B$6,Datapack!W327,)))) -> 0 | N122: =IF($G$4=Dates1!$B$3,Datapack!F327,IF($G$4=Dates1!$B$4,Datapack!L327,IF($G$4=Dates1!$B$5,Datapack!R327,IF($G$4=Dates1!$B$6,Datapack!X327,)))) -> 0
B123: Hillingdon | F123: =IF($G$4=Dates1!$B$3,Datapack!B328,IF($G$4=Dates1!$B$4,Datapack!H328,IF($G$4=Dates1!$B$5,Datapack!N328,IF($G$4=Dates1!$B$6,Datapack!T328,)))) -> 4 | H123: =IF($G$4=Dates1!$B$3,Datapack!C328,IF($G$4=Dates1!$B$4,Datapack!I328,IF($G$4=Dates1!$B$5,Datapack!O328,IF($G$4=Dates1!$B$6,Datapack!U328,)))) -> 0 | J123: =IF($G$4=Dates1!$B$3,Datapack!D328,IF($G$4=Dates1!$B$4,Datapack!J328,IF($G$4=Dates1!$B$5,Datapack!P328,IF($G$4=Dates1!$B$6,Datapack!V328,)))) -> 2 | L123: =IF($G$4=Dates1!$B$3,Datapack!E328,IF($G$4=Dates1!$B$4,Datapack!K328,IF($G$4=Dates1!$B$5,Datapack!Q328,IF($G$4=Dates1!$B$6,Datapack!W328,)))) -> 1 | N123: =IF($G$4=Dates1!$B$3,Datapack!F328,IF($G$4=Dates1!$B$4,Datapack!L328,IF($G$4=Dates1!$B$5,Datapack!R328,IF($G$4=Dates1!$B$6,Datapack!X328,)))) -> 1
B124: Hounslow | F124: =IF($G$4=Dates1!$B$3,Datapack!B329,IF($G$4=Dates1!$B$4,Datapack!H329,IF($G$4=Dates1!$B$5,Datapack!N329,IF($G$4=Dates1!$B$6,Datapack!T329,)))) -> 0 | H124: =IF($G$4=Dates1!$B$3,Datapack!C329,IF($G$4=Dates1!$B$4,Datapack!I329,IF($G$4=Dates1!$B$5,Datapack!O329,IF($G$4=Dates1!$B$6,Datapack!U329,)))) -> 0 | J124: =IF($G$4=Dates1!$B$3,Datapack!D329,IF($G$4=Dates1!$B$4,Datapack!J329,IF($G$4=Dates1!$B$5,Datapack!P329,IF($G$4=Dates1!$B$6,Datapack!V329,)))) -> 0 | L124: =IF($G$4=Dates1!$B$3,Datapack!E329,IF($G$4=Dates1!$B$4,Datapack!K329,IF($G$4=Dates1!$B$5,Datapack!Q329,IF($G$4=Dates1!$B$6,Datapack!W329,)))) -> 0 | N124: =IF($G$4=Dates1!$B$3,Datapack!F329,IF($G$4=Dates1!$B$4,Datapack!L329,IF($G$4=Dates1!$B$5,Datapack!R329,IF($G$4=Dates1!$B$6,Datapack!X329,)))) -> 0
B125: Islington | F125: =IF($G$4=Dates1!$B$3,Datapack!B330,IF($G$4=Dates1!$B$4,Datapack!H330,IF($G$4=Dates1!$B$5,Datapack!N330,IF($G$4=Dates1!$B$6,Datapack!T330,)))) -> 7 | H125: =IF($G$4=Dates1!$B$3,Datapack!C330,IF($G$4=Dates1!$B$4,Datapack!I330,IF($G$4=Dates1!$B$5,Datapack!O330,IF($G$4=Dates1!$B$6,Datapack!U330,)))) -> 0 | J125: =IF($G$4=Dates1!$B$3,Datapack!D330,IF($G$4=Dates1!$B$4,Datapack!J330,IF($G$4=Dates1!$B$5,Datapack!P330,IF($G$4=Dates1!$B$6,Datapack!V330,)))) -> 7 | L125: =IF($G$4=Dates1!$B$3,Datapack!E330,IF($G$4=Dates1!$B$4,Datapack!K330,IF($G$4=Dates1!$B$5,Datapack!Q330,IF($G$4=Dates1!$B$6,Datapack!W330,)))) -> 0 | N125: =IF($G$4=Dates1!$B$3,Datapack!F330,IF($G$4=Dates1!$B$4,Datapack!L330,IF($G$4=Dates1!$B$5,Datapack!R330,IF($G$4=Dates1!$B$6,Datapack!X330,)))) -> 0
B126: Kensington and Chelsea | F126: =IF($G$4=Dates1!$B$3,Datapack!B331,IF($G$4=Dates1!$B$4,Datapack!H331,IF($G$4=Dates1!$B$5,Datapack!N331,IF($G$4=Dates1!$B$6,Datapack!T331,)))) -> 1 | H126: =IF($G$4=Dates1!$B$3,Datapack!C331,IF($G$4=Dates1!$B$4,Datapack!I331,IF($G$4=Dates1!$B$5,Datapack!O331,IF($G$4=Dates1!$B$6,Datapack!U331,)))) -> 0 | J126: =IF($G$4=Dates1!$B$3,Datapack!D331,IF($G$4=Dates1!$B$4,Datapack!J331,IF($G$4=Dates1!$B$5,Datapack!P331,IF($G$4=Dates1!$B$6,Datapack!V331,)))) -> 1 | L126: =IF($G$4=Dates1!$B$3,Datapack!E331,IF($G$4=Dates1!$B$4,Datapack!K331,IF($G$4=Dates1!$B$5,Datapack!Q331,IF($G$4=Dates1!$B$6,Datapack!W331,)))) -> 0 | N126: =IF($G$4=Dates1!$B$3,Datapack!F331,IF($G$4=Dates1!$B$4,Datapack!L331,IF($G$4=Dates1!$B$5,Datapack!R331,IF($G$4=Dates1!$B$6,Datapack!X331,)))) -> 0
B127: Kingston upon Thames | F127: =IF($G$4=Dates1!$B$3,Datapack!B332,IF($G$4=Dates1!$B$4,Datapack!H332,IF($G$4=Dates1!$B$5,Datapack!N332,IF($G$4=Dates1!$B$6,Datapack!T332,)))) -> 2 | H127: =IF($G$4=Dates1!$B$3,Datapack!C332,IF($G$4=Dates1!$B$4,Datapack!I332,IF($G$4=Dates1!$B$5,Datapack!O332,IF($G$4=Dates1!$B$6,Datapack!U332,)))) -> 0 | J127: =IF($G$4=Dates1!$B$3,Datapack!D332,IF($G$4=Dates1!$B$4,Datapack!J332,IF($G$4=Dates1!$B$5,Datapack!P332,IF($G$4=Dates1!$B$6,Datapack!V332,)))) -> 1 | L127: =IF($G$4=Dates1!$B$3,Datapack!E332,IF($G$4=Dates1!$B$4,Datapack!K332,IF($G$4=Dates1!$B$5,Datapack!Q332,IF($G$4=Dates1!$B$6,Datapack!W332,)))) -> 1 | N127: =IF($G$4=Dates1!$B$3,Datapack!F332,IF($G$4=Dates1!$B$4,Datapack!L332,IF($G$4=Dates1!$B$5,Datapack!R332,IF($G$4=Dates1!$B$6,Datapack!X332,)))) -> 0
B128: Lambeth | F128: =IF($G$4=Dates1!$B$3,Datapack!B333,IF($G$4=Dates1!$B$4,Datapack!H333,IF($G$4=Dates1!$B$5,Datapack!N333,IF($G$4=Dates1!$B$6,Datapack!T333,)))) -> 10 | H128: =IF($G$4=Dates1!$B$3,Datapack!C333,IF($G$4=Dates1!$B$4,Datapack!I333,IF($G$4=Dates1!$B$5,Datapack!O333,IF($G$4=Dates1!$B$6,Datapack!U333,)))) -> 6 | J128: =IF($G$4=Dates1!$B$3,Datapack!D333,IF($G$4=Dates1!$B$4,Datapack!J333,IF($G$4=Dates1!$B$5,Datapack!P333,IF($G$4=Dates1!$B$6,Datapack!V333,)))) -> 4 | L128: =IF($G$4=Dates1!$B$3,Datapack!E333,IF($G$4=Dates1!$B$4,Datapack!K333,IF($G$4=Dates1!$B$5,Datapack!Q333,IF($G$4=Dates1!$B$6,Datapack!W333,)))) -> 0 | N128: =IF($G$4=Dates1!$B$3,Datapack!F333,IF($G$4=Dates1!$B$4,Datapack!L333,IF($G$4=Dates1!$B$5,Datapack!R333,IF($G$4=Dates1!$B$6,Datapack!X333,)))) -> 0
B129: Lewisham | F129: =IF($G$4=Dates1!$B$3,Datapack!B334,IF($G$4=Dates1!$B$4,Datapack!H334,IF($G$4=Dates1!$B$5,Datapack!N334,IF($G$4=Dates1!$B$6,Datapack!T334,)))) -> 3 | H129: =IF($G$4=Dates1!$B$3,Datapack!C334,IF($G$4=Dates1!$B$4,Datapack!I334,IF($G$4=Dates1!$B$5,Datapack!O334,IF($G$4=Dates1!$B$6,Datapack!U334,)))) -> 0 | J129: =IF($G$4=Dates1!$B$3,Datapack!D334,IF($G$4=Dates1!$B$4,Datapack!J334,IF($G$4=Dates1!$B$5,Datapack!P334,IF($G$4=Dates1!$B$6,Datapack!V334,)))) -> 2 | L129: =IF($G$4=Dates1!$B$3,Datapack!E334,IF($G$4=Dates1!$B$4,Datapack!K334,IF($G$4=Dates1!$B$5,Datapack!Q334,IF($G$4=Dates1!$B$6,Datapack!W334,)))) -> 1 | N129: =IF($G$4=Dates1!$B$3,Datapack!F334,IF($G$4=Dates1!$B$4,Datapack!L334,IF($G$4=Dates1!$B$5,Datapack!R334,IF($G$4=Dates1!$B$6,Datapack!X334,)))) -> 0
B130: Merton | F130: =IF($G$4=Dates1!$B$3,Datapack!B335,IF($G$4=Dates1!$B$4,Datapack!H335,IF($G$4=Dates1!$B$5,Datapack!N335,IF($G$4=Dates1!$B$6,Datapack!T335,)))) -> 1 | H130: =IF($G$4=Dates1!$B$3,Datapack!C335,IF($G$4=Dates1!$B$4,Datapack!I335,IF($G$4=Dates1!$B$5,Datapack!O335,IF($G$4=Dates1!$B$6,Datapack!U335,)))) -> 0 | J130: =IF($G$4=Dates1!$B$3,Datapack!D335,IF($G$4=Dates1!$B$4,Datapack!J335,IF($G$4=Dates1!$B$5,Datapack!P335,IF($G$4=Dates1!$B$6,Datapack!V335,)))) -> 1 | L130: =IF($G$4=Dates1!$B$3,Datapack!E335,IF($G$4=Dates1!$B$4,Datapack!K335,IF($G$4=Dates1!$B$5,Datapack!Q335,IF($G$4=Dates1!$B$6,Datapack!W335,)))) -> 0 | N130: =IF($G$4=Dates1!$B$3,Datapack!F335,IF($G$4=Dates1!$B$4,Datapack!L335,IF($G$4=Dates1!$B$5,Datapack!R335,IF($G$4=Dates1!$B$6,Datapack!X335,)))) -> 0
B131: Newham | F131: =IF($G$4=Dates1!$B$3,Datapack!B336,IF($G$4=Dates1!$B$4,Datapack!H336,IF($G$4=Dates1!$B$5,Datapack!N336,IF($G$4=Dates1!$B$6,Datapack!T336,)))) -> 5 | H131: =IF($G$4=Dates1!$B$3,Datapack!C336,IF($G$4=Dates1!$B$4,Datapack!I336,IF($G$4=Dates1!$B$5,Datapack!O336,IF($G$4=Dates1!$B$6,Datapack!U336,)))) -> 1 | J131: =IF($G$4=Dates1!$B$3,Datapack!D336,IF($G$4=Dates1!$B$4,Datapack!J336,IF($G$4=Dates1!$B$5,Datapack!P336,IF($G$4=Dates1!$B$6,Datapack!V336,)))) -> 4 | L131: =IF($G$4=Dates1!$B$3,Datapack!E336,IF($G$4=Dates1!$B$4,Datapack!K336,IF($G$4=Dates1!$B$5,Datapack!Q336,IF($G$4=Dates1!$B$6,Datapack!W336,)))) -> 0 | N131: =IF($G$4=Dates1!$B$3,Datapack!F336,IF($G$4=Dates1!$B$4,Datapack!L336,IF($G$4=Dates1!$B$5,Datapack!R336,IF($G$4=Dates1!$B$6,Datapack!X336,)))) -> 0
B132: Redbridge | F132: =IF($G$4=Dates1!$B$3,Datapack!B337,IF($G$4=Dates1!$B$4,Datapack!H337,IF($G$4=Dates1!$B$5,Datapack!N337,IF($G$4=Dates1!$B$6,Datapack!T337,)))) -> 1 | H132: =IF($G$4=Dates1!$B$3,Datapack!C337,IF($G$4=Dates1!$B$4,Datapack!I337,IF($G$4=Dates1!$B$5,Datapack!O337,IF($G$4=Dates1!$B$6,Datapack!U337,)))) -> 0 | J132: =IF($G$4=Dates1!$B$3,Datapack!D337,IF($G$4=Dates1!$B$4,Datapack!J337,IF($G$4=Dates1!$B$5,Datapack!P337,IF($G$4=Dates1!$B$6,Datapack!V337,)))) -> 0 | L132: =IF($G$4=Dates1!$B$3,Datapack!E337,IF($G$4=Dates1!$B$4,Datapack!K337,IF($G$4=Dates1!$B$5,Datapack!Q337,IF($G$4=Dates1!$B$6,Datapack!W337,)))) -> 1 | N132: =IF($G$4=Dates1!$B$3,Datapack!F337,IF($G$4=Dates1!$B$4,Datapack!L337,IF($G$4=Dates1!$B$5,Datapack!R337,IF($G$4=Dates1!$B$6,Datapack!X337,)))) -> 0
B133: Richmond upon Thames | F133: =IF($G$4=Dates1!$B$3,Datapack!B338,IF($G$4=Dates1!$B$4,Datapack!H338,IF($G$4=Dates1!$B$5,Datapack!N338,IF($G$4=Dates1!$B$6,Datapack!T338,)))) -> 1 | H133: =IF($G$4=Dates1!$B$3,Datapack!C338,IF($G$4=Dates1!$B$4,Datapack!I338,IF($G$4=Dates1!$B$5,Datapack!O338,IF($G$4=Dates1!$B$6,Datapack!U338,)))) -> 0 | J133: =IF($G$4=Dates1!$B$3,Datapack!D338,IF($G$4=Dates1!$B$4,Datapack!J338,IF($G$4=Dates1!$B$5,Datapack!P338,IF($G$4=Dates1!$B$6,Datapack!V338,)))) -> 1 | L133: =IF($G$4=Dates1!$B$3,Datapack!E338,IF($G$4=Dates1!$B$4,Datapack!K338,IF($G$4=Dates1!$B$5,Datapack!Q338,IF($G$4=Dates1!$B$6,Datapack!W338,)))) -> 0 | N133: =IF($G$4=Dates1!$B$3,Datapack!F338,IF($G$4=Dates1!$B$4,Datapack!L338,IF($G$4=Dates1!$B$5,Datapack!R338,IF($G$4=Dates1!$B$6,Datapack!X338,)))) -> 0
B134: Southwark | F134: =IF($G$4=Dates1!$B$3,Datapack!B339,IF($G$4=Dates1!$B$4,Datapack!H339,IF($G$4=Dates1!$B$5,Datapack!N339,IF($G$4=Dates1!$B$6,Datapack!T339,)))) -> 4 | H134: =IF($G$4=Dates1!$B$3,Datapack!C339,IF($G$4=Dates1!$B$4,Datapack!I339,IF($G$4=Dates1!$B$5,Datapack!O339,IF($G$4=Dates1!$B$6,Datapack!U339,)))) -> 0 | J134: =IF($G$4=Dates1!$B$3,Datapack!D339,IF($G$4=Dates1!$B$4,Datapack!J339,IF($G$4=Dates1!$B$5,Datapack!P339,IF($G$4=Dates1!$B$6,Datapack!V339,)))) -> 2 | L134: =IF($G$4=Dates1!$B$3,Datapack!E339,IF($G$4=Dates1!$B$4,Datapack!K339,IF($G$4=Dates1!$B$5,Datapack!Q339,IF($G$4=Dates1!$B$6,Datapack!W339,)))) -> 2 | N134: =IF($G$4=Dates1!$B$3,Datapack!F339,IF($G$4=Dates1!$B$4,Datapack!L339,IF($G$4=Dates1!$B$5,Datapack!R339,IF($G$4=Dates1!$B$6,Datapack!X339,)))) -> 0
B135: Sutton | F135: =IF($G$4=Dates1!$B$3,Datapack!B340,IF($G$4=Dates1!$B$4,Datapack!H340,IF($G$4=Dates1!$B$5,Datapack!N340,IF($G$4=Dates1!$B$6,Datapack!T340,)))) -> 2 | H135: =IF($G$4=Dates1!$B$3,Datapack!C340,IF($G$4=Dates1!$B$4,Datapack!I340,IF($G$4=Dates1!$B$5,Datapack!O340,IF($G$4=Dates1!$B$6,Datapack!U340,)))) -> 0 | J135: =IF($G$4=Dates1!$B$3,Datapack!D340,IF($G$4=Dates1!$B$4,Datapack!J340,IF($G$4=Dates1!$B$5,Datapack!P340,IF($G$4=Dates1!$B$6,Datapack!V340,)))) -> 1 | L135: =IF($G$4=Dates1!$B$3,Datapack!E340,IF($G$4=Dates1!$B$4,Datapack!K340,IF($G$4=Dates1!$B$5,Datapack!Q340,IF($G$4=Dates1!$B$6,Datapack!W340,)))) -> 1 | N135: =IF($G$4=Dates1!$B$3,Datapack!F340,IF($G$4=Dates1!$B$4,Datapack!L340,IF($G$4=Dates1!$B$5,Datapack!R340,IF($G$4=Dates1!$B$6,Datapack!X340,)))) -> 0
B136: Tower Hamlets | F136: =IF($G$4=Dates1!$B$3,Datapack!B341,IF($G$4=Dates1!$B$4,Datapack!H341,IF($G$4=Dates1!$B$5,Datapack!N341,IF($G$4=Dates1!$B$6,Datapack!T341,)))) -> 0 | H136: =IF($G$4=Dates1!$B$3,Datapack!C341,IF($G$4=Dates1!$B$4,Datapack!I341,IF($G$4=Dates1!$B$5,Datapack!O341,IF($G$4=Dates1!$B$6,Datapack!U341,)))) -> 0 | J136: =IF($G$4=Dates1!$B$3,Datapack!D341,IF($G$4=Dates1!$B$4,Datapack!J341,IF($G$4=Dates1!$B$5,Datapack!P341,IF($G$4=Dates1!$B$6,Datapack!V341,)))) -> 0 | L136: =IF($G$4=Dates1!$B$3,Datapack!E341,IF($G$4=Dates1!$B$4,Datapack!K341,IF($G$4=Dates1!$B$5,Datapack!Q341,IF($G$4=Dates1!$B$6,Datapack!W341,)))) -> 0 | N136: =IF($G$4=Dates1!$B$3,Datapack!F341,IF($G$4=Dates1!$B$4,Datapack!L341,IF($G$4=Dates1!$B$5,Datapack!R341,IF($G$4=Dates1!$B$6,Datapack!X341,)))) -> 0
B137: Waltham Forest | F137: =IF($G$4=Dates1!$B$3,Datapack!B342,IF($G$4=Dates1!$B$4,Datapack!H342,IF($G$4=Dates1!$B$5,Datapack!N342,IF($G$4=Dates1!$B$6,Datapack!T342,)))) -> 3 | H137: =IF($G$4=Dates1!$B$3,Datapack!C342,IF($G$4=Dates1!$B$4,Datapack!I342,IF($G$4=Dates1!$B$5,Datapack!O342,IF($G$4=Dates1!$B$6,Datapack!U342,)))) -> 1 | J137: =IF($G$4=Dates1!$B$3,Datapack!D342,IF($G$4=Dates1!$B$4,Datapack!J342,IF($G$4=Dates1!$B$5,Datapack!P342,IF($G$4=Dates1!$B$6,Datapack!V342,)))) -> 1 | L137: =IF($G$4=Dates1!$B$3,Datapack!E342,IF($G$4=Dates1!$B$4,Datapack!K342,IF($G$4=Dates1!$B$5,Datapack!Q342,IF($G$4=Dates1!$B$6,Datapack!W342,)))) -> 0 | N137: =IF($G$4=Dates1!$B$3,Datapack!F342,IF($G$4=Dates1!$B$4,Datapack!L342,IF($G$4=Dates1!$B$5,Datapack!R342,IF($G$4=Dates1!$B$6,Datapack!X342,)))) -> 1
B138: Wandsworth | F138: =IF($G$4=Dates1!$B$3,Datapack!B343,IF($G$4=Dates1!$B$4,Datapack!H343,IF($G$4=Dates1!$B$5,Datapack!N343,IF($G$4=Dates1!$B$6,Datapack!T343,)))) -> 4 | H138: =IF($G$4=Dates1!$B$3,Datapack!C343,IF($G$4=Dates1!$B$4,Datapack!I343,IF($G$4=Dates1!$B$5,Datapack!O343,IF($G$4=Dates1!$B$6,Datapack!U343,)))) -> 0 | J138: =IF($G$4=Dates1!$B$3,Datapack!D343,IF($G$4=Dates1!$B$4,Datapack!J343,IF($G$4=Dates1!$B$5,Datapack!P343,IF($G$4=Dates1!$B$6,Datapack!V343,)))) -> 3 | L138: =IF($G$4=Dates1!$B$3,Datapack!E343,IF($G$4=Dates1!$B$4,Datapack!K343,IF($G$4=Dates1!$B$5,Datapack!Q343,IF($G$4=Dates1!$B$6,Datapack!W343,)))) -> 1 | N138: =IF($G$4=Dates1!$B$3,Datapack!F343,IF($G$4=Dates1!$B$4,Datapack!L343,IF($G$4=Dates1!$B$5,Datapack!R343,IF($G$4=Dates1!$B$6,Datapack!X343,)))) -> 0
B139: Westminster | F139: =IF($G$4=Dates1!$B$3,Datapack!B344,IF($G$4=Dates1!$B$4,Datapack!H344,IF($G$4=Dates1!$B$5,Datapack!N344,IF($G$4=Dates1!$B$6,Datapack!T344,)))) -> 3 | H139: =IF($G$4=Dates1!$B$3,Datapack!C344,IF($G$4=Dates1!$B$4,Datapack!I344,IF($G$4=Dates1!$B$5,Datapack!O344,IF($G$4=Dates1!$B$6,Datapack!U344,)))) -> 0 | J139: =IF($G$4=Dates1!$B$3,Datapack!D344,IF($G$4=Dates1!$B$4,Datapack!J344,IF($G$4=Dates1!$B$5,Datapack!P344,IF($G$4=Dates1!$B$6,Datapack!V344,)))) -> 2 | L139: =IF($G$4=Dates1!$B$3,Datapack!E344,IF($G$4=Dates1!$B$4,Datapack!K344,IF($G$4=Dates1!$B$5,Datapack!Q344,IF($G$4=Dates1!$B$6,Datapack!W344,)))) -> 1 | N139: =IF($G$4=Dates1!$B$3,Datapack!F344,IF($G$4=Dates1!$B$4,Datapack!L344,IF($G$4=Dates1!$B$5,Datapack!R344,IF($G$4=Dates1!$B$6,Datapack!X344,)))) -> 0
B141: SOUTH EAST | F141: =SUM(F142:F160) -> 102 | H141: =SUM(H142:H160) -> 16 | J141: =SUM(J142:J160) -> 55 | L141: =SUM(L142:L160) -> 29 | N141: =SUM(N142:N160) -> 2
B142: Bracknell Forest | F142: =IF($G$4=Dates1!$B$3,Datapack!B347,IF($G$4=Dates1!$B$4,Datapack!H347,IF($G$4=Dates1!$B$5,Datapack!N347,IF($G$4=Dates1!$B$6,Datapack!T347,)))) -> 1 | H142: =IF($G$4=Dates1!$B$3,Datapack!C347,IF($G$4=Dates1!$B$4,Datapack!I347,IF($G$4=Dates1!$B$5,Datapack!O347,IF($G$4=Dates1!$B$6,Datapack!U347,)))) -> 0 | J142: =IF($G$4=Dates1!$B$3,Datapack!D347,IF($G$4=Dates1!$B$4,Datapack!J347,IF($G$4=Dates1!$B$5,Datapack!P347,IF($G$4=Dates1!$B$6,Datapack!V347,)))) -> 0 | L142: =IF($G$4=Dates1!$B$3,Datapack!E347,IF($G$4=Dates1!$B$4,Datapack!K347,IF($G$4=Dates1!$B$5,Datapack!Q347,IF($G$4=Dates1!$B$6,Datapack!W347,)))) -> 1 | N142: =IF($G$4=Dates1!$B$3,Datapack!F347,IF($G$4=Dates1!$B$4,Datapack!L347,IF($G$4=Dates1!$B$5,Datapack!R347,IF($G$4=Dates1!$B$6,Datapack!X347,)))) -> 0
B143: Brighton and Hove | F143: =IF($G$4=Dates1!$B$3,Datapack!B348,IF($G$4=Dates1!$B$4,Datapack!H348,IF($G$4=Dates1!$B$5,Datapack!N348,IF($G$4=Dates1!$B$6,Datapack!T348,)))) -> 5 | H143: =IF($G$4=Dates1!$B$3,Datapack!C348,IF($G$4=Dates1!$B$4,Datapack!I348,IF($G$4=Dates1!$B$5,Datapack!O348,IF($G$4=Dates1!$B$6,Datapack!U348,)))) -> 3 | J143: =IF($G$4=Dates1!$B$3,Datapack!D348,IF($G$4=Dates1!$B$4,Datapack!J348,IF($G$4=Dates1!$B$5,Datapack!P348,IF($G$4=Dates1!$B$6,Datapack!V348,)))) -> 2 | L143: =IF($G$4=Dates1!$B$3,Datapack!E348,IF($G$4=Dates1!$B$4,Datapack!K348,IF($G$4=Dates1!$B$5,Datapack!Q348,IF($G$4=Dates1!$B$6,Datapack!W348,)))) -> 0 | N143: =IF($G$4=Dates1!$B$3,Datapack!F348,IF($G$4=Dates1!$B$4,Datapack!L348,IF($G$4=Dates1!$B$5,Datapack!R348,IF($G$4=Dates1!$B$6,Datapack!X348,)))) -> 0
B144: Buckinghamshire | F144: =IF($G$4=Dates1!$B$3,Datapack!B349,IF($G$4=Dates1!$B$4,Datapack!H349,IF($G$4=Dates1!$B$5,Datapack!N349,IF($G$4=Dates1!$B$6,Datapack!T349,)))) -> 7 | H144: =IF($G$4=Dates1!$B$3,Datapack!C349,IF($G$4=Dates1!$B$4,Datapack!I349,IF($G$4=Dates1!$B$5,Datapack!O349,IF($G$4=Dates1!$B$6,Datapack!U349,)))) -> 0 | J144: =IF($G$4=Dates1!$B$3,Datapack!D349,IF($G$4=Dates1!$B$4,Datapack!J349,IF($G$4=Dates1!$B$5,Datapack!P349,IF($G$4=Dates1!$B$6,Datapack!V349,)))) -> 1 | L144: =IF($G$4=Dates1!$B$3,Datapack!E349,IF($G$4=Dates1!$B$4,Datapack!K349,IF($G$4=Dates1!$B$5,Datapack!Q349,IF($G$4=Dates1!$B$6,Datapack!W349,)))) -> 4 | N144: =IF($G$4=Dates1!$B$3,Datapack!F349,IF($G$4=Dates1!$B$4,Datapack!L349,IF($G$4=Dates1!$B$5,Datapack!R349,IF($G$4=Dates1!$B$6,Datapack!X349,)))) -> 2
B145: East Sussex | F145: =IF($G$4=Dates1!$B$3,Datapack!B350,IF($G$4=Dates1!$B$4,Datapack!H350,IF($G$4=Dates1!$B$5,Datapack!N350,IF($G$4=Dates1!$B$6,Datapack!T350,)))) -> 10 | H145: =IF($G$4=Dates1!$B$3,Datapack!C350,IF($G$4=Dates1!$B$4,Datapack!I350,IF($G$4=Dates1!$B$5,Datapack!O350,IF($G$4=Dates1!$B$6,Datapack!U350,)))) -> 1 | J145: =IF($G$4=Dates1!$B$3,Datapack!D350,IF($G$4=Dates1!$B$4,Datapack!J350,IF($G$4=Dates1!$B$5,Datapack!P350,IF($G$4=Dates1!$B$6,Datapack!V350,)))) -> 8 | L145: =IF($G$4=Dates1!$B$3,Datapack!E350,IF($G$4=Dates1!$B$4,Datapack!K350,IF($G$4=Dates1!$B$5,Datapack!Q350,IF($G$4=Dates1!$B$6,Datapack!W350,)))) -> 1 | N145: =IF($G$4=Dates1!$B$3,Datapack!F350,IF($G$4=Dates1!$B$4,Datapack!L350,IF($G$4=Dates1!$B$5,Datapack!R350,IF($G$4=Dates1!$B$6,Datapack!X350,)))) -> 0
B146: Hampshire | F146: =IF($G$4=Dates1!$B$3,Datapack!B351,IF($G$4=Dates1!$B$4,Datapack!H351,IF($G$4=Dates1!$B$5,Datapack!N351,IF($G$4=Dates1!$B$6,Datapack!T351,)))) -> 7 | H146: =IF($G$4=Dates1!$B$3,Datapack!C351,IF($G$4=Dates1!$B$4,Datapack!I351,IF($G$4=Dates1!$B$5,Datapack!O351,IF($G$4=Dates1!$B$6,Datapack!U351,)))) -> 2 | J146: =IF($G$4=Dates1!$B$3,Datapack!D351,IF($G$4=Dates1!$B$4,Datapack!J351,IF($G$4=Dates1!$B$5,Datapack!P351,IF($G$4=Dates1!$B$6,Datapack!V351,)))) -> 4 | L146: =IF($G$4=Dates1!$B$3,Datapack!E351,IF($G$4=Dates1!$B$4,Datapack!K351,IF($G$4=Dates1!$B$5,Datapack!Q351,IF($G$4=Dates1!$B$6,Datapack!W351,)))) -> 1 | N146: =IF($G$4=Dates1!$B$3,Datapack!F351,IF($G$4=Dates1!$B$4,Datapack!L351,IF($G$4=Dates1!$B$5,Datapack!R351,IF($G$4=Dates1!$B$6,Datapack!X351,)))) -> 0
B147: Isle of Wight | F147: =IF($G$4=Dates1!$B$3,Datapack!B352,IF($G$4=Dates1!$B$4,Datapack!H352,IF($G$4=Dates1!$B$5,Datapack!N352,IF($G$4=Dates1!$B$6,Datapack!T352,)))) -> 4 | H147: =IF($G$4=Dates1!$B$3,Datapack!C352,IF($G$4=Dates1!$B$4,Datapack!I352,IF($G$4=Dates1!$B$5,Datapack!O352,IF($G$4=Dates1!$B$6,Datapack!U352,)))) -> 2 | J147: =IF($G$4=Dates1!$B$3,Datapack!D352,IF($G$4=Dates1!$B$4,Datapack!J352,IF($G$4=Dates1!$B$5,Datapack!P352,IF($G$4=Dates1!$B$6,Datapack!V352,)))) -> 2 | L147: =IF($G$4=Dates1!$B$3,Datapack!E352,IF($G$4=Dates1!$B$4,Datapack!K352,IF($G$4=Dates1!$B$5,Datapack!Q352,IF($G$4=Dates1!$B$6,Datapack!W352,)))) -> 0 | N147: =IF($G$4=Dates1!$B$3,Datapack!F352,IF($G$4=Dates1!$B$4,Datapack!L352,IF($G$4=Dates1!$B$5,Datapack!R352,IF($G$4=Dates1!$B$6,Datapack!X352,)))) -> 0
B148: Kent | F148: =IF($G$4=Dates1!$B$3,Datapack!B353,IF($G$4=Dates1!$B$4,Datapack!H353,IF($G$4=Dates1!$B$5,Datapack!N353,IF($G$4=Dates1!$B$6,Datapack!T353,)))) -> 22 | H148: =IF($G$4=Dates1!$B$3,Datapack!C353,IF($G$4=Dates1!$B$4,Datapack!I353,IF($G$4=Dates1!$B$5,Datapack!O353,IF($G$4=Dates1!$B$6,Datapack!U353,)))) -> 5 | J148: =IF($G$4=Dates1!$B$3,Datapack!D353,IF($G$4=Dates1!$B$4,Datapack!J353,IF($G$4=Dates1!$B$5,Datapack!P353,IF($G$4=Dates1!$B$6,Datapack!V353,)))) -> 14 | L148: =IF($G$4=Dates1!$B$3,Datapack!E353,IF($G$4=Dates1!$B$4,Datapack!K353,IF($G$4=Dates1!$B$5,Datapack!Q353,IF($G$4=Dates1!$B$6,Datapack!W353,)))) -> 3 | N148: =IF($G$4=Dates1!$B$3,Datapack!F353,IF($G$4=Dates1!$B$4,Datapack!L353,IF($G$4=Dates1!$B$5,Datapack!R353,IF($G$4=Dates1!$B$6,Datapack!X353,)))) -> 0
B149: Medway | F149: =IF($G$4=Dates1!$B$3,Datapack!B354,IF($G$4=Dates1!$B$4,Datapack!H354,IF($G$4=Dates1!$B$5,Datapack!N354,IF($G$4=Dates1!$B$6,Datapack!T354,)))) -> 5 | H149: =IF($G$4=Dates1!$B$3,Datapack!C354,IF($G$4=Dates1!$B$4,Datapack!I354,IF($G$4=Dates1!$B$5,Datapack!O354,IF($G$4=Dates1!$B$6,Datapack!U354,)))) -> 0 | J149: =IF($G$4=Dates1!$B$3,Datapack!D354,IF($G$4=Dates1!$B$4,Datapack!J354,IF($G$4=Dates1!$B$5,Datapack!P354,IF($G$4=Dates1!$B$6,Datapack!V354,)))) -> 3 | L149: =IF($G$4=Dates1!$B$3,Datapack!E354,IF($G$4=Dates1!$B$4,Datapack!K354,IF($G$4=Dates1!$B$5,Datapack!Q354,IF($G$4=Dates1!$B$6,Datapack!W354,)))) -> 2 | N149: =IF($G$4=Dates1!$B$3,Datapack!F354,IF($G$4=Dates1!$B$4,Datapack!L354,IF($G$4=Dates1!$B$5,Datapack!R354,IF($G$4=Dates1!$B$6,Datapack!X354,)))) -> 0
B150: Milton Keynes | F150: =IF($G$4=Dates1!$B$3,Datapack!B355,IF($G$4=Dates1!$B$4,Datapack!H355,IF($G$4=Dates1!$B$5,Datapack!N355,IF($G$4=Dates1!$B$6,Datapack!T355,)))) -> 3 | H150: =IF($G$4=Dates1!$B$3,Datapack!C355,IF($G$4=Dates1!$B$4,Datapack!I355,IF($G$4=Dates1!$B$5,Datapack!O355,IF($G$4=Dates1!$B$6,Datapack!U355,)))) -> 0 | J150: =IF($G$4=Dates1!$B$3,Datapack!D355,IF($G$4=Dates1!$B$4,Datapack!J355,IF($G$4=Dates1!$B$5,Datapack!P355,IF($G$4=Dates1!$B$6,Datapack!V355,)))) -> 1 | L150: =IF($G$4=Dates1!$B$3,Datapack!E355,IF($G$4=Dates1!$B$4,Datapack!K355,IF($G$4=Dates1!$B$5,Datapack!Q355,IF($G$4=Dates1!$B$6,Datapack!W355,)))) -> 2 | N150: =IF($G$4=Dates1!$B$3,Datapack!F355,IF($G$4=Dates1!$B$4,Datapack!L355,IF($G$4=Dates1!$B$5,Datapack!R355,IF($G$4=Dates1!$B$6,Datapack!X355,)))) -> 0
B151: Oxfordshire | F151: =IF($G$4=Dates1!$B$3,Datapack!B356,IF($G$4=Dates1!$B$4,Datapack!H356,IF($G$4=Dates1!$B$5,Datapack!N356,IF($G$4=Dates1!$B$6,Datapack!T356,)))) -> 9 | H151: =IF($G$4=Dates1!$B$3,Datapack!C356,IF($G$4=Dates1!$B$4,Datapack!I356,IF($G$4=Dates1!$B$5,Datapack!O356,IF($G$4=Dates1!$B$6,Datapack!U356,)))) -> 0 | J151: =IF($G$4=Dates1!$B$3,Datapack!D356,IF($G$4=Dates1!$B$4,Datapack!J356,IF($G$4=Dates1!$B$5,Datapack!P356,IF($G$4=Dates1!$B$6,Datapack!V356,)))) -> 7 | L151: =IF($G$4=Dates1!$B$3,Datapack!E356,IF($G$4=Dates1!$B$4,Datapack!K356,IF($G$4=Dates1!$B$5,Datapack!Q356,IF($G$4=Dates1!$B$6,Datapack!W356,)))) -> 2 | N151: =IF($G$4=Dates1!$B$3,Datapack!F356,IF($G$4=Dates1!$B$4,Datapack!L356,IF($G$4=Dates1!$B$5,Datapack!R356,IF($G$4=Dates1!$B$6,Datapack!X356,)))) -> 0
B152: Portsmouth | F152: =IF($G$4=Dates1!$B$3,Datapack!B357,IF($G$4=Dates1!$B$4,Datapack!H357,IF($G$4=Dates1!$B$5,Datapack!N357,IF($G$4=Dates1!$B$6,Datapack!T357,)))) -> 2 | H152: =IF($G$4=Dates1!$B$3,Datapack!C357,IF($G$4=Dates1!$B$4,Datapack!I357,IF($G$4=Dates1!$B$5,Datapack!O357,IF($G$4=Dates1!$B$6,Datapack!U357,)))) -> 0 | J152: =IF($G$4=Dates1!$B$3,Datapack!D357,IF($G$4=Dates1!$B$4,Datapack!J357,IF($G$4=Dates1!$B$5,Datapack!P357,IF($G$4=Dates1!$B$6,Datapack!V357,)))) -> 1 | L152: =IF($G$4=Dates1!$B$3,Datapack!E357,IF($G$4=Dates1!$B$4,Datapack!K357,IF($G$4=Dates1!$B$5,Datapack!Q357,IF($G$4=Dates1!$B$6,Datapack!W357,)))) -> 1 | N152: =IF($G$4=Dates1!$B$3,Datapack!F357,IF($G$4=Dates1!$B$4,Datapack!L357,IF($G$4=Dates1!$B$5,Datapack!R357,IF($G$4=Dates1!$B$6,Datapack!X357,)))) -> 0
B153: Reading | F153: =IF($G$4=Dates1!$B$3,Datapack!B358,IF($G$4=Dates1!$B$4,Datapack!H358,IF($G$4=Dates1!$B$5,Datapack!N358,IF($G$4=Dates1!$B$6,Datapack!T358,)))) -> 4 | H153: =IF($G$4=Dates1!$B$3,Datapack!C358,IF($G$4=Dates1!$B$4,Datapack!I358,IF($G$4=Dates1!$B$5,Datapack!O358,IF($G$4=Dates1!$B$6,Datapack!U358,)))) -> 0 | J153: =IF($G$4=Dates1!$B$3,Datapack!D358,IF($G$4=Dates1!$B$4,Datapack!J358,IF($G$4=Dates1!$B$5,Datapack!P358,IF($G$4=Dates1!$B$6,Datapack!V358,)))) -> 4 | L153: =IF($G$4=Dates1!$B$3,Datapack!E358,IF($G$4=Dates1!$B$4,Datapack!K358,IF($G$4=Dates1!$B$5,Datapack!Q358,IF($G$4=Dates1!$B$6,Datapack!W358,)))) -> 0 | N153: =IF($G$4=Dates1!$B$3,Datapack!F358,IF($G$4=Dates1!$B$4,Datapack!L358,IF($G$4=Dates1!$B$5,Datapack!R358,IF($G$4=Dates1!$B$6,Datapack!X358,)))) -> 0
B154: Slough | F154: =IF($G$4=Dates1!$B$3,Datapack!B359,IF($G$4=Dates1!$B$4,Datapack!H359,IF($G$4=Dates1!$B$5,Datapack!N359,IF($G$4=Dates1!$B$6,Datapack!T359,)))) -> 1 | H154: =IF($G$4=Dates1!$B$3,Datapack!C359,IF($G$4=Dates1!$B$4,Datapack!I359,IF($G$4=Dates1!$B$5,Datapack!O359,IF($G$4=Dates1!$B$6,Datapack!U359,)))) -> 0 | J154: =IF($G$4=Dates1!$B$3,Datapack!D359,IF($G$4=Dates1!$B$4,Datapack!J359,IF($G$4=Dates1!$B$5,Datapack!P359,IF($G$4=Dates1!$B$6,Datapack!V359,)))) -> 1 | L154: =IF($G$4=Dates1!$B$3,Datapack!E359,IF($G$4=Dates1!$B$4,Datapack!K359,IF($G$4=Dates1!$B$5,Datapack!Q359,IF($G$4=Dates1!$B$6,Datapack!W359,)))) -> 0 | N154: =IF($G$4=Dates1!$B$3,Datapack!F359,IF($G$4=Dates1!$B$4,Datapack!L359,IF($G$4=Dates1!$B$5,Datapack!R359,IF($G$4=Dates1!$B$6,Datapack!X359,)))) -> 0
B155: Southampton | F155: =IF($G$4=Dates1!$B$3,Datapack!B360,IF($G$4=Dates1!$B$4,Datapack!H360,IF($G$4=Dates1!$B$5,Datapack!N360,IF($G$4=Dates1!$B$6,Datapack!T360,)))) -> 3 | H155: =IF($G$4=Dates1!$B$3,Datapack!C360,IF($G$4=Dates1!$B$4,Datapack!I360,IF($G$4=Dates1!$B$5,Datapack!O360,IF($G$4=Dates1!$B$6,Datapack!U360,)))) -> 2 | J155: =IF($G$4=Dates1!$B$3,Datapack!D360,IF($G$4=Dates1!$B$4,Datapack!J360,IF($G$4=Dates1!$B$5,Datapack!P360,IF($G$4=Dates1!$B$6,Datapack!V360,)))) -> 1 | L155: =IF($G$4=Dates1!$B$3,Datapack!E360,IF($G$4=Dates1!$B$4,Datapack!K360,IF($G$4=Dates1!$B$5,Datapack!Q360,IF($G$4=Dates1!$B$6,Datapack!W360,)))) -> 0 | N155: =IF($G$4=Dates1!$B$3,Datapack!F360,IF($G$4=Dates1!$B$4,Datapack!L360,IF($G$4=Dates1!$B$5,Datapack!R360,IF($G$4=Dates1!$B$6,Datapack!X360,)))) -> 0
B156: Surrey | F156: =IF($G$4=Dates1!$B$3,Datapack!B361,IF($G$4=Dates1!$B$4,Datapack!H361,IF($G$4=Dates1!$B$5,Datapack!N361,IF($G$4=Dates1!$B$6,Datapack!T361,)))) -> 8 | H156: =IF($G$4=Dates1!$B$3,Datapack!C361,IF($G$4=Dates1!$B$4,Datapack!I361,IF($G$4=Dates1!$B$5,Datapack!O361,IF($G$4=Dates1!$B$6,Datapack!U361,)))) -> 0 | J156: =IF($G$4=Dates1!$B$3,Datapack!D361,IF($G$4=Dates1!$B$4,Datapack!J361,IF($G$4=Dates1!$B$5,Datapack!P361,IF($G$4=Dates1!$B$6,Datapack!V361,)))) -> 3 | L156: =IF($G$4=Dates1!$B$3,Datapack!E361,IF($G$4=Dates1!$B$4,Datapack!K361,IF($G$4=Dates1!$B$5,Datapack!Q361,IF($G$4=Dates1!$B$6,Datapack!W361,)))) -> 5 | N156: =IF($G$4=Dates1!$B$3,Datapack!F361,IF($G$4=Dates1!$B$4,Datapack!L361,IF($G$4=Dates1!$B$5,Datapack!R361,IF($G$4=Dates1!$B$6,Datapack!X361,)))) -> 0
B157: West Berkshire | F157: =IF($G$4=Dates1!$B$3,Datapack!B362,IF($G$4=Dates1!$B$4,Datapack!H362,IF($G$4=Dates1!$B$5,Datapack!N362,IF($G$4=Dates1!$B$6,Datapack!T362,)))) -> 2 | H157: =IF($G$4=Dates1!$B$3,Datapack!C362,IF($G$4=Dates1!$B$4,Datapack!I362,IF($G$4=Dates1!$B$5,Datapack!O362,IF($G$4=Dates1!$B$6,Datapack!U362,)))) -> 0 | J157: =IF($G$4=Dates1!$B$3,Datapack!D362,IF($G$4=Dates1!$B$4,Datapack!J362,IF($G$4=Dates1!$B$5,Datapack!P362,IF($G$4=Dates1!$B$6,Datapack!V362,)))) -> 0 | L157: =IF($G$4=Dates1!$B$3,Datapack!E362,IF($G$4=Dates1!$B$4,Datapack!K362,IF($G$4=Dates1!$B$5,Datapack!Q362,IF($G$4=Dates1!$B$6,Datapack!W362,)))) -> 2 | N157: =IF($G$4=Dates1!$B$3,Datapack!F362,IF($G$4=Dates1!$B$4,Datapack!L362,IF($G$4=Dates1!$B$5,Datapack!R362,IF($G$4=Dates1!$B$6,Datapack!X362,)))) -> 0
B158: West Sussex | F158: =IF($G$4=Dates1!$B$3,Datapack!B363,IF($G$4=Dates1!$B$4,Datapack!H363,IF($G$4=Dates1!$B$5,Datapack!N363,IF($G$4=Dates1!$B$6,Datapack!T363,)))) -> 8 | H158: =IF($G$4=Dates1!$B$3,Datapack!C363,IF($G$4=Dates1!$B$4,Datapack!I363,IF($G$4=Dates1!$B$5,Datapack!O363,IF($G$4=Dates1!$B$6,Datapack!U363,)))) -> 1 | J158: =IF($G$4=Dates1!$B$3,Datapack!D363,IF($G$4=Dates1!$B$4,Datapack!J363,IF($G$4=Dates1!$B$5,Datapack!P363,IF($G$4=Dates1!$B$6,Datapack!V363,)))) -> 3 | L158: =IF($G$4=Dates1!$B$3,Datapack!E363,IF($G$4=Dates1!$B$4,Datapack!K363,IF($G$4=Dates1!$B$5,Datapack!Q363,IF($G$4=Dates1!$B$6,Datapack!W363,)))) -> 4 | N158: =IF($G$4=Dates1!$B$3,Datapack!F363,IF($G$4=Dates1!$B$4,Datapack!L363,IF($G$4=Dates1!$B$5,Datapack!R363,IF($G$4=Dates1!$B$6,Datapack!X363,)))) -> 0
B159: Windsor and Maidenhead | F159: =IF($G$4=Dates1!$B$3,Datapack!B364,IF($G$4=Dates1!$B$4,Datapack!H364,IF($G$4=Dates1!$B$5,Datapack!N364,IF($G$4=Dates1!$B$6,Datapack!T364,)))) -> 1 | H159: =IF($G$4=Dates1!$B$3,Datapack!C364,IF($G$4=Dates1!$B$4,Datapack!I364,IF($G$4=Dates1!$B$5,Datapack!O364,IF($G$4=Dates1!$B$6,Datapack!U364,)))) -> 0 | J159: =IF($G$4=Dates1!$B$3,Datapack!D364,IF($G$4=Dates1!$B$4,Datapack!J364,IF($G$4=Dates1!$B$5,Datapack!P364,IF($G$4=Dates1!$B$6,Datapack!V364,)))) -> 0 | L159: =IF($G$4=Dates1!$B$3,Datapack!E364,IF($G$4=Dates1!$B$4,Datapack!K364,IF($G$4=Dates1!$B$5,Datapack!Q364,IF($G$4=Dates1!$B$6,Datapack!W364,)))) -> 1 | N159: =IF($G$4=Dates1!$B$3,Datapack!F364,IF($G$4=Dates1!$B$4,Datapack!L364,IF($G$4=Dates1!$B$5,Datapack!R364,IF($G$4=Dates1!$B$6,Datapack!X364,)))) -> 0
B160: Wokingham | F160: =IF($G$4=Dates1!$B$3,Datapack!B365,IF($G$4=Dates1!$B$4,Datapack!H365,IF($G$4=Dates1!$B$5,Datapack!N365,IF($G$4=Dates1!$B$6,Datapack!T365,)))) -> 0 | H160: =IF($G$4=Dates1!$B$3,Datapack!C365,IF($G$4=Dates1!$B$4,Datapack!I365,IF($G$4=Dates1!$B$5,Datapack!O365,IF($G$4=Dates1!$B$6,Datapack!U365,)))) -> 0 | J160: =IF($G$4=Dates1!$B$3,Datapack!D365,IF($G$4=Dates1!$B$4,Datapack!J365,IF($G$4=Dates1!$B$5,Datapack!P365,IF($G$4=Dates1!$B$6,Datapack!V365,)))) -> 0 | L160: =IF($G$4=Dates1!$B$3,Datapack!E365,IF($G$4=Dates1!$B$4,Datapack!K365,IF($G$4=Dates1!$B$5,Datapack!Q365,IF($G$4=Dates1!$B$6,Datapack!W365,)))) -> 0 | N160: =IF($G$4=Dates1!$B$3,Datapack!F365,IF($G$4=Dates1!$B$4,Datapack!L365,IF($G$4=Dates1!$B$5,Datapack!R365,IF($G$4=Dates1!$B$6,Datapack!X365,)))) -> 0
B162: SOUTH WEST | F162: =SUM(F163:F178) -> 74 | H162: =SUM(H163:H178) -> 8 | J162: 31 | L162: 32 | N162: 3
B163: Bath and North East Somerset | F163: =IF($G$4=Dates1!$B$3,Datapack!B368,IF($G$4=Dates1!$B$4,Datapack!H368,IF($G$4=Dates1!$B$5,Datapack!N368,IF($G$4=Dates1!$B$6,Datapack!T368,)))) -> 2 | H163: =IF($G$4=Dates1!$B$3,Datapack!C368,IF($G$4=Dates1!$B$4,Datapack!I368,IF($G$4=Dates1!$B$5,Datapack!O368,IF($G$4=Dates1!$B$6,Datapack!U368,)))) -> 0 | J163: =IF($G$4=Dates1!$B$3,Datapack!D368,IF($G$4=Dates1!$B$4,Datapack!J368,IF($G$4=Dates1!$B$5,Datapack!P368,IF($G$4=Dates1!$B$6,Datapack!V368,)))) -> 2 | L163: =IF($G$4=Dates1!$B$3,Datapack!E368,IF($G$4=Dates1!$B$4,Datapack!K368,IF($G$4=Dates1!$B$5,Datapack!Q368,IF($G$4=Dates1!$B$6,Datapack!W368,)))) -> 0 | N163: =IF($G$4=Dates1!$B$3,Datapack!F368,IF($G$4=Dates1!$B$4,Datapack!L368,IF($G$4=Dates1!$B$5,Datapack!R368,IF($G$4=Dates1!$B$6,Datapack!X368,)))) -> 0
B164: Bournemouth | F164: =IF($G$4=Dates1!$B$3,Datapack!B369,IF($G$4=Dates1!$B$4,Datapack!H369,IF($G$4=Dates1!$B$5,Datapack!N369,IF($G$4=Dates1!$B$6,Datapack!T369,)))) -> 0 | H164: =IF($G$4=Dates1!$B$3,Datapack!C369,IF($G$4=Dates1!$B$4,Datapack!I369,IF($G$4=Dates1!$B$5,Datapack!O369,IF($G$4=Dates1!$B$6,Datapack!U369,)))) -> 0 | J164: =IF($G$4=Dates1!$B$3,Datapack!D369,IF($G$4=Dates1!$B$4,Datapack!J369,IF($G$4=Dates1!$B$5,Datapack!P369,IF($G$4=Dates1!$B$6,Datapack!V369,)))) -> 0 | L164: =IF($G$4=Dates1!$B$3,Datapack!E369,IF($G$4=Dates1!$B$4,Datapack!K369,IF($G$4=Dates1!$B$5,Datapack!Q369,IF($G$4=Dates1!$B$6,Datapack!W369,)))) -> 0 | N164: =IF($G$4=Dates1!$B$3,Datapack!F369,IF($G$4=Dates1!$B$4,Datapack!L369,IF($G$4=Dates1!$B$5,Datapack!R369,IF($G$4=Dates1!$B$6,Datapack!X369,)))) -> 0
B165: Bristol City of | F165: =IF($G$4=Dates1!$B$3,Datapack!B370,IF($G$4=Dates1!$B$4,Datapack!H370,IF($G$4=Dates1!$B$5,Datapack!N370,IF($G$4=Dates1!$B$6,Datapack!T370,)))) -> 10 | H165: =IF($G$4=Dates1!$B$3,Datapack!C370,IF($G$4=Dates1!$B$4,Datapack!I370,IF($G$4=Dates1!$B$5,Datapack!O370,IF($G$4=Dates1!$B$6,Datapack!U370,)))) -> 4 | J165: =IF($G$4=Dates1!$B$3,Datapack!D370,IF($G$4=Dates1!$B$4,Datapack!J370,IF($G$4=Dates1!$B$5,Datapack!P370,IF($G$4=Dates1!$B$6,Datapack!V370,)))) -> 5 | L165: =IF($G$4=Dates1!$B$3,Datapack!E370,IF($G$4=Dates1!$B$4,Datapack!K370,IF($G$4=Dates1!$B$5,Datapack!Q370,IF($G$4=Dates1!$B$6,Datapack!W370,)))) -> 1 | N165: =IF($G$4=Dates1!$B$3,Datapack!F370,IF($G$4=Dates1!$B$4,Datapack!L370,IF($G$4=Dates1!$B$5,Datapack!R370,IF($G$4=Dates1!$B$6,Datapack!X370,)))) -> 0
B166: Cornwall | F166: =IF($G$4=Dates1!$B$3,Datapack!B371,IF($G$4=Dates1!$B$4,Datapack!H371,IF($G$4=Dates1!$B$5,Datapack!N371,IF($G$4=Dates1!$B$6,Datapack!T371,)))) -> 3 | H166: =IF($G$4=Dates1!$B$3,Datapack!C371,IF($G$4=Dates1!$B$4,Datapack!I371,IF($G$4=Dates1!$B$5,Datapack!O371,IF($G$4=Dates1!$B$6,Datapack!U371,)))) -> 0 | J166: =IF($G$4=Dates1!$B$3,Datapack!D371,IF($G$4=Dates1!$B$4,Datapack!J371,IF($G$4=Dates1!$B$5,Datapack!P371,IF($G$4=Dates1!$B$6,Datapack!V371,)))) -> 1 | L166: =IF($G$4=Dates1!$B$3,Datapack!E371,IF($G$4=Dates1!$B$4,Datapack!K371,IF($G$4=Dates1!$B$5,Datapack!Q371,IF($G$4=Dates1!$B$6,Datapack!W371,)))) -> 2 | N166: =IF($G$4=Dates1!$B$3,Datapack!F371,IF($G$4=Dates1!$B$4,Datapack!L371,IF($G$4=Dates1!$B$5,Datapack!R371,IF($G$4=Dates1!$B$6,Datapack!X371,)))) -> 0
B167: Devon | F167: =IF($G$4=Dates1!$B$3,Datapack!B372,IF($G$4=Dates1!$B$4,Datapack!H372,IF($G$4=Dates1!$B$5,Datapack!N372,IF($G$4=Dates1!$B$6,Datapack!T372,)))) -> 11 | H167: =IF($G$4=Dates1!$B$3,Datapack!C372,IF($G$4=Dates1!$B$4,Datapack!I372,IF($G$4=Dates1!$B$5,Datapack!O372,IF($G$4=Dates1!$B$6,Datapack!U372,)))) -> 0 | J167: =IF($G$4=Dates1!$B$3,Datapack!D372,IF($G$4=Dates1!$B$4,Datapack!J372,IF($G$4=Dates1!$B$5,Datapack!P372,IF($G$4=Dates1!$B$6,Datapack!V372,)))) -> 6 | L167: =IF($G$4=Dates1!$B$3,Datapack!E372,IF($G$4=Dates1!$B$4,Datapack!K372,IF($G$4=Dates1!$B$5,Datapack!Q372,IF($G$4=Dates1!$B$6,Datapack!W372,)))) -> 5 | N167: =IF($G$4=Dates1!$B$3,Datapack!F372,IF($G$4=Dates1!$B$4,Datapack!L372,IF($G$4=Dates1!$B$5,Datapack!R372,IF($G$4=Dates1!$B$6,Datapack!X372,)))) -> 0
B168: Dorset | F168: =IF($G$4=Dates1!$B$3,Datapack!B373,IF($G$4=Dates1!$B$4,Datapack!H373,IF($G$4=Dates1!$B$5,Datapack!N373,IF($G$4=Dates1!$B$6,Datapack!T373,)))) -> 5 | H168: =IF($G$4=Dates1!$B$3,Datapack!C373,IF($G$4=Dates1!$B$4,Datapack!I373,IF($G$4=Dates1!$B$5,Datapack!O373,IF($G$4=Dates1!$B$6,Datapack!U373,)))) -> 0 | J168: =IF($G$4=Dates1!$B$3,Datapack!D373,IF($G$4=Dates1!$B$4,Datapack!J373,IF($G$4=Dates1!$B$5,Datapack!P373,IF($G$4=Dates1!$B$6,Datapack!V373,)))) -> 1 | L168: =IF($G$4=Dates1!$B$3,Datapack!E373,IF($G$4=Dates1!$B$4,Datapack!K373,IF($G$4=Dates1!$B$5,Datapack!Q373,IF($G$4=Dates1!$B$6,Datapack!W373,)))) -> 4 | N168: =IF($G$4=Dates1!$B$3,Datapack!F373,IF($G$4=Dates1!$B$4,Datapack!L373,IF($G$4=Dates1!$B$5,Datapack!R373,IF($G$4=Dates1!$B$6,Datapack!X373,)))) -> 0
B169: Gloucestershire | F169: =IF($G$4=Dates1!$B$3,Datapack!B374,IF($G$4=Dates1!$B$4,Datapack!H374,IF($G$4=Dates1!$B$5,Datapack!N374,IF($G$4=Dates1!$B$6,Datapack!T374,)))) -> 11 | H169: =IF($G$4=Dates1!$B$3,Datapack!C374,IF($G$4=Dates1!$B$4,Datapack!I374,IF($G$4=Dates1!$B$5,Datapack!O374,IF($G$4=Dates1!$B$6,Datapack!U374,)))) -> 0 | J169: =IF($G$4=Dates1!$B$3,Datapack!D374,IF($G$4=Dates1!$B$4,Datapack!J374,IF($G$4=Dates1!$B$5,Datapack!P374,IF($G$4=Dates1!$B$6,Datapack!V374,)))) -> 6 | L169: =IF($G$4=Dates1!$B$3,Datapack!E374,IF($G$4=Dates1!$B$4,Datapack!K374,IF($G$4=Dates1!$B$5,Datapack!Q374,IF($G$4=Dates1!$B$6,Datapack!W374,)))) -> 5 | N169: =IF($G$4=Dates1!$B$3,Datapack!F374,IF($G$4=Dates1!$B$4,Datapack!L374,IF($G$4=Dates1!$B$5,Datapack!R374,IF($G$4=Dates1!$B$6,Datapack!X374,)))) -> 0
B170: Isles Of Scilly | F170: =IF($G$4=Dates1!$B$3,Datapack!B375,IF($G$4=Dates1!$B$4,Datapack!H375,IF($G$4=Dates1!$B$5,Datapack!N375,IF($G$4=Dates1!$B$6,Datapack!T375,)))) -> 0 | H170: =IF($G$4=Dates1!$B$3,Datapack!C375,IF($G$4=Dates1!$B$4,Datapack!I375,IF($G$4=Dates1!$B$5,Datapack!O375,IF($G$4=Dates1!$B$6,Datapack!U375,)))) -> 0 | J170: =IF($G$4=Dates1!$B$3,Datapack!D375,IF($G$4=Dates1!$B$4,Datapack!J375,IF($G$4=Dates1!$B$5,Datapack!P375,IF($G$4=Dates1!$B$6,Datapack!V375,)))) -> 0 | L170: =IF($G$4=Dates1!$B$3,Datapack!E375,IF($G$4=Dates1!$B$4,Datapack!K375,IF($G$4=Dates1!$B$5,Datapack!Q375,IF($G$4=Dates1!$B$6,Datapack!W375,)))) -> 0 | N170: =IF($G$4=Dates1!$B$3,Datapack!F375,IF($G$4=Dates1!$B$4,Datapack!L375,IF($G$4=Dates1!$B$5,Datapack!R375,IF($G$4=Dates1!$B$6,Datapack!X375,)))) -> 0
B171: North Somerset | F171: =IF($G$4=Dates1!$B$3,Datapack!B376,IF($G$4=Dates1!$B$4,Datapack!H376,IF($G$4=Dates1!$B$5,Datapack!N376,IF($G$4=Dates1!$B$6,Datapack!T376,)))) -> 3 | H171: =IF($G$4=Dates1!$B$3,Datapack!C376,IF($G$4=Dates1!$B$4,Datapack!I376,IF($G$4=Dates1!$B$5,Datapack!O376,IF($G$4=Dates1!$B$6,Datapack!U376,)))) -> 0 | J171: =IF($G$4=Dates1!$B$3,Datapack!D376,IF($G$4=Dates1!$B$4,Datapack!J376,IF($G$4=Dates1!$B$5,Datapack!P376,IF($G$4=Dates1!$B$6,Datapack!V376,)))) -> 2 | L171: =IF($G$4=Dates1!$B$3,Datapack!E376,IF($G$4=Dates1!$B$4,Datapack!K376,IF($G$4=Dates1!$B$5,Datapack!Q376,IF($G$4=Dates1!$B$6,Datapack!W376,)))) -> 1 | N171: =IF($G$4=Dates1!$B$3,Datapack!F376,IF($G$4=Dates1!$B$4,Datapack!L376,IF($G$4=Dates1!$B$5,Datapack!R376,IF($G$4=Dates1!$B$6,Datapack!X376,)))) -> 0
B172: Plymouth | F172: =IF($G$4=Dates1!$B$3,Datapack!B377,IF($G$4=Dates1!$B$4,Datapack!H377,IF($G$4=Dates1!$B$5,Datapack!N377,IF($G$4=Dates1!$B$6,Datapack!T377,)))) -> 3 | H172: =IF($G$4=Dates1!$B$3,Datapack!C377,IF($G$4=Dates1!$B$4,Datapack!I377,IF($G$4=Dates1!$B$5,Datapack!O377,IF($G$4=Dates1!$B$6,Datapack!U377,)))) -> 0 | J172: =IF($G$4=Dates1!$B$3,Datapack!D377,IF($G$4=Dates1!$B$4,Datapack!J377,IF($G$4=Dates1!$B$5,Datapack!P377,IF($G$4=Dates1!$B$6,Datapack!V377,)))) -> 1 | L172: =IF($G$4=Dates1!$B$3,Datapack!E377,IF($G$4=Dates1!$B$4,Datapack!K377,IF($G$4=Dates1!$B$5,Datapack!Q377,IF($G$4=Dates1!$B$6,Datapack!W377,)))) -> 0 | N172: =IF($G$4=Dates1!$B$3,Datapack!F377,IF($G$4=Dates1!$B$4,Datapack!L377,IF($G$4=Dates1!$B$5,Datapack!R377,IF($G$4=Dates1!$B$6,Datapack!X377,)))) -> 2
B173: Poole | F173: =IF($G$4=Dates1!$B$3,Datapack!B378,IF($G$4=Dates1!$B$4,Datapack!H378,IF($G$4=Dates1!$B$5,Datapack!N378,IF($G$4=Dates1!$B$6,Datapack!T378,)))) -> 0 | H173: =IF($G$4=Dates1!$B$3,Datapack!C378,IF($G$4=Dates1!$B$4,Datapack!I378,IF($G$4=Dates1!$B$5,Datapack!O378,IF($G$4=Dates1!$B$6,Datapack!U378,)))) -> 0 | J173: =IF($G$4=Dates1!$B$3,Datapack!D378,IF($G$4=Dates1!$B$4,Datapack!J378,IF($G$4=Dates1!$B$5,Datapack!P378,IF($G$4=Dates1!$B$6,Datapack!V378,)))) -> 0 | L173: =IF($G$4=Dates1!$B$3,Datapack!E378,IF($G$4=Dates1!$B$4,Datapack!K378,IF($G$4=Dates1!$B$5,Datapack!Q378,IF($G$4=Dates1!$B$6,Datapack!W378,)))) -> 0 | N173: =IF($G$4=Dates1!$B$3,Datapack!F378,IF($G$4=Dates1!$B$4,Datapack!L378,IF($G$4=Dates1!$B$5,Datapack!R378,IF($G$4=Dates1!$B$6,Datapack!X378,)))) -> 0
B174: Somerset | F174: =IF($G$4=Dates1!$B$3,Datapack!B379,IF($G$4=Dates1!$B$4,Datapack!H379,IF($G$4=Dates1!$B$5,Datapack!N379,IF($G$4=Dates1!$B$6,Datapack!T379,)))) -> 11 | H174: =IF($G$4=Dates1!$B$3,Datapack!C379,IF($G$4=Dates1!$B$4,Datapack!I379,IF($G$4=Dates1!$B$5,Datapack!O379,IF($G$4=Dates1!$B$6,Datapack!U379,)))) -> 0 | J174: =IF($G$4=Dates1!$B$3,Datapack!D379,IF($G$4=Dates1!$B$4,Datapack!J379,IF($G$4=Dates1!$B$5,Datapack!P379,IF($G$4=Dates1!$B$6,Datapack!V379,)))) -> 4 | L174: =IF($G$4=Dates1!$B$3,Datapack!E379,IF($G$4=Dates1!$B$4,Datapack!K379,IF($G$4=Dates1!$B$5,Datapack!Q379,IF($G$4=Dates1!$B$6,Datapack!W379,)))) -> 6 | N174: =IF($G$4=Dates1!$B$3,Datapack!F379,IF($G$4=Dates1!$B$4,Datapack!L379,IF($G$4=Dates1!$B$5,Datapack!R379,IF($G$4=Dates1!$B$6,Datapack!X379,)))) -> 1
B175: South Gloucestershire | F175: =IF($G$4=Dates1!$B$3,Datapack!B380,IF($G$4=Dates1!$B$4,Datapack!H380,IF($G$4=Dates1!$B$5,Datapack!N380,IF($G$4=Dates1!$B$6,Datapack!T380,)))) -> 3 | H175: =IF($G$4=Dates1!$B$3,Datapack!C380,IF($G$4=Dates1!$B$4,Datapack!I380,IF($G$4=Dates1!$B$5,Datapack!O380,IF($G$4=Dates1!$B$6,Datapack!U380,)))) -> 0 | J175: =IF($G$4=Dates1!$B$3,Datapack!D380,IF($G$4=Dates1!$B$4,Datapack!J380,IF($G$4=Dates1!$B$5,Datapack!P380,IF($G$4=Dates1!$B$6,Datapack!V380,)))) -> 0 | L175: =IF($G$4=Dates1!$B$3,Datapack!E380,IF($G$4=Dates1!$B$4,Datapack!K380,IF($G$4=Dates1!$B$5,Datapack!Q380,IF($G$4=Dates1!$B$6,Datapack!W380,)))) -> 3 | N175: =IF($G$4=Dates1!$B$3,Datapack!F380,IF($G$4=Dates1!$B$4,Datapack!L380,IF($G$4=Dates1!$B$5,Datapack!R380,IF($G$4=Dates1!$B$6,Datapack!X380,)))) -> 0
B176: Swindon | F176: =IF($G$4=Dates1!$B$3,Datapack!B381,IF($G$4=Dates1!$B$4,Datapack!H381,IF($G$4=Dates1!$B$5,Datapack!N381,IF($G$4=Dates1!$B$6,Datapack!T381,)))) -> 3 | H176: =IF($G$4=Dates1!$B$3,Datapack!C381,IF($G$4=Dates1!$B$4,Datapack!I381,IF($G$4=Dates1!$B$5,Datapack!O381,IF($G$4=Dates1!$B$6,Datapack!U381,)))) -> 1 | J176: =IF($G$4=Dates1!$B$3,Datapack!D381,IF($G$4=Dates1!$B$4,Datapack!J381,IF($G$4=Dates1!$B$5,Datapack!P381,IF($G$4=Dates1!$B$6,Datapack!V381,)))) -> 2 | L176: =IF($G$4=Dates1!$B$3,Datapack!E381,IF($G$4=Dates1!$B$4,Datapack!K381,IF($G$4=Dates1!$B$5,Datapack!Q381,IF($G$4=Dates1!$B$6,Datapack!W381,)))) -> 0 | N176: =IF($G$4=Dates1!$B$3,Datapack!F381,IF($G$4=Dates1!$B$4,Datapack!L381,IF($G$4=Dates1!$B$5,Datapack!R381,IF($G$4=Dates1!$B$6,Datapack!X381,)))) -> 0
B177: Torbay | F177: =IF($G$4=Dates1!$B$3,Datapack!B382,IF($G$4=Dates1!$B$4,Datapack!H382,IF($G$4=Dates1!$B$5,Datapack!N382,IF($G$4=Dates1!$B$6,Datapack!T382,)))) -> 0 | H177: =IF($G$4=Dates1!$B$3,Datapack!C382,IF($G$4=Dates1!$B$4,Datapack!I382,IF($G$4=Dates1!$B$5,Datapack!O382,IF($G$4=Dates1!$B$6,Datapack!U382,)))) -> 0 | J177: =IF($G$4=Dates1!$B$3,Datapack!D382,IF($G$4=Dates1!$B$4,Datapack!J382,IF($G$4=Dates1!$B$5,Datapack!P382,IF($G$4=Dates1!$B$6,Datapack!V382,)))) -> 0 | L177: =IF($G$4=Dates1!$B$3,Datapack!E382,IF($G$4=Dates1!$B$4,Datapack!K382,IF($G$4=Dates1!$B$5,Datapack!Q382,IF($G$4=Dates1!$B$6,Datapack!W382,)))) -> 0 | N177: =IF($G$4=Dates1!$B$3,Datapack!F382,IF($G$4=Dates1!$B$4,Datapack!L382,IF($G$4=Dates1!$B$5,Datapack!R382,IF($G$4=Dates1!$B$6,Datapack!X382,)))) -> 0
B178: Wiltshire | F178: =IF($G$4=Dates1!$B$3,Datapack!B383,IF($G$4=Dates1!$B$4,Datapack!H383,IF($G$4=Dates1!$B$5,Datapack!N383,IF($G$4=Dates1!$B$6,Datapack!T383,)))) -> 9 | H178: =IF($G$4=Dates1!$B$3,Datapack!C383,IF($G$4=Dates1!$B$4,Datapack!I383,IF($G$4=Dates1!$B$5,Datapack!O383,IF($G$4=Dates1!$B$6,Datapack!U383,)))) -> 3 | J178: =IF($G$4=Dates1!$B$3,Datapack!D383,IF($G$4=Dates1!$B$4,Datapack!J383,IF($G$4=Dates1!$B$5,Datapack!P383,IF($G$4=Dates1!$B$6,Datapack!V383,)))) -> 1 | L178: =IF($G$4=Dates1!$B$3,Datapack!E383,IF($G$4=Dates1!$B$4,Datapack!K383,IF($G$4=Dates1!$B$5,Datapack!Q383,IF($G$4=Dates1!$B$6,Datapack!W383,)))) -> 5 | N178: =IF($G$4=Dates1!$B$3,Datapack!F383,IF($G$4=Dates1!$B$4,Datapack!L383,IF($G$4=Dates1!$B$5,Datapack!R383,IF($G$4=Dates1!$B$6,Datapack!X383,)))) -> 0
L180: Source: Ofsted Inspections
B181: 1.Figures represent the number of children's centres.

Sheet Table 6
B2: Table 6: Overall effectiveness of children's centres inspected as at 31 August 2012, by local authority1 2
F5: Total number inspected | H5: Outstanding | K5: Good | N5: Satisfactory | Q5: Inadequate
H6: Number | I6: % | K6: Number | L6: % | N6: Number | O6: % | Q6: Number | R6: %
B8: ENGLAND | F8: =SUM(F10+F24+F49+F66+F77+F93+F106+F141+F162) -> 1443 | H8: =SUM(H10+H24+H49+H66+H77+H93+H106+H141+H162) -> 190 | I8: =SUM(H8/F8*100) -> 13.16701317 | K8: =SUM(K10+K24+K49+K66+K77+K93+K106+K141+K162) -> 814 | L8: =SUM(K8/F8*100) -> 56.41025641 | N8: =SUM(N10+N24+N49+N66+N77+N93+N106+N141+N162) -> 419 | O8: =SUM(N8/F8*100) -> 29.03672904 | Q8: =SUM(Q10+Q24+Q49+Q66+Q77+Q93+Q106+Q141+Q162) -> 20 | R8: =SUM(Q8/F8*100) -> 1.386001386
B10: NORTH EAST | F10: =SUM(H10+K10+N10+Q10) -> 96 | H10: =SUM(H11:H22) -> 11 | I10: =SUM(H10/F10*100) -> 11.45833333 | K10: =SUM(K11:K22) -> 70 | L10: =SUM(K10/F10*100) -> 72.91666667 | N10: =SUM(N11:N22) -> 13 | O10: =SUM(N10/F10*100) -> 13.54166667 | Q10: =SUM(Q11:Q22) -> 2 | R10: =SUM(Q10/F10*100) -> 2.083333333
B11: Darlington | F11: 3 | H11: 0 | I11: =SUM(H11/F11*100) -> 0 | K11: 2 | L11: =SUM(K11/F11*100) -> 66.66666667 | N11: 1 | O11: =SUM(N11/F11*100) -> 33.33333333 | Q11: 0 | R11: =SUM(Q11/F11*100) -> 0
B12: Durham | F12: 22 | H12: 0 | I12: 0 | K12: 13 | L12: 59.09090909 | N12: 7 | O12: 31.81818182 | Q12: 2 | R12: 9.090909091
B13: Gateshead | F13: 4 | H13: 0 | I13: 0 | K13: 3 | L13: 75 | N13: 1 | O13: 25 | Q13: 0 | R13: 0
B14: Hartlepool | F14: 4 | H14: 0 | I14: 0 | K14: 3 | L14: 75 | N14: 1 | O14: 25 | Q14: 0 | R14: 0
B15: Middlesbrough | F15: 6 | H15: 0 | I15: 0 | K15: 6 | L15: 100 | N15: 0 | O15: 0 | Q15: 0 | R15: 0
B16: Newcastle upon Tyne | F16: 10 | H16: 2 | I16: 20 | K16: 8 | L16: 80 | N16: 0 | O16: 0 | Q16: 0 | R16: 0
B17: North Tyneside | F17: 9 | H17: 5 | I17: 55.55555556 | K17: 4 | L17: 44.44444444 | N17: 0 | O17: 0 | Q17: 0 | R17: 0
B18: Northumberland | F18: 12 | H18: 2 | I18: 16.66666667 | K18: 9 | L18: 75 | N18: 1 | O18: 8.333333333 | Q18: 0 | R18: 0
B19: Redcar and Cleveland | F19: 3 | H19: 1 | I19: 33.33333333 | K19: 2 | L19: 66.66666667 | N19: 0 | O19: 0 | Q19: 0 | R19: 0
B20: South Tyneside | F20: 8 | H20: 1 | I20: 12.5 | K20: 5 | L20: 62.5 | N20: 2 | O20: 25 | Q20: 0 | R20: 0
B21: Stockton-on-Tees | F21: 4 | H21: 0 | I21: 0 | K21: 4 | L21: 100 | N21: 0 | O21: 0 | Q21: 0 | R21: 0
B22: Sunderland | F22: 11 | H22: 0 | I22: 0 | K22: 11 | L22: 100 | N22: 0 | O22: 0 | Q22: 0 | R22: 0
B24: NORTH WEST | F24: =SUM(F25:F47) -> 220 | H24: =SUM(H25:H47) -> 33 | I24: =H24/F24*100 -> 15 | K24: =SUM(K25:K47) -> 121 | L24: =SUM(K24/F24*100) -> 55 | N24: =SUM(N25:N47) -> 65 | O24: =SUM(N24/F24*100) -> 29.54545455 | Q24: =SUM(Q25:Q47) -> 1 | R24: =SUM(Q24/F24*100) -> 0.4545454545
B25: Blackburn with Darwen | F25: 9 | H25: 0 | I25: =H25/F25*100 -> 0 | K25: 8 | L25: =SUM(K25/F25*100) -> 88.88888889 | N25: 1 | O25: =SUM(N25/F25*100) -> 11.11111111 | Q25: 0 | R25: =SUM(Q25/F25*100) -> 0
B26: Blackpool | F26: 7 | H26: 5 | I26: 71.42857143 | K26: 2 | L26: 28.57142857 | N26: 0 | O26: 0 | Q26: 0 | R26: 0
B27: Bolton | F27: 6 | H27: 0 | I27: 0 | K27: 1 | L27: 16.66666667 | N27: 5 | O27: 83.33333333 | Q27: 0 | R27: 0
B28: Bury | F28: 8 | H28: 0 | I28: 0 | K28: 2 | L28: 25 | N28: 6 | O28: 75 | Q28: 0 | R28: 0
B29: Cheshire East | F29: 3 | H29: 0 | I29: 0 | K29: 2 | L29: 66.66666667 | N29: 1 | O29: 33.33333333 | Q29: 0 | R29: 0
B30: Cheshire West and Chester | F30: 5 | H30: 1 | I30: 20 | K30: 3 | L30: 60 | N30: 1 | O30: 20 | Q30: 0 | R30: 0
B31: Cumbria | F31: 15 | H31: 4 | I31: 26.66666667 | K31: 11 | L31: 73.33333333 | N31: 0 | O31: 0 | Q31: 0 | R31: 0
B32: Halton | F32: 5 | H32: 0 | I32: 0 | K32: 4 | L32: 80 | N32: 1 | O32: 20 | Q32: 0 | R32: 0
B33: Knowsley | F33: 6 | H33: 1 | I33: 16.66666667 | K33: 5 | L33: 83.33333333 | N33: 0 | O33: 0 | Q33: 0 | R33: 0
B34: Lancashire | F34: 45 | H34: 11 | I34: 24.44444444 | K34: 30 | L34: 66.66666667 | N34: 4 | O34: 8.888888889 | Q34: 0 | R34: 0
B35: Liverpool | F35: 16 | H35: 3 | I35: 18.75 | K35: 12 | L35: 75 | N35: 1 | O35: 6.25 | Q35: 0 | R35: 0
B36: Manchester | F36: 24 | H36: 2 | I36: 8.333333333 | K36: 6 | L36: 25 | N36: 16 | O36: 66.66666667 | Q36: 0 | R36: 0
B37: Oldham | F37: 3 | H37: 0 | I37: 0 | K37: 3 | L37: 100 | N37: 0 | O37: 0 | Q37: 0 | R37: 0
B38: Rochdale | F38: 9 | H38: 1 | I38: 11.11111111 | K38: 2 | L38: 22.22222222 | N38: 6 | O38: 66.66666667 | Q38: 0 | R38: 0
B39: Salford | F39: 4 | H39: 0 | I39: 0 | K39: 2 | L39: 50 | N39: 2 | O39: 50 | Q39: 0 | R39: 0
B40: Sefton | F40: 4 | H40: 1 | I40: 25 | K40: 3 | L40: 75 | N40: 0 | O40: 0 | Q40: 0 | R40: 0
B41: St. Helens | F41: 8 | H41: 0 | I41: 0 | K41: 2 | L41: 25 | N41: 5 | O41: 62.5 | Q41: 1 | R41: 12.5
B42: Stockport | F42: 7 | H42: 1 | I42: 14.28571429 | K42: 5 | L42: 71.42857143 | N42: 1 | O42: 14.28571429 | Q42: 0 | R42: 0
B43: Tameside | F43: 7 | H43: 0 | I43: 0 | K43: 2 | L43: 28.57142857 | N43: 5 | O43: 71.42857143 | Q43: 0 | R43: 0
B44: Trafford | F44: 7 | H44: 0 | I44: 0 | K44: 4 | L44: 57.14285714 | N44: 3 | O44: 42.85714286 | Q44: 0 | R44: 0
B45: Warrington | F45: 2 | H45: 0 | I45: 0 | K45: 1 | L45: 50 | N45: 1 | O45: 50 | Q45: 0 | R45: 0
B46: Wigan | F46: 9 | H46: 3 | I46: 33.33333333 | K46: 2 | L46: 22.22222222 | N46: 4 | O46: 44.44444444 | Q46: 0 | R46: 0
B47: Wirral | F47: 11 | H47: 0 | I47: 0 | K47: 9 | L47: 81.81818182 | N47: 2 | O47: 18.18181818 | Q47: 0 | R47: 0
B49: YORKSHIRE AND THE HUMBER | F49: =SUM(F50:F64) -> 184 | H49: =SUM(H50:H64) -> 10 | I49: =SUM(H49/F49*100) -> 5.434782609 | K49: =SUM(K50:K64) -> 122 | L49: =SUM(K49/F49*100) -> 66.30434783 | N49: =SUM(N50:N64) -> 49 | O49: =SUM(N49/F49*100) -> 26.63043478 | Q49: =SUM(Q50:Q64) -> 3 | R49: =SUM(Q49/F49*100) -> 1.630434783
B50: Barnsley | F50: 8 | H50: 0 | I50: =SUM(H50/F50*100) -> 0 | K50: 4 | L50: =SUM(K50/F50*100) -> 50 | N50: 4 | O50: =SUM(N50/F50*100) -> 50 | Q50: 0 | R50: =SUM(Q50/F50*100) -> 0
B51: Bradford | F51: 22 | H51: 2 | I51: 9.090909091 | K51: 17 | L51: 77.27272727 | N51: 2 | O51: 9.090909091 | Q51: 1 | R51: 4.545454545
B52: Calderdale | F52: 10 | H52: 0 | I52: 0 | K52: 2 | L52: 20 | N52: 8 | O52: 80 | Q52: 0 | R52: 0
B53: Doncaster | F53: 15 | H53: 0 | I53: 0 | K53: 8 | L53: 53.33333333 | N53: 6 | O53: 40 | Q53: 1 | R53: 6.666666667
B54: East Riding of Yorkshire | F54: 10 | H54: 0 | I54: 0 | K54: 10 | L54: 100 | N54: 0 | O54: 0 | Q54: 0 | R54: 0
B55: Kingston upon Hull City of | F55: 10 | H55: 0 | I55: 0 | K55: 5 | L55: 50 | N55: 5 | O55: 50 | Q55: 0 | R55: 0
B56: Kirklees | F56: 13 | H56: 1 | I56: 7.692307692 | K56: 11 | L56: 84.61538462 | N56: 1 | O56: 7.692307692 | Q56: 0 | R56: 0
B57: Leeds | F57: 26 | H57: 2 | I57: 7.692307692 | K57: 19 | L57: 73.07692308 | N57: 5 | O57: 19.23076923 | Q57: 0 | R57: 0
B58: North East Lincolnshire | F58: 5 | H58: 4 | I58: 80 | K58: 1 | L58: 20 | N58: 0 | O58: 0 | Q58: 0 | R58: 0
B59: North Lincolnshire | F59: 9 | H59: 0 | I59: 0 | K59: 9 | L59: 100 | N59: 0 | O59: 0 | Q59: 0 | R59: 0
B60: North Yorkshire | F60: 12 | H60: 0 | I60: 0 | K60: 4 | L60: 33.33333333 | N60: 8 | O60: 66.66666667 | Q60: 0 | R60: 0
B61: Rotherham | F61: 11 | H61: 1 | I61: 9.090909091 | K61: 9 | L61: 81.81818182 | N61: 1 | O61: 9.090909091 | Q61: 0 | R61: 0
B62: Sheffield | F62: 15 | H62: 0 | I62: 0 | K62: 7 | L62: 46.66666667 | N62: 7 | O62: 46.66666667 | Q62: 1 | R62: 6.666666667
B63: Wakefield | F63: 12 | H63: 0 | I63: 0 | K63: 11 | L63: 91.66666667 | N63: 1 | O63: 8.333333333 | Q63: 0 | R63: 0
B64: York | F64: 6 | H64: 0 | I64: 0 | K64: 5 | L64: 83.33333333 | N64: 1 | O64: 16.66666667 | Q64: 0 | R64: 0
B66: EAST MIDLANDS | F66: =SUM(F67:F75) -> 128 | H66: =SUM(G67:H75) -> 12 | I66: =SUM(H66/F66*100) -> 9.375 | K66: =SUM(K67:K75) -> 66 | L66: =SUM(K66/F66*100) -> 51.5625 | N66: =SUM(N67:N75) -> 48 | O66: =SUM(N66/F66*100) -> 37.5 | Q66: =SUM(Q67:Q75) -> 2 | R66: =SUM(Q66/F66*100) -> 1.5625
B67: Derby | F67: 9 | H67: 1 | I67: =SUM(H67/F67*100) -> 11.11111111 | K67: 4 | L67: =SUM(K67/F67*100) -> 44.44444444 | N67: 4 | O67: =SUM(N67/F67*100) -> 44.44444444 | Q67: 0 | R67: =SUM(Q67/F67*100) -> 0
B68: Derbyshire | F68: 26 | H68: 0 | I68: 0 | K68: 14 | L68: 53.84615385 | N68: 11 | O68: 42.30769231 | Q68: 1 | R68: 3.846153846
B69: Leicester | F69: 9 | H69: 0 | I69: 0 | K69: 5 | L69: 55.55555556 | N69: 4 | O69: 44.44444444 | Q69: 0 | R69: 0
B70: Leicestershire | F70: 9 | H70: 0 | I70: 0 | K70: 1 | L70: 11.11111111 | N70: 8 | O70: 88.88888889 | Q70: 0 | R70: 0
B71: Lincolnshire | F71: 20 | H71: 4 | I71: 20 | K71: 13 | L71: 65 | N71: 3 | O71: 15 | Q71: 0 | R71: 0
B72: Northamptonshire | F72: 19 | H72: 0 | I72: 0 | K72: 9 | L72: 47.36842105 | N72: 9 | O72: 47.36842105 | Q72: 1 | R72: 5.263157895
B73: Nottingham | F73: 12 | H73: 2 | I73: 16.66666667 | K73: 6 | L73: 50 | N73: 4 | O73: 33.33333333 | Q73: 0 | R73: 0
B74: Nottinghamshire | F74: 24 | H74: 5 | I74: =SUM(H74/F74*100) -> 20.83333333 | K74: 14 | L74: 58.33333333 | N74: 5 | O74: 20.83333333 | Q74: 0 | R74: 0
B75: Rutland | F75: 0 | H75: 0 | I75: - | K75: 0 | L75: - | N75: 0 | O75: - | Q75: 0 | R75: -
B77: WEST MIDLANDS | F77: =SUM(F78:F91) -> 163 | H77: =SUM(H78:H91) -> 35 | I77: =SUM(H77/F77*100) -> 21.47239264 | K77: =SUM(K78:K91) -> 82 | L77: =SUM(K77/F77*100) -> 50.30674847 | N77: =SUM(N78:N91) -> 44 | O77: =SUM(N77/F77*100) -> 26.99386503 | Q77: =SUM(Q78:Q91) -> 2 | R77: =SUM(Q77/F77*100) -> 1.226993865
B78: Birmingham | F78: 41 | H78: 8 | I78: =SUM(H78/F78*100) -> 19.51219512 | K78: 15 | L78: =SUM(K78/F78*100) -> 36.58536585 | N78: 17 | O78: =SUM(N78/F78*100) -> 41.46341463 | Q78: 1 | R78: =SUM(Q78/F78*100) -> 2.43902439
B79: Coventry | F79: 10 | H79: 1 | I79: 10 | K79: 5 | L79: 50 | N79: 4 | O79: 40 | Q79: 0 | R79: 0
B80: Dudley | F80: 11 | H80: 0 | I80: 0 | K80: 9 | L80: 81.81818182 | N80: 2 | O80: 18.18181818 | Q80: 0 | R80: 0
B81: Herefordshire | F81: 4 | H81: 0 | I81: 0 | K81: 3 | L81: 75 | N81: 1 | O81: 25 | Q81: 0 | R81: 0
B82: Sandwell | F82: 10 | H82: 5 | I82: 50 | K82: 4 | L82: 40 | N82: 1 | O82: 10 | Q82: 0 | R82: 0
B83: Shropshire | F83: 6 | H83: 2 | I83: 33.33333333 | K83: 4 | L83: 66.66666667 | N83: 0 | O83: 0 | Q83: 0 | R83: 0
B84: Solihull | F84: 5 | H84: 0 | I84: 0 | K84: 4 | L84: 80 | N84: 1 | O84: 20 | Q84: 0 | R84: 0
B85: Staffordshire | F85: 16 | H85: 1 | I85: 6.25 | K85: 6 | L85: 37.5 | N85: 9 | O85: 56.25 | Q85: 0 | R85: 0
B86: Stoke-on-Trent | F86: 3 | H86: 1 | I86: 33.33333333 | K86: 0 | L86: 0 | N86: 2 | O86: 66.66666667 | Q86: 0 | R86: 0
B87: Telford and Wrekin | F87: 7 | H87: 3 | I87: 42.85714286 | K87: 3 | L87: 42.85714286 | N87: 1 | O87: 14.28571429 | Q87: 0 | R87: 0
B88: Walsall | F88: 9 | H88: 3 | I88: 33.33333333 | K88: 3 | L88: 33.33333333 | N88: 2 | O88: 22.22222222 | Q88: 1 | R88: 11.11111111
B89: Warwickshire | F89: 17 | H89: 6 | I89: 35.29411765 | K89: 10 | L89: 58.82352941 | N89: 1 | O89: 5.882352941 | Q89: 0 | R89: 0
B90: Wolverhampton | F90: 10 | H90: 2 | I90: 20 | K90: 8 | L90: 80 | N90: 0 | O90: 0 | Q90: 0 | R90: 0
B91: Worcestershire | F91: 14 | H91: 3 | I91: 21.42857143 | K91: 8 | L91: 57.14285714 | N91: 3 | O91: 21.42857143 | Q91: 0 | R91: 0
B93: EAST OF ENGLAND | F93: =SUM(F94:F104) -> 134 | H93: =SUM(H94:H104) -> 14 | I93: =SUM(H93/F93*100) -> 10.44776119 | K93: =SUM(K94:K104) -> 69 | L93: =SUM(K93/F93*100) -> 51.49253731 | N93: =SUM(N94:N104) -> 49 | O93: =SUM(N93/F93*100) -> 36.56716418 | Q93: =SUM(Q94:Q104) -> 2 | R93: =SUM(Q93/F93*100) -> 1.492537313
B94: Bedford | F94: 6 | H94: 1 | I94: =SUM(H94/F94*100) -> 16.66666667 | K94: 3 | L94: =SUM(K94/F94*100) -> 50 | N94: 2 | O94: =SUM(N94/F94*100) -> 33.33333333 | Q94: 0 | R94: =SUM(Q94/F94*100) -> 0
B95: Cambridgeshire | F95: 15 | H95: 0 | I95: 0 | K95: 5 | L95: 33.33333333 | N95: 10 | O95: 66.66666667 | Q95: 0 | R95: 0
B96: Central Bedfordshire | F96: 1 | H96: 0 | I96: 0 | K96: 1 | L96: 100 | N96: 0 | O96: 0 | Q96: 0 | R96: 0
B97: Essex | F97: 23 | H97: 1 | I97: 4.347826087 | K97: 14 | L97: 60.86956522 | N97: 8 | O97: 34.7826087 | Q97: 0 | R97: 0
B98: Hertfordshire | F98: 17 | H98: 0 | I98: 0 | K98: 11 | L98: 64.70588235 | N98: 6 | O98: 35.29411765 | Q98: 0 | R98: 0
B99: Luton | F99: 13 | H99: 1 | I99: 7.692307692 | K99: 6 | L99: 46.15384615 | N99: 6 | O99: 46.15384615 | Q99: 0 | R99: 0
B100: Norfolk | F100: 23 | H100: 4 | I100: 17.39130435 | K100: 15 | L100: 65.2173913 | N100: 4 | O100: 17.39130435 | Q100: 0 | R100: 0
B101: Peterborough | F101: 7 | H101: 1 | I101: 14.28571429 | K101: 3 | L101: 42.85714286 | N101: 3 | O101: 42.85714286 | Q101: 0 | R101: 0
B102: Southend-on-Sea | F102: 6 | H102: 2 | I102: 33.33333333 | K102: 1 | L102: 16.66666667 | N102: 2 | O102: 33.33333333 | Q102: 1 | R102: 16.66666667
B103: Suffolk | F103: 17 | H103: 4 | I103: 23.52941176 | K103: 9 | L103: 52.94117647 | N103: 4 | O103: 23.52941176 | Q103: 0 | R103: 0
B104: Thurrock | F104: 6 | H104: 0 | I104: 0 | K104: 1 | L104: 16.66666667 | N104: 4 | O104: 66.66666667 | Q104: 1 | R104: 16.66666667
B106: LONDON | F106: =SUM(F107:F139) -> 200 | H106: =SUM(H107:H139) -> 32 | I106: =SUM(H106/F106*100) -> 16 | K106: =SUM(K107:K139) -> 120 | L106: =SUM(K106/F106*100) -> 60 | N106: =SUM(N107:N139) -> 44 | O106: =SUM(N106/F106*100) -> 22 | Q106: =SUM(Q107:Q139) -> 4 | R106: =SUM(Q106/F106*100) -> 2
B107: Barking and Dagenham | F107: 6 | H107: 6 | I107: =SUM(H107/F107*100) -> 100 | K107: 0 | L107: =SUM(K107/F107*100) -> 0 | N107: 0 | O107: =SUM(N107/F107*100) -> 0 | Q107: 0 | R107: =SUM(Q107/F107*100) -> 0
B108: Barnet | F108: 6 | H108: 0 | I108: 0 | K108: 6 | L108: 100 | N108: 0 | O108: 0 | Q108: 0 | R108: 0
B109: Bexley | F109: 4 | H109: 0 | I109: 0 | K109: 4 | L109: 100 | N109: 0 | O109: 0 | Q109: 0 | R109: 0
B110: Brent | F110: 7 | H110: 0 | I110: 0 | K110: 3 | L110: 42.85714286 | N110: 4 | O110: 57.14285714 | Q110: 0 | R110: 0
B111: Bromley | F111: 6 | H111: 0 | I111: 0 | K111: 5 | L111: 83.33333333 | N111: 1 | O111: 16.66666667 | Q111: 0 | R111: 0
B112: Camden | F112: 3 | H112: 0 | I112: 0 | K112: 2 | L112: 66.66666667 | N112: 1 | O112: 33.33333333 | Q112: 0 | R112: 0
B113: City of London | F113: 0 | H113: 0 | I113: - | K113: 0 | L113: - | N113: 0 | O113: - | Q113: 0 | R113: -
B114: Croydon | F114: 11 | H114: 2 | I114: 18.18181818 | K114: 6 | L114: 54.54545455 | N114: 3 | O114: 27.27272727 | Q114: 0 | R114: 0
B115: Ealing | F115: 12 | H115: 2 | I115: 16.66666667 | K115: 7 | L115: 58.33333333 | N115: 3 | O115: 25 | Q115: 0 | R115: 0
B116: Enfield | F116: 6 | H116: 0 | I116: 0 | K116: 4 | L116: 66.66666667 | N116: 2 | O116: 33.33333333 | Q116: 0 | R116: 0
B117: Greenwich | F117: 9 | H117: 0 | I117: 0 | K117: 6 | L117: 66.66666667 | N117: 3 | O117: 33.33333333 | Q117: 0 | R117: 0
B118: Hackney | F118: 8 | H118: 2 | I118: 25 | K118: 4 | L118: 50 | N118: 2 | O118: 25 | Q118: 0 | R118: 0
B119: Hammersmith and Fulham | F119: 4 | H119: 1 | I119: 25 | K119: 1 | L119: 25 | N119: 1 | O119: 25 | Q119: 1 | R119: 25
B120: Haringey | F120: 9 | H120: 0 | I120: 0 | K120: 6 | L120: 66.66666667 | N120: 2 | O120: 22.22222222 | Q120: 1 | R120: 11.11111111
B121: Harrow | F121: 3 | H121: 0 | I121: 0 | K121: 1 | L121: 33.33333333 | N121: 2 | O121: 66.66666667 | Q121: 0 | R121: 0
B122: Havering | F122: 4 | H122: 0 | I122: 0 | K122: 3 | L122: 75 | N122: 1 | O122: 25 | Q122: 0 | R122: 0
B123: Hillingdon | F123: 6 | H123: 0 | I123: 0 | K123: 4 | L123: 66.66666667 | N123: 1 | O123: 16.66666667 | Q123: 1 | R123: 16.66666667
B124: Hounslow | F124: 6 | H124: 1 | I124: 16.66666667 | K124: 2 | L124: 33.33333333 | N124: 3 | O124: 50 | Q124: 0 | R124: 0
B125: Islington | F125: 8 | H125: 0 | I125: 0 | K125: 7 | L125: 87.5 | N125: 1 | O125: 12.5 | Q125: 0 | R125: 0
B126: Kensington and Chelsea | F126: 4 | H126: 2 | I126: 50 | K126: 2 | L126: 50 | N126: 0 | O126: 0 | Q126: 0 | R126: 0
B127: Kingston upon Thames | F127: 2 | H127: 0 | I127: 0 | K127: 1 | L127: 50 | N127: 1 | O127: 50 | Q127: 0 | R127: 0
B128: Lambeth | F128: 14 | H128: 7 | I128: 50 | K128: 7 | L128: 50 | N128: 0 | O128: 0 | Q128: 0 | R128: 0
B129: Lewisham | F129: 6 | H129: 0 | I129: 0 | K129: 5 | L129: 83.33333333 | N129: 1 | O129: 16.66666667 | Q129: 0 | R129: 0
B130: Merton | F130: 4 | H130: 0 | I130: 0 | K130: 4 | L130: 100 | N130: 0 | O130: 0 | Q130: 0 | R130: 0
B131: Newham | F131: 14 | H131: 5 | I131: 35.71428571 | K131: 7 | L131: 50 | N131: 2 | O131: 14.28571429 | Q131: 0 | R131: 0
B132: Redbridge | F132: 1 | H132: 0 | I132: 0 | K132: 0 | L132: 0 | N132: 1 | O132: 100 | Q132: 0 | R132: 0
B133: Richmond upon Thames | F133: 2 | H133: 0 | I133: 0 | K133: 2 | L133: 100 | N133: 0 | O133: 0 | Q133: 0 | R133: 0
B134: Southwark | F134: 11 | H134: 1 | I134: 9.090909091 | K134: 5 | L134: 45.45454545 | N134: 5 | O134: 45.45454545 | Q134: 0 | R134: 0
B135: Sutton | F135: 4 | H135: 0 | I135: 0 | K135: 2 | L135: 50 | N135: 2 | O135: 50 | Q135: 0 | R135: 0
B136: Tower Hamlets | F136: 3 | H136: 0 | I136: 0 | K136: 3 | L136: 100 | N136: 0 | O136: 0 | Q136: 0 | R136: 0
B137: Waltham Forest | F137: 9 | H137: 3 | I137: 33.33333333 | K137: 5 | L137: 55.55555556 | N137: 0 | O137: 0 | Q137: 1 | R137: 11.11111111
B138: Wandsworth | F138: 5 | H138: 0 | I138: 0 | K138: 4 | L138: 80 | N138: 1 | O138: 20 | Q138: 0 | R138: 0
B139: Westminster | F139: 3 | H139: 0 | I139: 0 | K139: 2 | L139: 66.66666667 | N139: 1 | O139: 33.33333333 | Q139: 0 | R139: 0
B141: SOUTH EAST | F141: =SUM(F142:F160) -> 179 | H141: =SUM(H142:H160) -> 29 | I141: =H141/F141*100 -> 16.20111732 | K141: =SUM(K142:K160) -> 102 | L141: =K141/F141*100 -> 56.98324022 | N141: =SUM(N142:N160) -> 47 | O141: =N141/F141*100 -> 26.25698324 | Q141: =SUM(Q142:Q160) -> 1 | R141: =Q141/F141*100 -> 0.5586592179
B142: Bracknell Forest | F142: 2 | H142: 0 | I142: =H142/F142*100 -> 0 | K142: 0 | L142: =K142/F142*100 -> 0 | N142: 2 | O142: =N142/F142*100 -> 100 | Q142: 0 | R142: =Q142/F142*100 -> 0
B143: Brighton and Hove | F143: 8 | H143: 5 | I143: 62.5 | K143: 3 | L143: 37.5 | N143: 0 | O143: 0 | Q143: 0 | R143: 0
B144: Buckinghamshire | F144: 12 | H144: 0 | I144: 0 | K144: 5 | L144: 41.66666667 | N144: 6 | O144: 50 | Q144: 1 | R144: 8.333333333
B145: East Sussex | F145: 16 | H145: 1 | I145: 6.25 | K145: 14 | L145: 87.5 | N145: 1 | O145: 6.25 | Q145: 0 | R145: 0
B146: Hampshire | F146: 20 | H146: 7 | I146: 35 | K146: 12 | L146: 60 | N146: 1 | O146: 5 | Q146: 0 | R146: 0
B147: Isle of Wight | F147: 5 | H147: 3 | I147: 60 | K147: 2 | L147: 40 | N147: 0 | O147: 0 | Q147: 0 | R147: 0
B148: Kent | F148: 34 | H148: 5 | I148: 14.70588235 | K148: 22 | L148: 64.70588235 | N148: 7 | O148: 20.58823529 | Q148: 0 | R148: 0
B149: Medway | F149: 9 | H149: 0 | I149: 0 | K149: 5 | L149: 55.55555556 | N149: 4 | O149: 44.44444444 | Q149: 0 | R149: 0
B150: Milton Keynes | F150: 7 | H150: 1 | I150: 14.28571429 | K150: 4 | L150: 57.14285714 | N150: 2 | O150: 28.57142857 | Q150: 0 | R150: 0
B151: Oxfordshire | F151: 17 | H151: 1 | I151: 5.882352941 | K151: 11 | L151: 64.70588235 | N151: 5 | O151: 29.41176471 | Q151: 0 | R151: 0
B152: Portsmouth | F152: 8 | H152: 0 | I152: 0 | K152: 4 | L152: 50 | N152: 4 | O152: 50 | Q152: 0 | R152: 0
B153: Reading | F153: 5 | H153: 0 | I153: 0 | K153: 4 | L153: 80 | N153: 1 | O153: 20 | Q153: 0 | R153: 0
B154: Slough | F154: 2 | H154: 0 | I154: 0 | K154: 2 | L154: 100 | N154: 0 | O154: 0 | Q154: 0 | R154: 0
B155: Southampton | F155: 4 | H155: 3 | I155: 75 | K155: 1 | L155: 25 | N155: 0 | O155: 0 | Q155: 0 | R155: 0
B156: Surrey | F156: 13 | H156: 2 | I156: 15.38461538 | K156: 6 | L156: 46.15384615 | N156: 5 | O156: 38.46153846 | Q156: 0 | R156: 0
B157: West Berkshire | F157: 2 | H157: 0 | I157: 0 | K157: 0 | L157: 0 | N157: 2 | O157: 100 | Q157: 0 | R157: 0
B158: West Sussex | F158: 14 | H158: 1 | I158: 7.142857143 | K158: 7 | L158: 50 | N158: 6 | O158: 42.85714286 | Q158: 0 | R158: 0
B159: Windsor and Maidenhead | F159: 1 | H159: 0 | I159: 0 | K159: 0 | L159: 0 | N159: 1 | O159: 100 | Q159: 0 | R159: 0
B160: Wokingham | F160: 0 | H160: 0 | I160: - | K160: 0 | L160: - | N160: 0 | O160: - | Q160: 0 | R160: -
B162: SOUTH WEST | F162: =SUM(F163:F178) -> 139 | H162: =SUM(H163:H178) -> 14 | I162: =SUM(H162/F162*100) -> 10.07194245 | K162: =SUM(K163:K178) -> 62 | L162: =SUM(K162/F162*100) -> 44.60431655 | N162: =SUM(N163:N178) -> 60 | O162: =SUM(N162/F162*100) -> 43.16546763 | Q162: =SUM(Q163:Q178) -> 3 | R162: =SUM(Q162/F162*100) -> 2.158273381
B163: Bath and North East Somerset | F163: 2 | H163: 0 | I163: =SUM(H163/F163*100) -> 0 | K163: 2 | L163: =SUM(K163/F163*100) -> 100 | N163: 0 | O163: =SUM(N163/F163*100) -> 0 | Q163: 0 | R163: =SUM(Q163/F163*100) -> 0
B164: Bournemouth | F164: 5 | H164: 2 | I164: 40 | K164: 3 | L164: 60 | N164: 0 | O164: 0 | Q164: 0 | R164: 0
B165: Bristol City of | F165: 18 | H165: 6 | I165: 33.33333333 | K165: 9 | L165: 50 | N165: 3 | O165: 16.66666667 | Q165: 0 | R165: 0
B166: Cornwall | F166: 5 | H166: 0 | I166: 0 | K166: 2 | L166: 40 | N166: 3 | O166: 60 | Q166: 0 | R166: 0
B167: Devon | F167: 19 | H167: 1 | I167: 5.263157895 | K167: 12 | L167: 63.15789474 | N167: 6 | O167: 31.57894737 | Q167: 0 | R167: 0
B168: Dorset | F168: 9 | H168: 0 | I168: 0 | K168: 2 | L168: 22.22222222 | N168: 7 | O168: 77.77777778 | Q168: 0 | R168: 0
B169: Gloucestershire | F169: 20 | H169: 0 | I169: 0 | K169: 11 | L169: 55 | N169: 9 | O169: 45 | Q169: 0 | R169: 0
B170: Isles Of Scilly | F170: 0 | H170: 0 | I170: - | K170: 0 | L170: - | N170: 0 | O170: - | Q170: 0 | R170: -
B171: North Somerset | F171: 4 | H171: 0 | I171: 0 | K171: 2 | L171: 50 | N171: 2 | O171: 50 | Q171: 0 | R171: 0
B172: Plymouth | F172: 11 | H172: 1 | I172: 9.090909091 | K172: 6 | L172: 54.54545455 | N172: 2 | O172: 18.18181818 | Q172: 2 | R172: 18.18181818
B173: Poole | F173: 2 | H173: 0 | I173: 0 | K173: 0 | L173: 0 | N173: 2 | O173: 100 | Q173: 0 | R173: 0
B174: Somerset | F174: 22 | H174: 0 | I174: 0 | K174: 8 | L174: 36.36363636 | N174: 13 | O174: 59.09090909 | Q174: 1 | R174: 4.545454545
B175: South Gloucestershire | F175: 4 | H175: 0 | I175: 0 | K175: 0 | L175: 0 | N175: 4 | O175: 100 | Q175: 0 | R175: 0
B176: Swindon | F176: 4 | H176: 1 | I176: 25 | K176: 2 | L176: 50 | N176: 1 | O176: 25 | Q176: 0 | R176: 0
B177: Torbay | F177: 2 | H177: 0 | I177: 0 | K177: 2 | L177: 100 | N177: 0 | O177: 0 | Q177: 0 | R177: 0
B178: Wiltshire | F178: 12 | H178: 3 | I178: 25 | K178: 1 | L178: 8.333333333 | N178: 8 | O178: 66.66666667 | Q178: 0 | R178: 0
R180: Source: Ofsted Inspections
B181: 1. Percentages are rounded and may not add to 100.
B182: 2. Where number of inspections is small, percentages should be treated with caution.

Sheet Chart 1
B2: Chart 1: Key judgements of children's centres inspected between 1 September 2011 and 31 August 20121
G16: Source: Ofsted Inspections
B17: 1. Percentages are rounded and may not add to 100.

Sheet Chart 2
B2: Chart 2: Overall effectiveness of children's centres inspected over two inspection years1
K25: Source: Ofsted Inspections
B26: 1. Percentages are rounded and may not add to 100.
